Workbook

Sheet _TM_Uvod (hidden)
A1: Left | B1: Top | C1: Right | D1: Bottom | E1: Ref
A2: 1 | B2: 12 | C2: 2 | D2: 12 | E2: $A$12:$B$12

Sheet (Naslovna)
A1: v_2.11/2020
B2: Prilog 9.2.2 | I2: Godišnji financijski plan poslovanja
B3: Ministarstvo prostornoga uređenja, graditeljstva i državne imovine
B8: Godišnji financijski plan poslovanja
C12: ="za "&LEFT(Podloga!B8,4)&". godinu" -> za 2024. godinu
C16: =HYPERLINK("#Uvod!A1","Uvod") -> Uvod
C18: =HYPERLINK("#Podloga!$A$1","Podloga za izradu plana") -> Podloga za izradu plana
C20: =HYPERLINK("#'Tijela društva'!A1","Tijela društva") -> Tijela društva
C22: =HYPERLINK("#'Vl. struktura'!A1","Vlasnička struktura") -> Vlasnička struktura
C24: =HYPERLINK("#Bilanca!A1","Izvještaj o financijskom položaju ") -> Izvještaj o financijskom položaju
C26: =HYPERLINK("#RDG!A1","Račun dobiti i gubitka ") -> Račun dobiti i gubitka
C28: =HYPERLINK("#'NT dir.'!A1","Izvještaj o novčanom toku (direktna metoda)") -> Izvještaj o novčanom toku (direktna metoda)
C30: =HYPERLINK("#'NT indir.'!A1","Izvještaj o novčanom toku (indirektna metoda)") -> Izvještaj o novčanom toku (indirektna metoda)
C32: =HYPERLINK("#MFIN!A1","Podaci za Ministarstvo financija") -> Podaci za Ministarstvo financija
C34: =HYPERLINK("#'Sektorski pokazatelji'!A1","Ključni sektorski pokazatelji ") -> Ključni sektorski pokazatelji

Sheet Naslovna (hidden)
B1: 6
B2: Prilog 9.2.2 | I2: Godišnji financijski plan poslovanja
B3: Ministarstvo državne imovine
B8: Godišnji financijski plan poslovanja
C12: ="za "&LEFT(Podloga!B8,4)&". godinu" -> za 2024. godinu
C16: =HYPERLINK("#Uvod!A1","Uvod") -> Uvod
C18: =HYPERLINK("#Sadržaj!A1","Sadržaj") -> Sadržaj
C20: =HYPERLINK("#Podloga!$A$1","Podloga za izradu plana") -> Podloga za izradu plana
C22: =HYPERLINK("#Bilanca!A1","Izvještaj o financijskom položaju ") -> Izvještaj o financijskom položaju
C24: =HYPERLINK("#RDG!A1","Račun dobiti i gubitka ") -> Račun dobiti i gubitka
C26: =HYPERLINK("#'NT dir.'!A1","Izvještaj o novčanom toku (direktna metoda)") -> Izvještaj o novčanom toku (direktna metoda)
C28: =HYPERLINK("#'NT indir.'!A1","Izvještaj o novčanom toku (indirektna metoda)") -> Izvještaj o novčanom toku (indirektna metoda)
C30: =HYPERLINK("#MFIN!A1","Podaci za Ministarstvo financija") -> Podaci za Ministarstvo financija
C32: =HYPERLINK("#Dashboard!A1","Dashboard") -> Dashboard
C34: =HYPERLINK("#DuPont!A1","DuPont analiza") -> DuPont analiza
C36: =HYPERLINK("#'Altman Integral (Basic)'!A1","Altman Integral (Basic)") -> Altman Integral (Basic)
C38: =HYPERLINK("#'Altman Integral (A)'!A1","Altman Integral (A model)") -> Altman Integral (A model)
C40: =HYPERLINK("#'Altman Integral (B)'!A1","Altman Integral (B model)") -> Altman Integral (B model)
C42: =HYPERLINK("#'Zračne luke'!A1","Ključni sektorski pokazatelji ") -> Ključni sektorski pokazatelji

Sheet Uvod
A1: Prilog: Podloga za izradu godišnjeg financijskog plana poslovanja
A3: Sukladno važećim zakonskim i podzakonskim propisima sve pravne osobe na koje se odnosi Uputa za izradu i dostavu planova i izvještaja o poslovanju, dužne su dostavljati planove poslovanja Primateljima planova i izvještaja kako je definirano Uputom.
A5: Kao što je propisano u Uputi za izradu i dostavu planova i izvještaja o poslovanju, ovaj dokument sadrži propisanu formu većine potrebnih sastavnica plana poslovanja.
A7: Sve pravne osobe na koje se odnosi Uputa za izradu i dostavu planova i izvještaja o poslovanju obvezne su popuniti: Zelene Listove u Excel podlozi: Prvi List “Podloga” → Subjekti izvještavanja trebaju unijeti osnovne informacije o društvu, na primjer: ime društva, adresa, članovi Uprave, temeljni kapital, planirane investicije (kratki opis). Također, Subjekti izvještavanja trebaju odabrati metodu pripreme Izvještaja o novčanom toku (direktna ili indirektna), popuniti informacije o broju izdanih dionica, njihovoj vrijednosti te o prosječnom broju zaposlenika u promatranom razdoblju. Podloge za planske financijske izvještaje (Listovi: “Bilanca”, “RDG”, “NT dir.” ili “NT indir.") → Subjekti izvještavanja trebaju unijeti stvarne podatke. Napomena: Podloge za planske izvještaje pripremljene su u skladu s standardnim formatima za financijsko izvještavanje u Republici Hrvatskoj (kako je utvrđeno Zakonom). Specijalni List za Ministarstvo financija → Subjekti izvještavanja trebaju unijeti specifične podatke koji su traženi od strane Ministarstva financija poput: iznosa državnih subvencija, investicija, iznosa isplaćenih dividendi itd. Specifične sektorske pokazatelje (narančasti Listovi) → navedeni Listovi uključuju operativne, financijske, tržišne i razvojne pokazatelje. Subjekti izvještavanja trebaju popuniti pokazatelje za industriju u kojoj posluju.
A12: Objašnjenje boja Listova:
B14: Listovi s osnovnim informacijama i uputama
B15: Listovi s financijskim izvještajima (potrebno unijeti podatke)
B16: Listovi s osnovnim pokazateljima o poslovanju (pokazatelji su dostupni nakon što su ispunjeni Listovi s podacima iz financijskih izvještaja)
B17: Listovi s specifičnim sektorskim pokazateljima

Sheet Sadržaj (hidden)
A1: Sadržaj
A2: Podloga za izradu plana | B2: =HYPERLINK("#Podloga!A1","Podloga za izradu plana") -> Podloga za izradu plana
A3: Izvještaj o financijskom položaju | B3: =HYPERLINK("#Bilanca!A1","Bilanca") -> Bilanca
A4: Račun dobiti i gubitka | B4: =HYPERLINK("#RDG!A1","RDG") -> RDG
A5: Izvještaj o novčanom toku (direktna metoda) | B5: =HYPERLINK("#'NT dir.'!A1","NT dir.") -> NT dir.
A6: Izvještaj o novčanom toku (indirektna metoda) | B6: =HYPERLINK("#'NT indir.'!A1","NT indir.") -> NT indir.
A7: Podaci za Ministarstvo financija | B7: =HYPERLINK("#MFIN!A1","MFIN") -> MFIN
A8: Dashboard | B8: =HYPERLINK("#Dashboard!A1","Dashboard") -> Dashboard
A9: DuPont | B9: =HYPERLINK("#DuPont!A1","DuPont") -> DuPont
A10: Altman Integral
A11: • Za proizvodna trgovačka društva koja kotiraju na burzi (Basic model) | B11: =HYPERLINK("#'Altman Integral (Basic)'!A1","Altman - Basic") -> Altman - Basic
A12: • Za trgovačka društva koja ne kotiraju na burzi (A model) | B12: =HYPERLINK("#'Altman Integral (A)'!A1","Altman - A") -> Altman - A
A13: • Za neproizvodna trgovačka društva koja kotiraju na burzi (B model) | B13: =HYPERLINK("#'Altman Integral (B)'!A1","Altman - B") -> Altman - B
A14: Sektorski ključni pokazatelji poslovanja

Sheet _TM_Podloga (hidden)
A1: Left | B1: Top | C1: Right | D1: Bottom | E1: Ref
A2: 1 | B2: 19 | C2: 9 | D2: 22 | E2: $A$19:$I$22
A3: 1 | B3: 1 | C3: 9 | D3: 10 | E3: $A$1:$I$10
A4: 1 | B4: 11 | C4: 9 | D4: 17 | E4: $A$11:$I$17

Sheet _TM_Bilanca (hidden)
A1: Left | B1: Top | C1: Right | D1: Bottom | E1: Ref
A2: 3 | B2: 105 | C2: 5 | D2: 105 | E2: $C$105:$E$105

Sheet Podloga
A1: Informacije o trgovačkom društvu
A2: Naziv društva: | B2: Zračna luka Osijek d.o.o.
A3: Adresa društva: | B3: Klisa, Vukovarska 67, Osijek
A4: Temeljni kapital (HRK): | B4: 3.478.399 eura
A5: Plan je konsolidiran: | B5: Ne
A6: Plan je odobren / od nadležnog tijela / datum: | B6: Ne | C6: Skupština društva | E6: =IF(B6="DA", "< Upisati datum", "") -> 
A7: Primjena računovodstvenih standarda: | B7: MSFI
A8: Sastavlja se za godinu: | B8: 2024
A9: Veličina subjekta: | B9: Srednji
A10: Osnovna djelatnost društva: | B10: Uslužne djelatnosti u svezi sa zračnim prijevozom.
A11: Pravni oblik: | B11: d.o.o.
A12: OIB: | B12: 48188420009
A13: Da li je društvo u procesu restrukturiranja: | B13: Ne | C13: =IF(B13="DA","Potrebno postupiti prema točki 6.3.1. Upute","") -> 
A14: Primjena Kodeksa korporativnog upravljanja trgovačkim društvima | B14: DA
A15: Compliance officer (funkcija usklađenosti) | B15: DA
A16: Temeljni akt (datum zadnje promjene): | B16: 2017-11-22
A17: Datum zadnje održane skupštine: | B17: 13.12.2023. | C17: =IF((B17>0),"Molimo dostaviti zapisnike.","") -> Molimo dostaviti zapisnike.
A18: Opis strateških i financijskih ciljeva / planiranog poslovanja: | B18: Povećanje broja destinacija, razvoj robnog (cargo) prometa i investicije u aerodromsku infrastrukturu. Planiran je pozitivan financijski rezultat za sve tri godine razdoblja.
A19: Korištena metoda kod Izvještaja o novčanom toku: | B19: Indirektna
A20: Datum ispunjavanja plana: | B20: 2023-12-19
A21: Razrada godišnjeg plana poslovanja trgovačkog društva
A22: Planirane investicije za razdoblje: | B22: 3300000 eur | C22: Financiranje rekonstrukcije putničke zgrade, financiranje studije izvodljivosti, idejnog rješenja i dijela projektno-tehničke dokumentacije za projekt Rekonstrukcije i proširenja Zračne luke Osijek.
A23: Izvor sredstava za investicije (iznos - izvor): | B23: MMPI - kapitalna ulaganja prema Planu nabave zaštitne i sigurnosne opreme i izgradnje infrastrukture
A24: Sudski sporovi sa značajnim utjecajem na poslovni rezultat:
A25: Planirana bespovratna sredstva iz EU (naziv projekta / izvor-fond / iznos u kn):
A26: Planirana državna jamstva: | B26: 2.335.921 eur | D26: =IF(B26>0, "Molimo opisati u opisnom dijelu.","") -> Molimo opisati u opisnom dijelu.
A27: Planirane subvencije (iznos / opis): | B27: 583.980 eur | D27: -
A28: Planirane donacije (iznos / opis): | B28: 0 | D28: -
A30: Tržišni pokazatelji dionica*
B31: =LEFT(B8,4)-2&". ostvareno" -> 2022. ostvareno | C31: =LEFT(B8,4)-1&". procijenjeno" -> 2023. procijenjeno
A32: Broj izdanih dionica: | B32: - | C32: -
A33: Tržišna vrijednost dionice: | B33: - | C33: -
A36: Vremenska razdoblja: | B36: =LEFT(B8,4)-2&". planirano" -> 2022. planirano | C36: =LEFT(B8,4)-2&". ostvareno" -> 2022. ostvareno | D36: =LEFT(B8,4)-1&". planirano" -> 2023. planirano | E36: =LEFT(B8,4)-1&". procijenjeno" -> 2023. procijenjeno | F36: =LEFT(B8,4)&". planirano" -> 2024. planirano
A37: Prosječan broj zaposlenih za izvještajno razdoblje:
A38: Investicije za razdoblje (HRK 000):
A41: * Tržišni pokazatelji dionica ispunjavaju se za zadnji dan u razdoblju

Sheet Tijela društva
B1: Tijela društva
B3: Datum ispunjavanja plana: | G3: =Podloga!B20 -> 2023-12-19
B4: Promjene u Tijelima društva od posljednjeg plana / izvještaja: | G4: DA | I4: =IF(G4="DA","Molimo dostaviti Zapisnike MPGI-u - ako već nisu dostavljeni","") -> Molimo dostaviti Zapisnike MPGI-u - ako već nisu dostavljeni
B6: Uprava
B7: R.Br. | C7: Ime | D7: Prezime | E7: Funkcija | G7: Spol | H7: Početak mandata | I7: Kraj mandata | J7: Kontakt e-mail | K7: Broj telefona | L7: Broj mobitela
B8: 1 | C8: Ivan | D8: Kos | E8: Direktor | G8: M | H8: 28.04.2021. | I8: 28.04.2022. | J8: ivan.kos@osijek-airport.hr | K8: 031 514 405
B9: 2
B10: 3
B11: 4
B12: 5
B14: Nadzorni odbor*
B15: R.Br. | C15: Ime | D15: Prezime | E15: Funkcija | F15: Predstavnik | G15: Spol | H15: Početak mandata | I15: Kraj mandata | J15: Kontakt e-mail | K15: Broj telefona | L15: Broj mobitela
B16: 1 | C16: Krešimir | D16: Trtanj | E16: Član | F16: Grad Osijek | G16: M | H16: 06.07.2022. | I16: 6.7.2026.
B17: 2 | C17: Maja | D17: Alduk | E17: Član | F17: Osječko - baranjska županija | G17: Ž | H17: 21.06.2023. | I17: 21.6.2027.
B18: 3 | C18: Jerko | D18: Glavaš | E18: Član | F18: RH | G18: M | H18: 13.12.2023. | I18: 13.12.2027.
B19: 4
B20: 5
B22: Revizijski odbor
B23: R.Br. | C23: Ime | D23: Prezime | E23: Funkcija | G23: Spol | H23: Početak mandata | I23: Kraj mandata | J23: Kontakt e-mail | K23: Broj telefona | L23: Broj mobitela
B24: 1 | C24: Ivan | D24: Begović | E24: Predsjednik | G24: M | H24: 2021-08-30 | I24: 30.08.2025. | J24: ivanbego@gmail.com | K24: - | L24: 091 450 2903
B25: 2 | C25: Milena | D25: Kordi | E25: Član | G25: Ž | H25: 25.08.2020. | I25: 25.08.2024. | J25: milena.kordi@osijek.hr | K25: 031 229 190 | L25: 098 486 379
B26: 3 | C26: Suzana | D26: Tretinjak | E26: Član | G26: Ž | H26: 25.08.2020 | I26: 25.08.2024. | J26: suzana.tretinjak@obz.hr | K26: 031 221 716 | L26: 099 659 8130
B27: 4
B28: 5
B31: Osobe ovlaštene za komunikaciju s Primateljima
B32: R.Br. | C32: Ime | D32: Prezime | E32: Funkcija | J32: Kontakt e-mail | K32: Broj telefona | L32: Broj mobitela
B33: 1 | C33: Ivan | D33: Kos | E33: Direktor | G33: M | H33: 28.04.2021 | I33: 28.24.2022. | J33: ivan.kos@osijek-airport.hr | K33: 031 514 405
B34: 2 | C34: Katarina | D34: Jelečević | E34: Rukovoditelj finncija i računovodstva | G34: Ž | H34: 01.06.2015. | I34: - | J34: katarina.jelecevic@osijek-airport.hr | K34: 031 514 440
B35: 3
B36: 4
B37: 5
B39: * Ako u društvu postoje pomoćna tijela nadzornog odbora (odbori. komisije, povjerenstva i sl.) potrebno ih je obrazložiti u opisnom dijelu (obavezno navesti članove).

Sheet Vl. struktura
A1: Vlasnička struktura na dan: | D1: =IFERROR(Podloga!B20,0) -> 2023-12-19
A3: Promjene u Vlasničkoj strukturi društva od posljednjeg izvještaja / plana:
A5: Društvo s ograničenom odgovornošću
A6: R.Br. | B6: Naziv društva | C6: Poštanski broj sjedišta | D6: Sjedište | E6: OIB društva | F6: Temeljni kapital (kn) | G6: Nominalna vrijednost imatelja RH (kn) | H6: % vlas. RH | I6: Nominalna vrijednost ost. drž. Imatelja (kn) | J6: % vlas. ostalih drž. Imatelja | K6: Teret | L6: Sudski spor
A7: 1. | B7: =IF(ISBLANK(Podloga!B2),"",Podloga!B2) -> Zračna luka Osijek d.o.o. | C7: 31207 | D7: Klisa | E7: 48188420009 | F7: 3.478.399 eur | G7: 1.913.119 eur | H7: 55 | I7: 1.565.279 eur | J7: 45 | K7: nema | L7: nema
A11: Dioničko društvo
A12: R. Br. | B12: Naziv društva | C12: Poštanski broj sjedišta | D12: Sjedište | E12: Oznaka VP | F12: OIB društva | G12: Temeljni kapital (kn) | H12: Izdana količina dionica | I12: Nominalna vrijednost dionice (kn) | J12: broj dionica čiji je imatelj RH | K12: % vlas. RH | L12: broj dionica ost. drž. imatelja | M12: % vlas.ost. drž. Imatelja | N12: Teret | O12: Sudski spor
B13: =IF(ISBLANK(Podloga!B2),"",Podloga!B2) -> Zračna luka Osijek d.o.o.
A18: NAPOMENA
A19: * popunjava se tablica ovisno o pravnom obliku pravne osobe od posebnog interesa

Sheet Bilanca
A1: IZVJEŠTAJ O FINANCIJSKOM POLOŽAJU SA STANJEM NA 31.12. | C1: =IF(C68=C131,Podloga!B36&" bilancira",Podloga!B36&" ne bilancira") -> 2022. planirano ne bilancira | D1: =IF(D68=D131,Podloga!C36&" bilancira",Podloga!C36&" ne bilancira") -> 2022. ostvareno ne bilancira | E1: =IF(E68=E131,Podloga!D36&" bilancira",Podloga!D36&" ne bilancira") -> 2023. planirano ne bilancira | F1: =IF(F68=F131,Podloga!E36&" bilancira",Podloga!E36&" ne bilancira") -> 2023. procijenjeno ne bilancira | G1: =IF(G68=G131,Podloga!F36&" bilancira",Podloga!F36&" ne bilancira") -> 2024. planirano ne bilancira
A2: Obveznik: | B2: =IF(ISBLANK(Podloga!B2),"",Podloga!B2) -> Zračna luka Osijek d.o.o. | C2: I Z N O S (u 000 kn) | H2: ="Indeks "& RIGHT(LEFT(Podloga!C36,7),5) &" / "& RIGHT(LEFT(Podloga!B36,8),6) -> Indeks 22. o / 22. pl | I2: ="Indeks "& RIGHT(LEFT(Podloga!E36,8),6) &" / "& RIGHT(LEFT(Podloga!D36,8),6) -> Indeks 23. pr / 23. pl | J2: ="Indeks "& RIGHT(LEFT(Podloga!E36,8),6) &" / "& RIGHT(LEFT(Podloga!C36,7),5) -> Indeks 23. pr / 22. o | K2: ="Indeks "& RIGHT(LEFT(Podloga!D36,8),6) &" / "& RIGHT(LEFT(Podloga!B36,8),6) -> Indeks 23. pl / 22. pl | L2: ="Indeks "& RIGHT(LEFT(Podloga!F36,8),6) &" / "& RIGHT(LEFT(Podloga!D36,8),6) -> Indeks 24. pl / 23. pl | M2: ="Indeks "& RIGHT(LEFT(Podloga!F36,8),6) &" / "& RIGHT(LEFT(Podloga!E36,8),6) -> Indeks 24. pl / 23. pr
B3: A K T I V A | C3: =Podloga!B36 -> 2022. planirano | D3: =Podloga!C36 -> 2022. ostvareno | E3: =Podloga!D36 -> 2023. planirano | F3: =Podloga!E36 -> 2023. procijenjeno | G3: =Podloga!F36 -> 2024. planirano
A4: 1. | B4: POTRAŽIVANJA ZA UPISANI A NEUPLAĆENI KAPITAL | H4: =IFERROR(D4/C4*100,) -> 0 | I4: =IFERROR(F4/E4*100,) -> 0 | J4: =IFERROR(F4/D4*100,) -> 0 | K4: =IFERROR(E4/C4*100,) -> 0 | L4: =IFERROR(G4/E4*100,) -> 0 | M4: =IFERROR(G4/F4*100,) -> 0
A5: 2. | B5: DUGOTRAJNA IMOVINA | C5: =C6+C13+C23+C34+C39 -> 12296.7681 | D5: =D6+D13+D23+D34+D39 -> 12395.7689 | E5: =E6+E13+E23+E34+E39 -> 18497.025 | F5: 12232.602 | G5: 19752.51 | H5: =IFERROR(D5/C5*100,) -> 100.8050961 | I5: =IFERROR(F5/E5*100,) -> 66.13280784 | J5: =IFERROR(F5/D5*100,) -> 98.68368875 | K5: =IFERROR(E5/C5*100,) -> 150.4218413 | L5: =IFERROR(G5/E5*100,) -> 106.7874969 | M5: 161.4743127
A6: 2.1. | B6: Nematerijalna imovina | C6: =SUM(C7:C12) -> 17.334 | D6: =SUM(D7:D12) -> 255.323 | E6: =SUM(E7:E12) -> 39.763 | F6: 211.061 | G6: 195.3 | H6: 1472.960655 | I6: 530.797475 | J6: 82.66431148 | K6: 229.3931003 | L6: 491.1601237 | M6: 92.53249061
A7: 2.1.1. | B7: Izdaci za razvoj | H7: 0 | I7: 0 | J7: 0 | K7: 0 | L7: 0 | M7: 0
A8: 2.1.2. | B8: Koncesije, patenti, licencencije, robne i uslužne marke, softver i ostala prava | C8: 17.334 | D8: 255.323 | E8: 39.763 | F8: 211.061 | G8: 195.3 | H8: 1472.960655 | I8: 530.797475 | J8: 82.66431148 | K8: 229.3931003 | L8: 491.1601237 | M8: 92.53249061
A9: 2.1.3. | B9: Goodwill | H9: 0 | I9: 0 | J9: 0 | K9: 0 | L9: 0 | M9: 0
A10: 2.1.4. | B10: Predujmovi za nabavu nematerijalne imovine | H10: 0 | I10: 0 | J10: 0 | K10: 0 | L10: 0 | M10: 0
A11: 2.1.5. | B11: Nematerijalna imovina u pripremi | H11: 0 | I11: 0 | J11: 0 | K11: 0 | L11: 0 | M11: 0
A12: 2.1.6. | B12: Ostala nematerijalna imovina | H12: 0 | I12: 0 | J12: 0 | K12: 0 | L12: 0 | M12: 0
A13: 2.2. | B13: Materijalna imovina | C13: =SUM(C14:C22) -> 12270.2231 | D13: =SUM(D14:D22) -> 12131.2359 | E13: =SUM(E14:E22) -> 18448.052 | F13: =SUM(F14:F22) -> 12007.45 | G13: 19542.2 | H13: 98.86728058 | I13: 65.08790196 | J13: 98.97961015 | K13: 150.3481383 | L13: 105.9309677 | M13: 162.7506257
A14: 2.2.1. | B14: Zemljište | C14: 2030.6589 | D14: 2033.887 | E14: 2033.977 | F14: 2033.98 | G14: 2033.98 | H14: =IFERROR(D14/C14*100,) -> 100.1589681 | I14: =IFERROR(F14/E14*100,) -> 100.0001475 | J14: 100.0045725 | K14: =IFERROR(E14/C14*100,) -> 100.1634002 | L14: =IFERROR(G14/E14*100,) -> 100.0001475 | M14: 100
A15: 2.2.2. | B15: Građevinski objekti | C15: 8563.2755 | D15: 8280.651 | E15: 13560.4778 | F15: 8204.32 | G15: 16073.23 | H15: 96.69957483 | I15: 60.50170297 | J15: 99.07820049 | K15: 158.3562014 | L15: 118.529968 | M15: 195.9117879
A16: 2.2.3. | B16: Postrojenja i oprema | C16: 646.413 | D16: 695.694 | E16: 1285.1854 | F16: 689.25 | G16: 721.25 | H16: 107.6237638 | I16: 53.63039449 | J16: 99.07373069 | K16: 198.8180003 | L16: 56.12030762 | M16: 104.6427276
A17: 2.2.4. | B17: Alati, pogonski inventar i transportna imovina | C17: 371.6238 | D17: 473.9999 | E17: 755.1476 | F17: 423.25 | G17: 465.24 | H17: 127.5483163 | I17: 56.04864532 | J17: 89.29326778 | K17: 203.202163 | L17: 61.60914767 | M17: 109.9208506
A18: 2.2.5. | B18: Biološka imovina | H18: 0 | I18: 0 | J18: 0 | K18: 0 | L18: 0 | M18: 0
A19: 2.2.6. | B19: Predujmovi za materijalnu imovinu | H19: 0 | I19: 0 | J19: 0 | K19: 0 | L19: 0 | M19: 0
A20: 2.2.7. | B20: Materijalna imovina u pripremi | C20: 637.0694 | D20: 631.619 | E20: 744.8881 | F20: 641.25 | G20: 231.25 | H20: 99.14445742 | I20: 86.08675585 | J20: 101.5248116 | K20: 116.9241687 | L20: 31.04493145 | M20: 36.06237817
A21: 2.2.8. | B21: Ostala materijalna imovina | C21: 21.1825 | D21: 15.385 | E21: 68.3761 | F21: 15.4 | G21: 17.25 | H21: 72.63070931 | I21: 22.52248958 | J21: 100.0974976 | K21: 322.7952319 | L21: 25.22811333 | M21: 112.012987
A22: 2.2.9. | B22: Ulaganja u nekretnine | H22: 0 | I22: 0 | J22: 0 | K22: 0 | L22: 0 | M22: 0
A23: 2.3. | B23: Dugotrajna financijska imovina | C23: =SUM(C24:C33) -> 9.211 | D23: =SUM(D24:D33) -> 9.21 | E23: =SUM(E24:E33) -> 9.21 | F23: 14.091 | G23: 15.01 | H23: 99.98914342 | I23: 152.9967427 | J23: 152.9967427 | K23: 99.98914342 | L23: 162.9750271 | M23: 106.5218934
A24: 2.3.1. | B24: Ulaganja u udjele (dionice) poduzetnika unutar grupe | H24: 0 | I24: 0 | J24: 0 | K24: 0 | L24: 0 | M24: 0
A25: 2.3.2. | B25: Ulaganja u ostale vrijednosne papire poduzetnika unutar grupe | H25: 0 | I25: 0 | J25: 0 | K25: 0 | L25: 0 | M25: 0
A26: 2.3.3. | B26: Dani zajmovi, depoziti i slično poduzetnicima unutar grupe | H26: 0 | I26: 0 | J26: 0 | K26: 0 | L26: 0 | M26: 0
A27: 2.3.4. | B27: Ulaganja u udjele (dionice) društava povezanih sudjelujućim interesom | H27: 0 | I27: 0 | J27: 0 | K27: 0 | L27: 0 | M27: 0
A28: 2.3.5. | B28: Ulaganja u ostale vrijednosne papire društava povezanih sudjelujućim interesom | C28: 9.211 | D28: 9.21 | E28: 9.21 | F28: 14.091 | G28: 15.01 | H28: 99.98914342 | I28: 152.9967427 | J28: 152.9967427 | K28: 99.98914342 | L28: 162.9750271 | M28: 106.5218934
A29: 2.3.6. | B29: Dani zajmovi, depoziti i slično društvima povezanim sudjelujućim interesom | H29: 0 | I29: 0 | J29: 0 | K29: 0 | L29: 0 | M29: 0
A30: 2.3.7. | B30: Ulaganja u vrijednosne papire | H30: 0 | I30: 0 | J30: 0 | K30: 0 | L30: 0 | M30: 0
A31: 2.3.8. | B31: Dani zajmovi, depoziti i slično | D31: 0 | H31: 0 | I31: 0 | J31: 0 | K31: 0 | L31: 0 | M31: 0
A32: 2.3.9. | B32: Ostala ulaganja koja se obračunavaju metodom udjela | H32: 0 | I32: 0 | J32: 0 | K32: 0 | L32: 0 | M32: 0
A33: 2.3.10. | B33: Ostala dugotrajna financijska imovina | H33: 0 | I33: 0 | J33: 0 | K33: 0 | L33: 0 | M33: 0
A34: 2.4. | B34: Potraživanja | C34: =SUM(C35:C38) -> 0 | D34: =SUM(D35:D38) -> 0 | E34: =SUM(E35:E38) -> 0 | F34: 0 | G34: 0 | H34: 0 | I34: 0 | J34: 0 | K34: 0 | L34: 0 | M34: 0
A35: 2.4.1. | B35: Potraživanja od poduzetnika unutar grupe | H35: 0 | I35: 0 | J35: 0 | K35: 0 | L35: 0 | M35: 0
A36: 2.4.2. | B36: Potraživanja od društava povezanih sudjelujućim interesom | H36: 0 | I36: 0 | J36: 0 | K36: 0 | L36: 0 | M36: 0
A37: 2.4.3. | B37: Potraživanja od kupaca | H37: 0 | I37: 0 | J37: 0 | K37: 0 | L37: =IFERROR(G37/E37*100,) -> 0 | M37: =IFERROR(G37/F37*100,) -> 0
A38: 2.4.4. | B38: Ostala potraživanja | H38: 0 | I38: 0 | J38: 0 | K38: 0 | L38: 0 | M38: 0
A39: 2.5. | B39: Odgođena porezna imovina | H39: 0 | I39: 0 | J39: 0 | K39: 0 | L39: 0 | M39: 0
A40: 3. | B40: KRATKOTRAJNA IMOVINA | C40: =C41+C49+C56+C66 -> 1029.9271 | D40: =D41+D49+D56+D66 -> 1085.4234 | E40: =E41+E49+E56+E66 -> 932.3476 | F40: 741.384 | G40: 657.33 | H40: 105.3883717 | I40: 79.51798235 | J40: 68.30366841 | K40: 90.52559157 | L40: 70.50267518 | M40: 88.66255544
A41: 3.1. | B41: Zalihe | C41: =SUM(C42:C48) -> 26.5421 | D41: =SUM(D42:D48) -> 33.2504 | E41: =SUM(E42:E48) -> 35.6436 | F41: 37.238 | G41: 36.499 | H41: 125.274187 | I41: 104.4731733 | J41: 111.9926377 | K41: 134.2908059 | L41: 102.3998698 | M41: 98.01546807
A42: 3.1.1. | B42: Sirovine i materijal | C42: 23.755 | D42: 28.821 | E42: 27.813 | F42: 32.008 | G42: 30.789 | H42: 121.3260366 | I42: 115.0828749 | J42: 111.0579092 | K42: 117.0827194 | L42: 110.7000324 | M42: 96.19157711
A43: 3.1.2. | B43: Proizvodnja u tijeku | H43: 0 | I43: 0 | J43: 0 | K43: 0 | L43: 0 | M43: 0
A44: 3.1.3. | B44: Gotovi proizvodi | H44: 0 | I44: 0 | J44: 0 | K44: 0 | L44: 0 | M44: 0
A45: 3.1.4. | B45: Trgovačka roba | C45: 2.7871 | D45: 4.4294 | E45: 7.8306 | F45: 5.23 | G45: 5.71 | H45: 158.9250475 | I45: 66.78926264 | J45: 118.0746828 | K45: 280.9587026 | L45: 72.91906112 | M45: 109.1778203
A46: 3.1.5. | B46: Predujmovi za zalihe | H46: 0 | I46: 0 | J46: 0 | K46: 0 | L46: 0 | M46: 0
A47: 3.1.6. | B47: Dugotrajna imovina namijenjena prodaji | C47: 0 | D47: 0 | E47: 0 | H47: 0 | I47: 0 | J47: 0 | K47: 0 | L47: 0 | M47: 0
A48: 3.1.7. | B48: Biološka imovina | H48: 0 | I48: 0 | J48: 0 | K48: 0 | L48: 0 | M48: 0
A49: 3.2. | B49: Potraživanja | C49: 273.41 | D49: =SUM(D50:D54) -> 281.245 | E49: =SUM(E50:E54) -> 272.907 | F49: =SUM(F50:F54) -> 403.353 | G49: =SUM(G50:G54) -> 268.83 | H49: 102.8656596 | I49: 147.7987007 | J49: 143.4169496 | K49: 99.81602721 | L49: 98.50608449 | M49: 66.6488163
A50: 3.2.1. | B50: Potraživanja od poduzetnika unutar grupe | C50: 176.521 | D50: 118.004 | E50: 111.085 | F50: 151.859 | G50: 123.764 | H50: 66.84983656 | I50: 136.7052257 | J50: 128.6897054 | K50: 62.93018961 | L50: 111.4137822 | M50: 81.49928552
A51: 3.2.2. | B51: Potraživanja od društava povezanih sudjelujućim interesom | H51: =IFERROR(#REF!/#REF!*100,) -> 0 | I51: =IFERROR(#REF!/#REF!*100,) -> 0 | J51: =IFERROR(#REF!/#REF!*100,) -> 0 | K51: =IFERROR(#REF!/#REF!*100,) -> 0 | L51: =IFERROR(#REF!/#REF!*100,) -> 0 | M51: =IFERROR(#REF!/#REF!*100,) -> 0
A52: 3.2.3. | B52: Potraživanja od kupaca | C52: 80.961 | D52: 116.221 | E52: 96.596 | F52: 186.862 | G52: 103.524 | H52: =IFERROR(D51/C51*100,) -> 0 | I52: =IFERROR(F51/E51*100,) -> 0 | J52: =IFERROR(F51/D51*100,) -> 0 | K52: =IFERROR(E51/C51*100,) -> 0 | L52: =IFERROR(G51/E51*100,) -> 0 | M52: =IFERROR(G51/F51*100,) -> 0
A53: 3.2.4. | B53: Potraživanja od zaposlenika i članova poduzetnika | C53: 15.927 | D53: 47.02 | E53: 65.226 | F53: 64.632 | G53: 41.542 | H53: =IFERROR(D52/C52*100,) -> 143.5518336 | I53: =IFERROR(F52/E52*100,) -> 193.4469336 | J53: =IFERROR(F52/D52*100,) -> 160.7816143 | K53: =IFERROR(E52/C52*100,) -> 119.3117674 | L53: =IFERROR(G52/E52*100,) -> 107.1721396 | M53: =IFERROR(G52/F52*100,) -> 55.4013122
A54: 3.2.5. | B54: Potraživanja od države i drugih institucija | H54: =IFERROR(D53/C53*100,) -> 295.2219501 | I54: =IFERROR(F53/E53*100,) -> 99.08932021 | J54: =IFERROR(F53/D53*100,) -> 137.4564015 | K54: =IFERROR(E53/C53*100,) -> 409.5309851 | L54: =IFERROR(G53/E53*100,) -> 63.68932634 | M54: =IFERROR(G53/F53*100,) -> 64.27466271
A55: 3.2.6. | B55: Ostala potraživanja | H55: =IFERROR(#REF!/#REF!*100,) -> 0 | I55: =IFERROR(#REF!/#REF!*100,) -> 0 | J55: =IFERROR(#REF!/#REF!*100,) -> 0 | K55: =IFERROR(#REF!/#REF!*100,) -> 0 | L55: =IFERROR(#REF!/#REF!*100,) -> 0 | M55: =IFERROR(#REF!/#REF!*100,) -> 0
A56: 3.3. | B56: Kratkotrajna financijska imovina | C56: =SUM(C57:C65) -> 0 | D56: =SUM(D57:D65) -> 0 | E56: =SUM(E57:E65) -> 0 | F56: 0 | G56: 0 | H56: 0 | I56: 0 | J56: 0 | K56: 0 | L56: 0 | M56: 0
A57: 3.3.1. | B57: Ulaganja u udjele (dionice) poduzetnika unutar grupe | H57: 0 | I57: 0 | J57: 0 | K57: 0 | L57: 0 | M57: 0
A58: 3.3.2. | B58: Ulaganja u ostale vrijednosne papire poduzetnika unutar grupe | H58: 0 | I58: 0 | J58: 0 | K58: 0 | L58: 0 | M58: 0
A59: 3.3.3. | B59: Dani zajmovi, depoziti i slično poduzetnicima unutar grupe | H59: 0 | I59: 0 | J59: 0 | K59: 0 | L59: 0 | M59: 0
A60: 3.3.4. | B60: Ulaganja u udjele (dionice) društava povezanih sudjelujućim interesom | H60: 0 | I60: 0 | J60: 0 | K60: 0 | L60: 0 | M60: 0
A61: 3.3.5. | B61: Ulaganja u ostale vrijednosne papire društava povezanih sudjelujućim interesom | H61: 0 | I61: 0 | J61: 0 | K61: 0 | L61: 0 | M61: 0
A62: 3.3.6. | B62: Dani zajmovi, depoziti i slično društvima povezanim sudjelujućim interesom | H62: 0 | I62: 0 | J62: 0 | K62: 0 | L62: 0 | M62: 0
A63: 3.3.7. | B63: Ulaganja u vrijednosne papire | H63: 0 | I63: 0 | J63: 0 | K63: 0 | L63: 0 | M63: 0
A64: 3.3.8. | B64: Dani zajmovi, depoziti i slično | H64: 0 | I64: 0 | J64: 0 | K64: 0 | L64: 0 | M64: 0
A65: 3.3.9. | B65: Ostala financijska imovina | H65: 0 | I65: 0 | J65: 0 | K65: 0 | L65: 0 | M65: 0
A66: 3.4. | B66: Novac u banci i blagajni | C66: 729.975 | D66: 770.928 | E66: 623.797 | F66: 300.793 | G66: 352.001 | H66: 105.6101921 | I66: 48.21969327 | J66: 39.01700288 | K66: 85.45457036 | L66: 56.4287741 | M66: 117.0243323
A67: 4. | B67: PLAĆENI TROŠKOVI BUDUĆEG RAZDOBLJA I OBRAČUNATI PRIHODI | H67: 0 | I67: 0 | J67: 0 | K67: 0 | L67: 0 | M67: 0
A68: 5. | B68: UKUPNA AKTIVA | C68: =C4+C5+C40+C67 -> 13326.6952 | D68: =D4+D5+D40+D67 -> 13481.1923 | E68: =E4+E5+E40+E67 -> 19429.3726 | F68: 12973.986 | G68: 20409.84 | H68: 101.1593054 | I68: 66.77511553 | J68: 96.23767476 | K68: 145.7928789 | L68: 105.0463153 | M68: 157.3135658
A69: 6. | B69: IZVANBILANČNI ZAPISI | H69: =IFERROR(D69/C69*100,) -> 0 | I69: =IFERROR(F69/E69*100,) -> 0 | J69: =IFERROR(F69/D69*100,) -> 0 | K69: =IFERROR(E69/C69*100,) -> 0 | L69: 0 | M69: 0
C73: I Z N O S (u 000 kn) | H73: ="Indeks "& RIGHT(LEFT(Podloga!C36,7),5) &" / "& RIGHT(LEFT(Podloga!B36,7),5) -> Indeks 22. o / 22. p | I73: ="Indeks "& RIGHT(LEFT(Podloga!E36,8),6) &" / "& RIGHT(LEFT(Podloga!D36,8),6) -> Indeks 23. pr / 23. pl | J73: ="Indeks "& RIGHT(LEFT(Podloga!E36,8),6) &" / "& RIGHT(LEFT(Podloga!C36,7),5) -> Indeks 23. pr / 22. o | K73: ="Indeks "& RIGHT(LEFT(Podloga!D36,8),6) &" / "& RIGHT(LEFT(Podloga!B36,8),6) -> Indeks 23. pl / 22. pl | L73: ="Indeks "& RIGHT(LEFT(Podloga!F36,8),6) &" / "& RIGHT(LEFT(Podloga!D36,8),6) -> Indeks 24. pl / 23. pl | M73: ="Indeks "& RIGHT(LEFT(Podloga!F36,8),6) &" / "& RIGHT(LEFT(Podloga!E36,8),6) -> Indeks 24. pl / 23. pr
B74: P A S I V A | C74: =Podloga!B36 -> 2022. planirano | D74: =Podloga!C36 -> 2022. ostvareno | E74: =Podloga!D36 -> 2023. planirano | F74: =Podloga!E36 -> 2023. procijenjeno | G74: =Podloga!F36 -> 2024. planirano
A75: 1. | B75: KAPITAL I REZERVE | C75: =SUM(C76:C78,C84,C85,C89,C92,C95) -> 1925.542 | D75: =SUM(D76:D78,D84,D85,D89,D92,D95) -> 1532.155 | E75: =SUM(E76:E78,E84,E85,E89,E92,E95) -> 1495.614 | F75: 904.605 | G75: 909.625 | H75: =IFERROR(D75/C75*100,) -> 79.57006391 | I75: =IFERROR(F75/E75*100,) -> 60.48385479 | J75: =IFERROR(F75/D75*100,) -> 59.04135026 | K75: =IFERROR(E75/C75*100,) -> 77.67236446 | L75: =IFERROR(G75/E75*100,) -> 60.81950289 | M75: =IFERROR(G75/F75*100,) -> 100.5549383
A76: 1.1. | B76: Temeljni (upisani) kapital | C76: 3478.399 | D76: 3478.399 | E76: 3478.4 | F76: 3478.4 | G76: 3478.4 | H76: =IFERROR(D76/C76*100,) -> 100 | I76: =IFERROR(F76/E76*100,) -> 100 | J76: =IFERROR(F76/D76*100,) -> 100.0000287 | K76: =IFERROR(E76/C76*100,) -> 100.0000287 | L76: =IFERROR(G76/E76*100,) -> 100 | M76: =IFERROR(G76/F76*100,) -> 100
A77: 1.2. | B77: Kapitalne rezerve | H77: 0 | I77: 0 | J77: 0 | K77: 0 | L77: 0 | M77: 0
A78: 1.3. | B78: Rezerve iz dobiti | C78: =SUM(C79:C83) -> 0 | D78: =SUM(D79:D83) -> 0 | E78: =SUM(E79:E83) -> 0 | F78: 0 | G78: 0 | H78: 0 | I78: 0 | J78: 0 | K78: 0 | L78: 0 | M78: 0
A79: 1.3.1. | B79: Zakonske rezerve | H79: 0 | I79: 0 | J79: 0 | K79: 0 | L79: 0 | M79: 0
A80: 1.3.2. | B80: Rezerve za vlastite dionice | H80: 0 | I80: 0 | J80: 0 | K80: 0 | L80: 0 | M80: 0
A81: 1.3.3. | B81: Vlastite dionice i udjeli (odbitna stavka) | H81: 0 | I81: 0 | J81: 0 | K81: 0 | L81: 0 | M81: 0
A82: 1.3.4. | B82: Statutarne rezerve | H82: 0 | I82: 0 | J82: 0 | K82: 0 | L82: 0 | M82: 0
A83: 1.3.5. | B83: Ostale rezerve | H83: 0 | I83: 0 | J83: 0 | K83: 0 | L83: 0 | M83: 0
A84: 1.4. | B84: Revalorizacijske rezerve | H84: 0 | I84: 0 | J84: 0 | K84: 0 | L84: 0 | M84: 0
A85: 1.5. | B85: Rezerve fer vrijednosti | C85: =SUM(C86:C88) -> 0 | D85: =SUM(D86:D88) -> 0 | E85: =SUM(E86:E88) -> 0 | F85: 0 | G85: 0 | H85: 0 | I85: 0 | J85: 0 | K85: 0 | L85: 0 | M85: 0
A86: 1.5.1. | B86: Fer vrijednost financijske imovine raspoložive za prodaju | H86: 0 | I86: 0 | J86: 0 | K86: 0 | L86: 0 | M86: 0
A87: 1.5.2. | B87: Učinkoviti dio zaštite novčanih tokova | H87: 0 | I87: 0 | J87: 0 | K87: 0 | L87: 0 | M87: 0
A88: 1.5.3. | B88: Učinkoviti dio zaštite neto ulaganja u inozemstvu | H88: 0 | I88: 0 | J88: 0 | K88: 0 | L88: 0 | M88: 0
A89: 1.6. | B89: Zadržana dobit ili preneseni gubitak | C89: =C90-ABS(C91) -> -1564.522 | D89: =D90-ABS(D91) -> -1589.864 | E89: -1988.033 | F89: -1946.244 | G89: -2573.795 | H89: 101.6197919 | I89: 97.89797252 | J89: 122.4157538 | K89: 127.0696737 | L89: 129.4644002 | M89: 132.2442099
A90: 1.6.1. | B90: Zadržana dobit | H90: 0 | I90: 0 | J90: 0 | K90: 0 | L90: 0 | M90: 0
A91: 1.6.2. | B91: Preneseni gubitak | C91: 1564.522 | D91: 1589.864 | E91: 1988.033 | F91: 1946.244 | G91: 2573.795 | H91: 101.6197919 | I91: 97.89797252 | J91: 122.4157538 | K91: 127.0696737 | L91: 129.4644002 | M91: 132.2442099
A92: 1.7. | B92: Dobit ili gubitak poslovne godine | C92: =C93-ABS(C94) -> 11.665 | D92: =D93-ABS(D94) -> -356.38 | E92: 5.247 | F92: -627.551 | G92: 5.02 | H92: -3055.12216 | I92: -11960.18677 | J92: 176.0904091 | K92: 44.98071153 | L92: 95.67371832 | M92: -0.7999349854
A93: 1.7.1. | B93: Dobit poslovne godine | C93: 11.665 | E93: 5.247 | G93: 5.02 | H93: 0 | I93: 0 | J93: 0 | K93: 44.98071153 | L93: 95.67371832 | M93: 0
A94: 1.7.2. | B94: Gubitak poslovne godine | D94: -356.38 | F94: -627.551 | H94: 0 | I94: 0 | J94: 176.0904091 | K94: 0 | L94: 0 | M94: 0
A95: 1.8. | B95: Manjinski (nekontrolirajući) interes | H95: 0 | I95: 0 | J95: 0 | K95: 0 | L95: 0 | M95: 0
A96: 2. | B96: REZERVIRANJA | C96: =SUM(C97:C102) -> 21.24 | D96: =SUM(D97:D102) -> 6.44 | E96: =SUM(E97:E102) -> 39.44 | F96: 6.44 | G96: 0 | H96: 30.32015066 | I96: 16.32860041 | J96: 100 | K96: 185.6873823 | L96: 0 | M96: 0
A97: 2.1. | B97: Rezerviranja za mirovine, otpremnine i slične obveze | H97: 0 | I97: 0 | J97: 0 | K97: 0 | L97: 0 | M97: 0
A98: 2.2. | B98: Rezerviranja za porezne obveze | H98: 0 | I98: 0 | J98: 0 | K98: 0 | L98: 0 | M98: 0
A99: 2.3. | B99: Rezerviranja za započete sudske sporove | H99: 0 | I99: 0 | J99: 0 | K99: 0 | L99: 0 | M99: 0
A100: 2.4. | B100: Rezerviranja za troškove obnavljanja prirodnih bogatstava | H100: 0 | I100: 0 | J100: 0 | K100: 0 | L100: 0 | M100: 0
A101: 2.5. | B101: Rezerviranja za troškove u jamstvenim rokovima | H101: 0 | I101: 0 | J101: 0 | K101: 0 | L101: 0 | M101: 0
A102: 2.6. | B102: Druga rezerviranja | C102: 21.24 | D102: 6.44 | E102: 39.44 | F102: 6.44 | G102: 0 | H102: 30.32015066 | I102: 16.32860041 | J102: 100 | K102: 185.6873823 | L102: 0 | M102: 0
A103: 3. | B103: DUGOROČNE OBVEZE | C103: =SUM(C104:C114) -> 2919.902 | D103: =SUM(D104:D114) -> 2778.482 | E103: =SUM(E104:E114) -> 2964.391 | F103: 2799.417 | G103: 2799.417 | H103: 95.15668677 | I103: 94.43480971 | J103: 100.753469 | K103: 101.523647 | L103: 94.43480971 | M103: 100
A104: 3.1. | B104: Obveze prema poduzetnicima unutar grupe | H104: 0 | I104: 0 | J104: 0 | K104: 0 | L104: 0 | M104: 0
A105: 3.2. | B105: Obveze za zajmove, depozite i slično poduzetnika unutar grupe | H105: 0 | I105: 0 | J105: 0 | K105: 0 | L105: 0 | M105: 0
A106: 3.3. | B106: Obveze prema društvima povezanim sudjelujućim interesom | H106: 0 | I106: 0 | J106: 0 | K106: 0 | L106: 0 | M106: 0
A107: 3.4. | B107: Obveze za zajmove, depozite i slično društava povezanih sudjelujućim interesom | H107: 0 | I107: 0 | J107: 0 | K107: 0 | L107: 0 | M107: 0
A108: 3.5. | B108: Obveze za zajmove, depozite i slično | H108: 0 | I108: 0 | J108: 0 | K108: 0 | L108: 0 | M108: 0
A109: 3.6. | B109: Obveze prema bankama i drugim financijskim institucijama | C109: 2919.902 | D109: 2743.479 | E109: 2964.391 | F109: 2799.417 | G109: 2799.417 | H109: 93.95791366 | I109: 94.43480971 | J109: 102.038944 | K109: 101.523647 | L109: 94.43480971 | M109: 100
A110: 3.7. | B110: Obveze za predujmove | H110: 0 | I110: 0 | J110: 0 | K110: 0 | L110: 0 | M110: 0
A111: 3.8. | B111: Obveze prema dobavljačima | H111: 0 | I111: 0 | J111: 0 | K111: 0 | L111: 0 | M111: 0
A112: 3.9. | B112: Obveze po vrijednosnim papirima | H112: 0 | I112: 0 | J112: 0 | K112: 0 | L112: 0 | M112: 0
A113: 3.10. | B113: Ostale dugoročne obveze | D113: 35.003 | H113: 0 | I113: 0 | J113: 0 | K113: 0 | L113: 0 | M113: 0
A114: 3.11. | B114: Odgođena porezna obveza | H114: 0 | I114: 0 | J114: 0 | K114: 0 | L114: 0 | M114: 0
A115: 4. | B115: KRATKOROČNE OBVEZE | C115: =SUM(C116:C129) -> 8460.017 | D115: =SUM(D116:D129) -> 9164.112 | E115: =SUM(E116:E129) -> 14929.929 | F115: 9263.523 | G115: 16700.799 | H115: 108.3226192 | I115: 62.04666479 | J115: 101.084786 | K115: 176.4763475 | L115: 111.8612084 | M115: 180.2856106
A116: 4.1. | B116: Obveze prema poduzetnicima unutar grupe | H116: 0 | I116: 0 | J116: 0 | K116: 0 | L116: 0 | M116: 0
A117: 4.2. | B117: Obveze za zajmove, depozite i slično poduzetnika unutar grupe | H117: 0 | I117: 0 | J117: 0 | K117: 0 | L117: 0 | M117: 0
A118: 4.3. | B118: Obveze prema društvima povezanim sudjelujućim interesom | H118: 0 | I118: 0 | J118: 0 | K118: 0 | L118: 0 | M118: 0
A119: 4.4. | B119: Obveze za zajmove, depozite i slično društava povezanih sudjelujućim interesom | H119: 0 | I119: 0 | J119: 0 | K119: 0 | L119: 0 | M119: 0
A120: 4.5. | B120: Obveze za zajmove, depozite i slično | H120: 0 | I120: 0 | J120: 0 | K120: 0 | L120: 0 | M120: 0
A121: 4.6. | B121: Obveze prema bankama i drugim financijskim institucijama | C121: 112.814 | D121: 277.402 | E121: 93.807 | F121: 301.203 | G121: 15.263 | H121: 245.8932402 | I121: 321.0879785 | J121: 108.579967 | K121: 83.15191377 | L121: 16.27064078 | M121: 5.067346607
A122: 4.7. | B122: Obveze za predujmove | C122: 1.327 | D122: 13.028 | E122: 1.202 | F122: 14.051 | G122: 1.991 | H122: 981.763376 | I122: 1168.968386 | J122: 107.8523181 | K122: 90.58025622 | L122: 165.640599 | M122: 14.16980998
A123: 4.8. | B123: Obveze prema dobavljačima | C123: 223.24 | D123: 215.82 | E123: 331.807 | F123: 210.433 | G123: 269.825 | H123: 96.6762229 | I123: 63.42030156 | J123: 97.50393847 | K123: 148.6324135 | L123: 81.31986366 | M123: 128.2237102
A124: 4.9. | B124: Obveze po vrijednosnim papirima | H124: 0 | I124: 0 | J124: 0 | K124: 0 | L124: 0 | M124: 0
A125: 4.10. | B125: Obveze prema zaposlenicima | C125: 46.453 | D125: 52.239 | E125: 79.551 | F125: 55.893 | G125: 81.654 | H125: 112.4556003 | I125: 70.26058755 | J125: 106.994774 | K125: 171.2505113 | L125: 102.6435871 | M125: 146.0898502
A126: 4.11. | B126: Obveze za poreze, doprinose i slična davanja | C126: 23.89 | D126: 25.263 | E126: 24.076 | F126: 16.361 | G126: 26.213 | H126: 105.7471746 | I126: 67.95564047 | J126: 64.76269643 | K126: 100.7785684 | L126: 108.8760591 | M126: 160.2163682
A127: 4.12. | B127: Obveze s osnove udjela u rezultatu | H127: 0 | I127: 0 | J127: 0 | K127: 0 | L127: 0 | M127: 0
A128: 4.13. | B128: Obveze po osnovi dugotrajne imovine namijenjene prodaji | H128: 0 | I128: 0 | J128: 0 | K128: 0 | L128: 0 | M128: 0
A129: 4.14. | B129: Ostale kratkoročne obveze | C129: 8052.293 | D129: 8580.36 | E129: 14399.486 | F129: 8665.582 | G129: 16305.853 | H129: 106.5579705 | I129: 60.17980086 | J129: 100.9932217 | K129: 178.8246652 | L129: 113.2391323 | M129: 188.1680076
A130: 5. | B130: ODGOĐENO PLAĆANJE TROŠKOVA I PRIHOD BUDUĆEG RAZDOBLJA | H130: 0 | I130: 0 | J130: 0 | K130: 0 | L130: 0 | M130: 0
A131: 6. | B131: UKUPNA PASIVA | C131: =C75+C96+C103+C115+C130 -> 13326.701 | D131: =D75+D96+D103+D115+D130 -> 13481.189 | E131: =E75+E96+E103+E115+E130 -> 19429.374 | F131: 12973.985 | G131: 20409.841 | H131: 101.1592366 | I131: 66.77510557 | J131: 96.2376909 | K131: 145.792826 | L131: 105.0463129 | M131: 157.3135856
A132: 7. | B132: IZVANBILANČNI ZAPISI | H132: 0 | I132: 0 | J132: 0 | K132: 0 | L132: 0 | M132: 0
A133: * DODATAK IZVJEŠTAJU O FINANCIJSKOM POLOŽAJU (popunjava trgovačko društvo koje sastavlja konsolidirani godišnji financijski izvještaj)
A134: 8. | B134: KAPITAL I REZERVE | C134: =IF(C135+C136=C75,C75,"Neodgovarajuća raspodjela") -> Neodgovarajuća raspodjela | D134: Neodgovarajuća raspodjela | E134: =IF(E135+E136=E75,E75,"Neodgovarajuća raspodjela") -> Neodgovarajuća raspodjela | F134: =IF(F135+F136=F75,F75,"Neodgovarajuća raspodjela") -> Neodgovarajuća raspodjela | G134: =IF(G135+G136=G75,G75,"Neodgovarajuća raspodjela") -> Neodgovarajuća raspodjela | H134: =IFERROR(D134/C134*100,) -> 0 | I134: =IFERROR(F134/E134*100,) -> 0 | J134: =IFERROR(F134/D134*100,) -> 0 | K134: =IFERROR(E134/C134*100,) -> 0 | L134: =IFERROR(G134/E134*100,) -> 0 | M134: =IFERROR(G134/F134*100,) -> 0
A135: 8.1. | B135: Pripisano imateljima kapitala matice | H135: =IFERROR(D135/C135*100,) -> 0 | I135: =IFERROR(F135/E135*100,) -> 0 | J135: =IFERROR(F135/D135*100,) -> 0 | K135: =IFERROR(E135/C135*100,) -> 0 | L135: =IFERROR(G135/E135*100,) -> 0 | M135: =IFERROR(G135/F135*100,) -> 0
A136: 8.2. | B136: Pripisano manjinskom interesu | H136: 0 | I136: 0 | J136: 0 | K136: 0 | L136: 0 | M136: 0
A138: * | B138: Napomena 1: Dodatak izvještaju o financijskom položaju popunjavaju trgovačka društva koja sastavljaju konsolidirane godišnje financijske izvještaje
B139: Napomena 2: Prilikom razvrstavanja trgovačkih društva, sukladno članku 3. Zakona o računovodstvu, ne uzima se u zbroju aktive iznos gubitka iznad kapitala

Sheet RDG
A1: RAČUN DOBITI I GUBITKA | C1: =IF(C83>0,"Sveobuhvatna dobit razdoblja",IF(C83=0,"Stagnacija u razdoblju","Sveobuhvatni gubitak razdoblja")) -> Sveobuhvatna dobit razdoblja | D1: Sveobuhvatni gubitak razdoblja | E1: Sveobuhvatna dobit razdoblja | F1: Sveobuhvatni gubitak razdoblja | G1: Sveobuhvatna dobit razdoblja
A2: Obveznik: | B2: =IF(ISBLANK(Podloga!B2),"",Podloga!B2) -> Zračna luka Osijek d.o.o. | C2: za razdoblje od 1. siječnja do 31. prosinca
C3: I Z N O S (u 000 kn) | H3: ="Indeks "& RIGHT(LEFT(Podloga!C36,7),5) &" / "& RIGHT(LEFT(Podloga!B36,8),6) -> Indeks 22. o / 22. pl | I3: ="Indeks "& RIGHT(LEFT(Podloga!E36,8),6) &" / "& RIGHT(LEFT(Podloga!D36,8),6) -> Indeks 23. pr / 23. pl | J3: ="Indeks "& RIGHT(LEFT(Podloga!E36,8),6) &" / "& RIGHT(LEFT(Podloga!C36,7),5) -> Indeks 23. pr / 22. o | K3: ="Indeks "& RIGHT(LEFT(Podloga!D36,8),6) &" / "& RIGHT(LEFT(Podloga!B36,8),6) -> Indeks 23. pl / 22. pl | L3: ="Indeks "& RIGHT(LEFT(Podloga!F36,8),6) &" / "& RIGHT(LEFT(Podloga!D36,8),6) -> Indeks 24. pl / 23. pl | M3: ="Indeks "& RIGHT(LEFT(Podloga!F36,8),6) &" / "& RIGHT(LEFT(Podloga!E36,8),6) -> Indeks 24. pl / 23. pr
C4: =Podloga!B36 -> 2022. planirano | D4: =Podloga!C36 -> 2022. ostvareno | E4: =Podloga!D36 -> 2023. planirano | F4: =Podloga!E36 -> 2023. procijenjeno | G4: =Podloga!F36 -> 2024. planirano
A5: 1. | B5: POSLOVNI PRIHODI | C5: =SUM(C6:C10) -> 2007.445 | D5: =SUM(D6:D10) -> 2450.167 | E5: =SUM(E6:E10) -> 2131.827 | F5: 2803.972 | G5: 3445.894 | H5: =IFERROR(D5/C5*100,) -> 122.054004 | I5: =IFERROR(F5/E5*100,) -> 131.5290593 | J5: =IFERROR(F5/D5*100,) -> 114.4400361 | K5: =IFERROR(E5/C5*100,) -> 106.1960353 | L5: =IFERROR(G5/E5*100,) -> 161.6404145 | M5: =IFERROR(G5/F5*100,) -> 122.8933099
A6: 1.1. | B6: Prihodi od prodaje s poduzetnicima unutar grupe | H6: =IFERROR(D6/C6*100,) -> 0 | I6: =IFERROR(F6/E6*100,) -> 0 | J6: =IFERROR(F6/D6*100,) -> 0 | K6: =IFERROR(E6/C6*100,) -> 0 | L6: =IFERROR(G6/E6*100,) -> 0 | M6: =IFERROR(G6/F6*100,) -> 0
A7: 1.2. | B7: Prihodi od prodaje | C7: 584.656 | D7: 656.057 | E7: 693.112 | F7: 1138.078 | G7: 1276.894 | H7: 112.2124805 | I7: 164.1982825 | J7: 173.4724269 | K7: 118.5503954 | L7: 184.2262145 | M7: 112.1974065
A8: 1.3. | B8: Prihodi na temelju upotrebe vlastitih proizvoda, robe i usluga | H8: 0 | I8: 0 | J8: 0 | K8: 0 | L8: 0 | M8: 0
A9: 1.4. | B9: Ostali poslovni prihodi s poduzetnicima unutar grupe | H9: 0 | I9: 0 | J9: 0 | K9: 0 | L9: 0 | M9: 0
A10: 1.5. | B10: Ostali poslovni prihodi | C10: 1422.789 | D10: 1794.11 | E10: 1438.715 | F10: 1665.894 | G10: 2169 | H10: 126.0981073 | I10: 115.7904102 | J10: 92.85350397 | K10: 101.1193508 | L10: 150.7595319 | M10: 130.2003609
A11: 2. | B11: POSLOVNI RASHODI | C11: =C12+C13+C17+C21+C22+C23+C26+C33 -> 1928.089 | D11: =D12+D13+D17+D21+D22+D23+D26+D33 -> 2735.358 | E11: =E12+E13+E17+E21+E22+E23+E26+E33 -> 2065.712 | F11: 3384.926 | G11: 3378.614 | H11: 141.868866 | I11: 163.8624358 | J11: 123.7470927 | K11: 107.1377929 | L11: 163.5568753 | M11: 99.8135262
A12: 2.1. | B12: Promjene vrijednosti zaliha proizvodnje u tijeku i gotovih proizvoda | H12: 0 | I12: 0 | J12: 0 | K12: 0 | L12: 0 | M12: 0
A13: 2.2. | B13: Materijalni troškovi | C13: =SUM(C14:C16) -> 530.519 | D13: =SUM(D14:D16) -> 1492.082 | E13: 736.45 | F13: 1801.235 | G13: 1423.35 | H13: 281.2494934 | I13: 244.5834748 | J13: 120.7195717 | K13: 138.8168944 | L13: 193.2717768 | M13: 79.02078296
A14: 2.2.1. | B14: Troškovi sirovina i materijala | C14: 145.995 | D14: 226.188 | E14: 174.53 | F14: 376.526 | G14: 383.5 | H14: 154.9285934 | I14: 215.7371226 | J14: 166.4659487 | K14: 119.5451899 | L14: 219.7329972 | M14: 101.8521961
A15: 2.2.2. | B15: Troškovi prodane robe | C15: 11.945 | D15: 13.838 | E15: 31.601 | F15: 40.239 | G15: 33.65 | H15: 115.847635 | I15: 127.334578 | J15: 290.7862408 | K15: 264.5542068 | L15: 106.483972 | M15: 83.6253386
A16: 2.2.3. | B16: Ostali vanjski troškovi | C16: 372.579 | D16: 1252.056 | E16: 530.319 | F16: 1384.47 | G16: 1006.2 | H16: 336.0511462 | I16: 261.063624 | J16: 110.575725 | K16: 142.3373298 | L16: 189.7348577 | M16: 72.67763115
A17: 2.3. | B17: Troškovi osoblja | C17: =SUM(C18:C20) -> 769.792 | D17: =SUM(D18:D20) -> 744.925 | E17: 877.529 | F17: 841.779 | G17: 981.454 | H17: 96.76964687 | I17: 95.92606056 | J17: 113.0018458 | K17: 113.9955988 | L17: 111.8429135 | M17: 116.5928349
A18: 2.3.1. | B18: Neto plaće i nadnice | C18: 508.328 | D18: 479.329 | E18: 560.564 | F18: 532.214 | G18: 635.8 | H18: 94.29521884 | I18: 94.94259353 | J18: 111.0331317 | K18: 110.2760422 | L18: 113.4214826 | M18: 119.4632234
A19: 2.3.2. | B19: Troškovi poreza i doprinosa iz plaća | C19: 168.823 | D19: 166.434 | E19: 187.568 | F19: 197.921 | G19: 202.154 | H19: 98.58490845 | I19: 105.5195982 | J19: 118.9186104 | K19: 111.1033449 | L19: 107.7763798 | M19: 102.1387321
A20: 2.3.3. | B20: Doprinosi na plaće | C20: 92.641 | D20: 99.162 | E20: 129.397 | F20: 111.644 | G20: 143.5 | H20: 107.039 | I20: 86.28020742 | J20: 112.5874831 | K20: 139.6757375 | L20: 110.8990162 | M20: 128.5335531
A21: 2.4. | B21: Amortizacija | C21: 291.99 | D21: 303.832 | E21: 289.336 | F21: 371.362 | G21: 425 | H21: 104.0556183 | I21: 128.3497387 | J21: 122.2260986 | K21: 99.09106476 | L21: 146.8880471 | M21: 114.4435887
A22: 2.5. | B22: Ostali troškovi | C22: 258.809 | D22: 181.758 | E22: 160.818 | F22: 146.448 | G22: 285.39 | H22: 70.2286242 | I22: 91.06443309 | J22: 80.57306969 | K22: 62.13771546 | L22: 177.4614782 | M22: 194.8746313
A23: 2.6. | B23: Vrijednosna usklađenja | C23: =SUM(C24:C25) -> 0 | D23: =SUM(D24:D25) -> 0 | E23: 0 | F23: 0 | G23: 0 | H23: 0 | I23: 0 | J23: 0 | K23: 0 | L23: 0 | M23: 0
A24: 2.6.1. | B24: Dugotrajne imovine (osim financijske imovine) | H24: 0 | I24: 0 | J24: 0 | K24: 0 | L24: 0 | M24: 0
A25: 2.6.2. | B25: Kratkotrajne imovine (osim financijske imovine) | H25: 0 | I25: 0 | J25: 0 | K25: 0 | L25: 0 | M25: 0
A26: 2.7. | B26: Rezerviranja | C26: =SUM(C27:C32) -> 0 | D26: =SUM(D27:D32) -> 2.35 | E26: 0 | F26: 2.35 | G26: 0 | H26: 0 | I26: 0 | J26: 100 | K26: 0 | L26: 0 | M26: 0
A27: 2.7.1. | B27: Rezerviranja za mirovine, otpremnine i slične obveze | H27: 0 | I27: 0 | J27: 0 | K27: 0 | L27: 0 | M27: 0
A28: 2.7.2. | B28: Rezerviranja za porezne obveze | H28: 0 | I28: 0 | J28: 0 | K28: 0 | L28: 0 | M28: 0
A29: 2.7.3. | B29: Rezerviranja za započete sudske sporove | C29: 0 | D29: 2.35 | E29: 0 | F29: 2.35 | G29: 0 | H29: 0 | I29: 0 | J29: 100 | K29: 0 | L29: 0 | M29: 0
A30: 2.7.4. | B30: Rezerviranja za troškove obnavljanja prirodnih bogatstava | H30: 0 | I30: 0 | J30: 0 | K30: 0 | L30: 0 | M30: 0
A31: 2.7.5. | B31: Rezerviranja za troškove u jamstvenim rokovima | H31: 0 | I31: 0 | J31: 0 | K31: 0 | L31: 0 | M31: 0
A32: 2.7.6. | B32: Druga rezerviranja | H32: 0 | I32: 0 | J32: 0 | K32: 0 | L32: 0 | M32: 0
A33: 2.8. | B33: Ostali poslovni rashodi | C33: 76.979 | D33: 10.411 | E33: 1.579 | F33: 221.752 | G33: 263.42 | H33: 13.52446771 | I33: 14043.82521 | J33: 2129.977908 | K33: 2.051208771 | L33: 16682.71058 | M33: 118.7903604
A34: 3. | B34: FINANCIJSKI PRIHODI | C34: =SUM(C35:C44) -> 5.309 | D34: =SUM(D35:D44) -> 0.6 | E34: =SUM(E35:E44) -> 0.449 | F34: 0.517 | G34: 0.54 | H34: 11.30156338 | I34: 115.1447661 | J34: 86.16666667 | K34: 8.457336598 | L34: 120.2672606 | M34: 104.4487427
A35: 3.1. | B35: Prihodi od ulaganja u udjele (dionice) poduzetnika unutar grupe | H35: 0 | I35: 0 | J35: 0 | K35: 0 | L35: 0 | M35: 0
A36: 3.2. | B36: Prihodi od ulaganja u udjele (dionice) društava povezanih sudjelujućim interesom | H36: 0 | I36: 0 | J36: 0 | K36: 0 | L36: 0 | M36: 0
A37: 3.3. | B37: Prihodi od ostalih dugotrajnih financijskih ulaganja i zajmova poduzetnicima unutar grupe | H37: 0 | I37: 0 | J37: 0 | K37: 0 | L37: 0 | M37: 0
A38: 3.4. | B38: Ostali prihodi s osnove kamata iz odnosa s poduzetnicima unutar grupe | H38: 0 | I38: 0 | J38: 0 | K38: 0 | L38: 0 | M38: 0
A39: 3.5. | B39: Tečajne razlike i ostali financijski prihodi iz odnosa s poduzetnicima unutar grupe | H39: 0 | I39: 0 | J39: 0 | K39: 0 | L39: 0 | M39: 0
A40: 3.6. | B40: Prihodi od ostalih dugotrajnih financijskih ulaganja i zajmova | H40: 0 | I40: 0 | J40: 0 | K40: 0 | L40: 0 | M40: 0
A41: 3.7. | B41: Ostali prihodi s osnove kamata | C41: 1.327 | D41: 0.006 | E41: 0.444 | F41: 0.512 | G41: 0.52 | H41: 0.4521477016 | I41: 115.3153153 | J41: 8533.333333 | K41: 33.45892992 | L41: 117.1171171 | M41: 101.5625
A42: 3.8. | B42: Tečajne razlike i ostali financijski prihodi | C42: 3.982 | D42: 0.594 | E42: 0.005 | F42: 0.005 | G42: 0.02 | H42: 14.91712707 | I42: 100 | J42: 0.8417508418 | K42: 0.1255650427 | L42: 400 | M42: 400
A43: 3.9. | B43: Nerealizirani dobici (prihodi) od financijske imovine | H43: 0 | I43: 0 | J43: 0 | K43: 0 | L43: 0 | M43: 0
A44: 3.10. | B44: Ostali financijski prihodi | H44: 0 | I44: 0 | J44: 0 | K44: 0 | L44: 0 | M44: 0
A45: 4. | B45: FINANCIJSKI RASHODI | C45: =SUM(C46:C52) -> 72.997 | D45: =SUM(D46:D52) -> 71.788 | E45: =SUM(E46:E52) -> 61.318 | F45: 47.114 | G45: 62.8 | H45: 98.34376755 | I45: 76.83551323 | J45: 65.6293531 | K45: 84.00071236 | L45: 102.4169086 | M45: 133.2937131
A46: 4.1. | B46: Rashodi s osnove kamata i slični rashodi s poduzetnicima unutar grupe | H46: 0 | I46: 0 | J46: 0 | K46: 0 | L46: 0 | M46: 0
A47: 4.2. | B47: Tečajne razlike i drugi rashodi s poduzetnicima unutar grupe | H47: 0 | I47: 0 | J47: 0 | K47: 0 | L47: 0 | M47: 0
A48: 4.3. | B48: Rashodi s osnove kamata i slični rashodi | C48: 70.343 | D48: 70.2 | E48: 54.483 | F48: 44.516 | G48: 55.85 | H48: 99.7967104 | I48: 81.70622029 | J48: 63.41310541 | K48: 77.4533358 | L48: 102.5090395 | M48: 125.4605086
A49: 4.4. | B49: Tečajne razlike i drugi rashodi | C49: 2.654 | D49: 1.588 | E49: 6.835 | F49: 2.598 | G49: 6.95 | H49: 59.83421251 | I49: =IFERROR(F49/E49*100,) -> 38.0102414 | J49: 163.6020151 | K49: =IFERROR(E49/C49*100,) -> 257.535795 | L49: =IFERROR(G49/E49*100,) -> 101.6825165 | M49: 267.5134719
A50: 4.5. | B50: Nerealizirani gubici (rashodi) od financijske imovine | H50: 0 | I50: =IFERROR(F50/E50*100,) -> 0 | J50: 0 | K50: =IFERROR(E50/C50*100,) -> 0 | L50: =IFERROR(G50/E50*100,) -> 0 | M50: 0
A51: 4.6. | B51: Vrijednosna usklađenja financijske imovine (neto) | H51: 0 | I51: 0 | J51: 0 | K51: 0 | L51: 0 | M51: 0
A52: 4.7. | B52: Ostali financijski rashodi | H52: 0 | I52: 0 | J52: 0 | K52: 0 | L52: 0 | M52: 0
A53: 5. | B53: UDIO U DOBITI OD DRUŠTAVA POVEZANIH SUDJELUJUĆIM INTERESOM | H53: 0 | I53: 0 | J53: 0 | K53: 0 | L53: 0 | M53: 0
A54: 6. | B54: UDIO U DOBITI OD ZAJEDNIČKIH POTHVATA | H54: 0 | I54: 0 | J54: 0 | K54: 0 | L54: 0 | M54: 0
A55: 7. | B55: UDIO U GUBITKU OD DRUŠTAVA POVEZANIH SUDJELUJUĆIM INTERESOM | H55: 0 | I55: 0 | J55: 0 | K55: 0 | L55: 0 | M55: 0
A56: 8. | B56: UDIO U GUBITKU OD ZAJEDNIČKIH POTHVATA | H56: 0 | I56: 0 | J56: 0 | K56: 0 | L56: 0 | M56: 0
A57: 9. | B57: UKUPNI PRIHODI | C57: =C5+C34+C53+C54 -> 2012.754 | D57: 2450.767 | E57: =E5+E34+E53+E54 -> 2132.276 | F57: 2804.489 | G57: 3446.434 | H57: 121.7618745 | I57: 131.5256093 | J57: 114.4331142 | K57: 105.9382319 | L57: 161.6317025 | M57: 122.8899097
A58: 10. | B58: UKUPNI RASHODI | C58: =C11+C45+C55+C56 -> 2001.086 | D58: 2807.146 | E58: =E11+E45+E55+E56 -> 2127.03 | F58: 3432.04 | G58: 3441.414 | H58: 140.2811273 | I58: 161.3536245 | J58: 122.26083 | K58: 106.2937825 | L58: 161.7943329 | M58: 100.273132
A59: 11. | B59: DOBIT ILI GUBITAK PRIJE OPOREZIVANJA | C59: =C57-C58 -> 11.668 | D59: =D57-D58 -> -356.379 | E59: =E57-E58 -> 5.246 | F59: -627.551 | G59: 5.02 | H59: -3054.328077 | I59: -11962.46664 | J59: 176.0909032 | K59: 44.96057593 | L59: 95.69195578 | M59: =IFERROR(G59/F59*100,) -> -0.7999349854
A60: 11.1. | B60: Dobit prije oporezivanja | C60: =IF(C59>0,C59,) -> 11.668 | D60: 0 | E60: 5.246 | F60: 0 | G60: 5.02 | H60: 0 | I60: 0 | J60: 0 | K60: 44.96057593 | L60: 95.69195578 | M60: 0
A61: 11.2. | B61: Gubitak prije oporezivanja | C61: =IF(C59<0,C59,) -> 0 | D61: -356.379 | E61: 0 | F61: -627.551 | G61: 0 | H61: 0 | I61: 0 | J61: 176.0909032 | K61: 0 | L61: 0 | M61: 0
A62: 12. | B62: POREZ NA DOBIT | H62: 0 | I62: 0 | J62: 0 | K62: 0 | L62: 0 | M62: 0
A63: 13. | B63: DOBIT ILI GUBITAK RAZDOBLJA | C63: =C59-C62 -> 11.668 | D63: =D59-D62 -> -356.379 | E63: =E59-E62 -> 5.246 | F63: -627.551 | G63: 5.02 | H63: -3054.328077 | I63: -11962.46664 | J63: 176.0909032 | K63: =IFERROR(E63/C63*100,) -> 44.96057593 | L63: 95.69195578 | M63: -0.7999349854
A64: 13.1. | B64: Dobit razdoblja | C64: =IF(C63>0,C63,) -> 11.668 | D64: 0 | E64: 5.246 | F64: 0 | G64: 5.02 | H64: 0 | I64: 0 | J64: 0 | K64: 44.96057593 | L64: 95.69195578 | M64: 0
A65: 13.2. | B65: Gubitak razdoblja | C65: =IF(C63<0,C63,) -> 0 | D65: -356.379 | E65: 0 | F65: -627.551 | G65: 0 | H65: 0 | I65: 0 | J65: 176.0909032 | K65: 0 | L65: 0 | M65: 0
A66: * DODATAK RDG -u (popunjava trgovačko društvo koje sastavlja konsolidirani godišnji financijski izvještaj)
A67: 14. | B67: DOBIT ILI GUBITAK RAZDOBLJA | C67: =IF((C68+C69)=C63,C63,"Neodgovarajuća raspodjela") -> Neodgovarajuća raspodjela | D67: =IF((D68+D69)=D63,D63,"Neodgovarajuća raspodjela") -> Neodgovarajuća raspodjela | E67: =IF((E68+E69)=E63,E63,"Neodgovarajuća raspodjela") -> Neodgovarajuća raspodjela | F67: =IF((F68+F69)=F63,F63,"Neodgovarajuća raspodjela") -> Neodgovarajuća raspodjela | G67: =IF((G68+G69)=G63,G63,"Neodgovarajuća raspodjela") -> Neodgovarajuća raspodjela | H67: =IFERROR(D67/C67*100,) -> 0 | I67: =IFERROR(F67/E67*100,) -> 0 | J67: =IFERROR(F67/D67*100,) -> 0 | K67: =IFERROR(E67/C67*100,) -> 0 | L67: =IFERROR(G67/E67*100,) -> 0 | M67: =IFERROR(G67/F67*100,) -> 0
A68: 14.1. | B68: Pripisana imateljima kapitala matice | H68: 0 | I68: 0 | J68: 0 | K68: 0 | L68: 0 | M68: 0
A69: 14.2. | B69: Pripisana manjinskom (nekontrolirajućem) interesu | H69: 0 | I69: 0 | J69: 0 | K69: 0 | L69: 0 | M69: 0
A70: IZVJEŠTAJ O OSTALOJ SVEOBUHVATNOJ DOBITI (popunjava trgovačko društvo obveznik primjene MSFI-a)
A71: 1. | B71: DOBIT ILI GUBITAK RAZDOBLJA | C71: =C63 -> 11.668 | D71: -356.379 | E71: =E63 -> 5.246 | F71: =F63 -> -627.551 | G71: =G63 -> 5.02 | H71: =IFERROR(D71/C71*100,) -> -3054.328077 | I71: =IFERROR(F71/E71*100,) -> -11962.46664 | J71: =IFERROR(F71/D71*100,) -> 176.0909032 | K71: =IFERROR(E71/C71*100,) -> 44.96057593 | L71: =IFERROR(G71/E71*100,) -> 95.69195578 | M71: =IFERROR(G71/F71*100,) -> -0.7999349854
A72: 2. | B72: OSTALA SVEOBUHVATNA DOBIT/GUBITAK PRIJE POREZA | C72: =SUM(C73:C80) -> 0 | D72: =SUM(D73:D80) -> 0 | E72: =SUM(E73:E80) -> 0 | F72: =SUM(F73:F80) -> 0 | G72: =SUM(G73:G80) -> 0 | H72: 0 | I72: 0 | J72: 0 | K72: 0 | L72: 0 | M72: 0
A73: 2.1. | B73: Tečajne razlike iz preračuna inozemnog poslovanja | H73: 0 | I73: 0 | J73: 0 | K73: 0 | L73: 0 | M73: 0
A74: 2.2. | B74: Promjene revalorizacijskih rezervi dugotrajne materijalne i nematerijalne imovine | H74: 0 | I74: 0 | J74: 0 | K74: 0 | L74: 0 | M74: 0
A75: 2.3. | B75: Dobit ili gubitak s osnove naknadnog vrednovanja financijske imovine raspoložive za prodaju | H75: 0 | I75: 0 | J75: 0 | K75: 0 | L75: 0 | M75: 0
A76: 2.4. | B76: Dobit ili gubitak s osnove učinkovite zaštite novčanih tokova | H76: 0 | I76: 0 | J76: 0 | K76: 0 | L76: 0 | M76: 0
A77: 2.5. | B77: Dobit ili gubitak s osnove učinkovite zaštite neto ulaganja u inozemstvu | H77: 0 | I77: 0 | J77: 0 | K77: 0 | L77: 0 | M77: 0
A78: 2.6. | B78: Udio u ostaloj sveobuhvatnoj dobiti/gubitku društava povezanih sudjelujućim interesom | H78: 0 | I78: 0 | J78: 0 | K78: 0 | L78: 0 | M78: 0
A79: 2.7. | B79: Aktuarski dobici/gubici po planovima definiranih primanja | H79: 0 | I79: 0 | J79: 0 | K79: 0 | L79: 0 | M79: 0
A80: 2.8. | B80: Ostale nevlasničke promjene kapitala | H80: 0 | I80: 0 | J80: 0 | K80: 0 | L80: 0 | M80: 0
A81: 3. | B81: POREZ NA OSTALU SVEOBUHVATNU DOBIT RAZDOBLJA | H81: 0 | I81: 0 | J81: 0 | K81: 0 | L81: 0 | M81: 0
A82: 4. | B82: NETO OSTALA SVEOBUHVATNA DOBIT ILI GUBITAK | C82: =C72-C81 -> 0 | D82: =D72-D81 -> 0 | E82: =E72-E81 -> 0 | F82: =F72-F81 -> 0 | G82: =G72-G81 -> 0 | H82: 0 | I82: 0 | J82: 0 | K82: 0 | L82: 0 | M82: 0
A83: 5. | B83: SVEOBUHVATNA DOBIT ILI GUBITAK RAZDOBLJA | C83: =C71+C82 -> 11.668 | D83: =D71+D82 -> -356.379 | E83: =E71+E82 -> 5.246 | F83: =F71+F82 -> -627.551 | G83: =G71+G82 -> 5.02 | H83: -3054.328077 | I83: -11962.46664 | J83: 176.0909032 | K83: 44.96057593 | L83: 95.69195578 | M83: -0.7999349854
A84: * DODATAK IZVJEŠTAJU O OSTALOJ SVEOBUHVATNOJ DOBITI (popunjava trgovačko društvo koje sastavlja konsolidirani godišnji financijski izvještaj)
A85: 6. | B85: SVEOBUHVATNA DOBIT ILI GUBITAK RAZDOBLJA | C85: =IF((C86+C87)=C83,C83,"Neodgovarajuća raspodjela") -> Neodgovarajuća raspodjela | D85: Neodgovarajuća raspodjela | E85: =IF((E86+E87)=E83,E83,"Neodgovarajuća raspodjela") -> Neodgovarajuća raspodjela | F85: =IF((F86+F87)=F83,F83,"Neodgovarajuća raspodjela") -> Neodgovarajuća raspodjela | G85: =IF((G86+G87)=G83,G83,"Neodgovarajuća raspodjela") -> Neodgovarajuća raspodjela | H85: =IFERROR(D85/C85*100,) -> 0 | I85: =IFERROR(F85/E85*100,) -> 0 | J85: =IFERROR(F85/D85*100,) -> 0 | K85: =IFERROR(E85/C85*100,) -> 0 | L85: =IFERROR(G85/E85*100,) -> 0 | M85: =IFERROR(G85/F85*100,) -> 0
A86: 6.1. | B86: Pripisana imateljima kapitala matice | H86: 0 | I86: 0 | J86: 0 | K86: 0 | L86: 0 | M86: 0
A87: 6.2. | B87: Pripisana manjinskom interesu | H87: 0 | I87: 0 | J87: 0 | K87: 0 | L87: 0 | M87: 0

Sheet _TM_Ključni poslovni pokazatelj (hidden)
A1: Left | B1: Top | C1: Right | D1: Bottom | E1: Ref
A2: 1 | B2: 1 | C2: 3 | D2: 14 | E2: $A$1:$C$14

Sheet NT dir.
A1: IZVJEŠTAJ O NOVČANOM TOKU - DIREKTNA METODA
A2: Obveznik: | B2: =IF(ISBLANK(Podloga!B2),"",Podloga!B2) -> Zračna luka Osijek d.o.o. | C2: =IF(C50>C49,"Povećanje novca i novčanih ekvivalenata u razdoblju",IF(C50=C49,"Stagnacija novca i novčanih ekvivalenata u razdoblju","Smanjenje novca i novčanih ekvivalenata u razdoblju")) -> Stagnacija novca i novčanih ekvivalenata u razdoblju | D2: Stagnacija novca i novčanih ekvivalenata u razdoblju | E2: Stagnacija novca i novčanih ekvivalenata u razdoblju | F2: Stagnacija novca i novčanih ekvivalenata u razdoblju | G2: Stagnacija novca i novčanih ekvivalenata u razdoblju
C3: Za razdoblje od 1. siječnja do 31. prosinca
C4: I Z N O S (u 000 kn) | H4: ="Indeks "& RIGHT(LEFT(Podloga!C36,7),5) &" / "& RIGHT(LEFT(Podloga!B36,8),6) -> Indeks 22. o / 22. pl | I4: ="Indeks "& RIGHT(LEFT(Podloga!E36,8),6) &" / "& RIGHT(LEFT(Podloga!D36,8),6) -> Indeks 23. pr / 23. pl | J4: ="Indeks "& RIGHT(LEFT(Podloga!E36,8),6) &" / "& RIGHT(LEFT(Podloga!C36,7),5) -> Indeks 23. pr / 22. o | K4: ="Indeks "& RIGHT(LEFT(Podloga!D36,8),6) &" / "& RIGHT(LEFT(Podloga!B36,8),6) -> Indeks 23. pl / 22. pl | L4: ="Indeks "& RIGHT(LEFT(Podloga!F36,8),6) &" / "& RIGHT(LEFT(Podloga!D36,8),6) -> Indeks 24. pl / 23. pl | M4: ="Indeks "& RIGHT(LEFT(Podloga!F36,8),6) &" / "& RIGHT(LEFT(Podloga!E36,8),6) -> Indeks 24. pl / 23. pr
C5: =Podloga!B36 -> 2022. planirano | D5: =Podloga!C36 -> 2022. ostvareno | E5: =Podloga!D36 -> 2023. planirano | F5: =Podloga!E36 -> 2023. procijenjeno | G5: =Podloga!F36 -> 2024. planirano
A6: NOVČANI TOKOVI OD POSLOVNIH AKTIVNOSTI
A7: 1. | B7: Novčani primici od kupaca | H7: =IFERROR(D7/C7*100,) -> 0 | I7: =IFERROR(F7/E7*100,) -> 0 | J7: =IFERROR(F7/D7*100,) -> 0 | K7: =IFERROR(E7/C7*100,) -> 0 | L7: =IFERROR(G7/E7*100,) -> 0 | M7: =IFERROR(G7/F7*100,) -> 0
A8: 2. | B8: Novčani primici od tantijema, naknada, provizija i slično | H8: =IFERROR(D8/C8*100,) -> 0 | I8: =IFERROR(F8/E8*100,) -> 0 | J8: =IFERROR(F8/D8*100,) -> 0 | K8: =IFERROR(E8/C8*100,) -> 0 | L8: =IFERROR(G8/E8*100,) -> 0 | M8: =IFERROR(G8/F8*100,) -> 0
A9: 3. | B9: Novčani primici od osiguranja za naknadu šteta | H9: 0 | I9: 0 | J9: 0 | K9: 0 | L9: 0 | M9: 0
A10: 4. | B10: Novčani primici s osnove povrata poreza | H10: 0 | I10: 0 | J10: 0 | K10: 0 | L10: 0 | M10: 0
A11: 5 | B11: Novčani izdaci dobavljačima | H11: 0 | I11: 0 | J11: 0 | K11: 0 | L11: 0 | M11: 0
A12: 6 | B12: Novčani izdaci za zaposlene | H12: 0 | I12: 0 | J12: 0 | K12: 0 | L12: 0 | M12: 0
A13: 7 | B13: Novčani izdaci za osiguranje za naknadu štete | H13: 0 | I13: 0 | J13: 0 | K13: 0 | L13: 0 | M13: 0
A14: 8 | B14: Ostali novčani primici i izdaci | H14: 0 | I14: 0 | J14: 0 | K14: 0 | L14: 0 | M14: 0
A15: I. | B15: Novac iz poslovanja | C15: =SUM(C7:C14) -> 0 | D15: =SUM(D7:D14) -> 0 | E15: 0 | F15: 0 | G15: 0 | H15: 0 | I15: 0 | J15: 0 | K15: 0 | L15: 0 | M15: 0
A16: 9 | B16: Novčani izdaci za kamate | H16: 0 | I16: 0 | J16: 0 | K16: 0 | L16: 0 | M16: 0
A17: 10 | B17: Plaćeni porez na dobit | H17: 0 | I17: 0 | J17: 0 | K17: 0 | L17: 0 | M17: 0
A18: A. NETO NOVČANI TOKOVI OD POSLOVNIH AKTIVNOSTI | C18: =SUM(C15:C17) -> 0 | D18: =SUM(D15:D17) -> 0 | E18: 0 | F18: 0 | G18: 0 | H18: 0 | I18: 0 | J18: 0 | K18: 0 | L18: 0 | M18: 0
A19: NOVČANI TOKOVI OD INVESTICIJSKIH AKTIVNOSTI
A20: 1. | B20: Novčani primici od prodaje dugotrajne materijalne i nematerijalne imovine | H20: 0 | I20: 0 | J20: 0 | K20: 0 | L20: 0 | M20: 0
A21: 2. | B21: Novčani primici od prodaje financijskih instrumenata | H21: 0 | I21: 0 | J21: 0 | K21: 0 | L21: 0 | M21: 0
A22: 3. | B22: Novčani primici od kamata | H22: 0 | I22: 0 | J22: 0 | K22: 0 | L22: 0 | M22: 0
A23: 4. | B23: Novčani primici od dividendi | H23: 0 | I23: 0 | J23: 0 | K23: 0 | L23: 0 | M23: 0
A24: 5. | B24: Novčani primici s osnove povrata danih zajmova i štednih uloga | H24: 0 | I24: 0 | J24: 0 | K24: 0 | L24: 0 | M24: 0
A25: 6. | B25: Ostali novčani primici od investicijskih aktivnosti | H25: 0 | I25: 0 | J25: 0 | K25: 0 | L25: 0 | M25: 0
A26: II. | B26: Ukupno novčani primici od investicijskih aktivnosti | C26: =SUM(C20:C25) -> 0 | D26: =SUM(D20:D25) -> 0 | E26: 0 | F26: 0 | G26: 0 | H26: 0 | I26: 0 | J26: 0 | K26: 0 | L26: 0 | M26: 0
A27: 1. | B27: Novčani izdaci za kupnju dugotrajne materijalne i nematerijalne imovine | H27: 0 | I27: 0 | J27: 0 | K27: 0 | L27: 0 | M27: 0
A28: 2. | B28: Novčani izdaci za stjecanje financijskih instrumenata | H28: 0 | I28: 0 | J28: 0 | K28: 0 | L28: 0 | M28: 0
A29: 3. | B29: Novčani izdaci s osnove danih zajmova i štednih uloga | H29: 0 | I29: 0 | J29: 0 | K29: 0 | L29: 0 | M29: 0
A30: 4. | B30: Stjecanje ovisnog društva, umanjeno za stečeni novac | H30: 0 | I30: 0 | J30: 0 | K30: 0 | L30: 0 | M30: 0
A31: 5. | B31: Ostali novčani izdaci od investicijskih aktivnosti | H31: 0 | I31: 0 | J31: 0 | K31: 0 | L31: 0 | M31: 0
A32: III. | B32: Ukupno novčani izdaci od investicijskih aktivnosti | C32: =SUM(C27:C31) -> 0 | D32: =SUM(D27:D31) -> 0 | E32: 0 | F32: 0 | G32: 0 | H32: 0 | I32: 0 | J32: 0 | K32: 0 | L32: 0 | M32: 0
A33: B. NETO NOVČANI TOKOVI OD INVESTICIJSKIH AKTIVNOSTI | C33: =C26+C32 -> 0 | D33: =D26+D32 -> 0 | E33: 0 | F33: 0 | G33: 0 | H33: 0 | I33: 0 | J33: 0 | K33: 0 | L33: 0 | M33: 0
A34: NOVČANI TOKOVI OD FINANCIJSKIH AKTIVNOSTI
A35: 1. | B35: Novčani primici od povećanja temeljnog (upisanog) kapitala | H35: 0 | I35: 0 | J35: 0 | K35: 0 | L35: 0 | M35: 0
A36: 2. | B36: Novčani primici od izdavanja vlasničkih i dužničkih financijskih instrumenata | H36: 0 | I36: 0 | J36: 0 | K36: 0 | L36: 0 | M36: 0
A37: 3. | B37: Novčani primici od glavnice kredita, pozajmica i drugih posudbi | H37: 0 | I37: 0 | J37: 0 | K37: 0 | L37: 0 | M37: 0
A38: 4. | B38: Ostali novčani primici od financijskih aktivnosti | H38: 0 | I38: 0 | J38: 0 | K38: 0 | L38: 0 | M38: 0
A39: IV. | B39: Ukupno novčani primici od financijskih aktivnosti | C39: =SUM(C35:C38) -> 0 | D39: =SUM(D35:D38) -> 0 | E39: 0 | F39: 0 | G39: 0 | H39: 0 | I39: 0 | J39: 0 | K39: 0 | L39: 0 | M39: 0
A40: 1. | B40: Novčani izdaci za otplatu glavnice kredita, pozajmica i drugih posudbi i dužničkih financijskih instrumenata | H40: 0 | I40: 0 | J40: 0 | K40: 0 | L40: 0 | M40: 0
A41: 2. | B41: Novčani izdaci za isplatu dividendi | H41: 0 | I41: 0 | J41: 0 | K41: 0 | L41: 0 | M41: 0
A42: 3. | B42: Novčani izdaci za financijski najam | H42: 0 | I42: 0 | J42: 0 | K42: 0 | L42: 0 | M42: 0
A43: 4. | B43: Novčani izdaci za otkup vlastitih dionica i smanjenje temeljnog (upisanog) kapitala | H43: 0 | I43: 0 | J43: 0 | K43: 0 | L43: 0 | M43: 0
A44: 5. | B44: Ostali novčani izdaci od financijskih aktivnosti | H44: 0 | I44: 0 | J44: 0 | K44: 0 | L44: 0 | M44: 0
A45: V. | B45: Ukupno novčani izdaci od financijskih aktivnosti | C45: =SUM(C40:C44) -> 0 | D45: =SUM(D40:D44) -> 0 | E45: 0 | F45: 0 | G45: 0 | H45: 0 | I45: 0 | J45: 0 | K45: 0 | L45: 0 | M45: 0
A46: C. NETO NOVČANI TOKOVI OD FINANCIJSKIH AKTIVNOSTI | C46: =C39+C45 -> 0 | D46: =D39+D45 -> 0 | E46: 0 | F46: 0 | G46: 0 | H46: 0 | I46: 0 | J46: 0 | K46: 0 | L46: 0 | M46: 0
A47: 1. | B47: Nerealizirane tečajne razlike po novcu i novčanim ekvivalentima | H47: =IFERROR(D47/C47*100,) -> 0 | I47: =IFERROR(F47/E47*100,) -> 0 | J47: =IFERROR(F47/D47*100,) -> 0 | K47: =IFERROR(E47/C47*100,) -> 0 | L47: =IFERROR(G47/E47*100,) -> 0 | M47: =IFERROR(G47/F47*100,) -> 0
A48: D. NETO POVEĆANJE ILI SMANJENE NOVČANIH TOKOVA | C48: =C18+C33+C46+C47 -> 0 | D48: =D18+D33+D46+D47 -> 0 | E48: 0 | F48: 0 | G48: 0 | H48: 0 | I48: 0 | J48: 0 | K48: 0 | L48: 0 | M48: 0
A49: E. NOVAC I NOVČANI EKVIVALENTI NA POČETKU RAZDOBLJA | H49: 0 | I49: 0 | J49: 0 | K49: 0 | L49: 0 | M49: 0
A50: F. NOVAC I NOVČANI EKVIVALENTI NA KRAJU RAZDOBLJA | C50: =C49+C48 -> 0 | D50: =D49+D48 -> 0 | E50: 0 | F50: 0 | G50: 0 | H50: 0 | I50: 0 | J50: 0 | K50: 0 | L50: 0 | M50: 0

Sheet NT indir.
A1: IZVJEŠTAJ O NOVČANOM TOKU - INDIREKTNA METODA
A2: Obveznik: | B2: =IF(ISBLANK(Podloga!B2),"",Podloga!B2) -> Zračna luka Osijek d.o.o. | C2: =IF(C58>C57,"Povećanje novca i novčanih ekvivalenata u razdoblju",IF(C58=C57,"Stagnacija novca i novčanih ekvivalenata u razdoblju","Smanjenje novca i novčanih ekvivalenata u razdoblju")) -> Povećanje novca i novčanih ekvivalenata u razdoblju | D2: Smanjenje novca i novčanih ekvivalenata u razdoblju | E2: Povećanje novca i novčanih ekvivalenata u razdoblju | F2: Smanjenje novca i novčanih ekvivalenata u razdoblju | G2: Povećanje novca i novčanih ekvivalenata u razdoblju
C3: Za razdoblje od 1. siječnja do 31. prosinca
C4: I Z N O S (u 000 kn) | H4: ="Indeks "& RIGHT(LEFT(Podloga!C36,7),5) &" / "& RIGHT(LEFT(Podloga!B36,8),6) -> Indeks 22. o / 22. pl | I4: ="Indeks "& RIGHT(LEFT(Podloga!E36,8),6) &" / "& RIGHT(LEFT(Podloga!D36,8),6) -> Indeks 23. pr / 23. pl | J4: ="Indeks "& RIGHT(LEFT(Podloga!E36,8),6) &" / "& RIGHT(LEFT(Podloga!C36,7),5) -> Indeks 23. pr / 22. o | K4: ="Indeks "& RIGHT(LEFT(Podloga!D36,8),6) &" / "& RIGHT(LEFT(Podloga!B36,8),6) -> Indeks 23. pl / 22. pl | L4: ="Indeks "& RIGHT(LEFT(Podloga!F36,8),6) &" / "& RIGHT(LEFT(Podloga!D36,8),6) -> Indeks 24. pl / 23. pl | M4: ="Indeks "& RIGHT(LEFT(Podloga!F36,8),6) &" / "& RIGHT(LEFT(Podloga!E36,8),6) -> Indeks 24. pl / 23. pr
C5: =Podloga!B36 -> 2022. planirano | D5: =Podloga!C36 -> 2022. ostvareno | E5: =Podloga!D36 -> 2023. planirano | F5: =Podloga!E36 -> 2023. procijenjeno | G5: =Podloga!F36 -> 2024. planirano
A6: NOVČANI TOKOVI OD POSLOVNIH AKTIVNOSTI
A7: 1. | B7: Dobit prije poreza | C7: 11.665 | D7: -356.38 | E7: 5.247 | F7: -627.551 | G7: 5.02 | H7: =IFERROR(D7/C7*100,) -> -3055.12216 | I7: =IFERROR(F7/E7*100,) -> -11960.18677 | J7: =IFERROR(F7/D7*100,) -> 176.0904091 | K7: =IFERROR(E7/C7*100,) -> 44.98071153 | L7: =IFERROR(G7/E7*100,) -> 95.67371832 | M7: =IFERROR(G7/F7*100,) -> -0.7999349854
A8: 2. | B8: Usklađenja | C8: 375.526 | D8: =SUM(D9:D16) -> 376.376 | E8: 363.135 | F8: 432.771 | G8: 363.135 | H8: =IFERROR(D8/C8*100,) -> 100.2263492 | I8: =IFERROR(F8/E8*100,) -> 119.1763394 | J8: =IFERROR(F8/D8*100,) -> 114.9836865 | K8: =IFERROR(E8/C8*100,) -> 96.70036163 | L8: =IFERROR(G8/E8*100,) -> 100 | M8: =IFERROR(G8/F8*100,) -> 83.90927303
A9: a) | B9: Amortizacija | C9: 291.99 | D9: 303.832 | E9: 289.336 | F9: 371.362 | G9: 425 | H9: 104.0556183 | I9: 128.3497387 | J9: 122.2260986 | K9: 99.09106476 | L9: 146.8880471 | M9: 114.4435887
A10: b) | B10: Dobici i gubici od prodaje i vrijednosna usklađenja dugotrajne materijalne i nematerijalne imovine | H10: =IFERROR(D10/C10*100,) -> 0 | I10: =IFERROR(F10/E10*100,) -> 0 | J10: =IFERROR(F10/D10*100,) -> 0 | K10: =IFERROR(E10/C10*100,) -> 0 | L10: =IFERROR(G10/E10*100,) -> 0 | M10: =IFERROR(G10/F10*100,) -> 0
A11: c) | B11: Dobici i gubici od prodaje i nerealizirani dobici i gubici i vrijednosno usklađenje financijske imovine | H11: 0 | I11: 0 | J11: 0 | K11: 0 | L11: 0 | M11: 0
A12: d) | B12: Prihodi od kamata i dividendi | C12: -0.08 | D12: -0.006 | E12: -0.445 | F12: -0.512 | G12: -0.52 | H12: 7.5 | I12: 115.0561798 | J12: 8533.333333 | K12: 556.25 | L12: 116.8539326 | M12: 101.5625
A13: e) | B13: Rashodi od kamata | C13: 62.38 | D13: 70.2 | E13: 54.483 | F13: 44.516 | G13: 55.85 | H13: 112.5360693 | I13: 81.70622029 | J13: 63.41310541 | K13: 87.34049375 | L13: 102.5090395 | M13: 125.4605086
A14: f) | B14: Rezerviranja | C14: 21.236 | D14: 2.35 | E14: 20.074 | F14: 17.405 | G14: 0 | H14: 11.06611415 | I14: 86.70419448 | J14: 740.6382979 | K14: 94.52815973 | L14: 0 | M14: 0
A15: g) | B15: Tečajne razlike (nerealizirane) | C15: 0 | D15: 0 | E15: 0 | F15: 0 | G15: 0 | H15: 0 | I15: 0 | J15: 0 | K15: 0 | L15: 0 | M15: 0
A16: h) | B16: Ostala usklađenja za nenovčane transakcije i nerealizirane dobitke i gubitke | C16: 0 | D16: =SUM(F16)/7.5345 -> 0 | E16: =SUM(G16)/7.5345 -> 0 | H16: 0 | I16: 0 | J16: 0 | K16: 0 | L16: 0 | M16: 0
A17: I. | B17: Povećanje ili smanjenje novčanih tokova prije promjena u radnom kapitalu | C17: 387.191 | D17: =D7+D8 -> 19.996 | E17: 368.382 | F17: -194.78 | G17: -200.859 | H17: 5.164376238 | I17: -52.87446184 | J17: -974.094819 | K17: 95.14219081 | L17: -54.52465104 | M17: 103.120957
A18: 3. | B18: Promjene u radnom kapitalu | D18: =SUM(D19:D22) -> 541.254 | F18: 49.437 | H18: 0 | I18: 0 | J18: 9.133789311 | K18: 0 | L18: 0 | M18: 0
A19: a) | B19: Povećanje ili smanjenje kratkoročnih obveza | C19: -85.733 | D19: 527.325 | E19: 6133.596 | F19: 94.166 | G19: -369.157 | H19: =IFERROR(D19/C19*100,) -> -615.0782079 | I19: =IFERROR(F19/E19*100,) -> 1.535249469 | J19: =IFERROR(F19/D19*100,) -> 17.85729863 | K19: =IFERROR(E19/C19*100,) -> -7154.299978 | L19: =IFERROR(G19/E19*100,) -> -6.018606377 | M19: =IFERROR(G19/F19*100,) -> -392.0279082
A20: b) | B20: Povećanje ili smanjenje kratkotrajnih potraživanja | C20: 18.966 | D20: 12.27 | E20: -96.208 | F20: 122.108 | G20: 109.513 | H20: =IFERROR(D20/C20*100,) -> 64.69471686 | I20: =IFERROR(F20/E20*100,) -> -126.9208382 | J20: =IFERROR(F20/D20*100,) -> 995.1752241 | K20: =IFERROR(E20/C20*100,) -> -507.2656332 | L20: =IFERROR(G20/E20*100,) -> -113.8294113 | M20: =IFERROR(G20/F20*100,) -> 89.6853605
A21: c) | B21: Povećanje ili smanjenje zaliha | C21: 2.29 | D21: -5.656 | E21: -14.725 | F21: 3.987 | G21: -0.739 | H21: -246.9868996 | I21: -27.07640068 | J21: -70.49151344 | K21: -643.0131004 | L21: 5.018675722 | M21: -18.53523953
A22: d) | B22: Ostala povećanja ili smanjenja radnog kapitala | C22: -17.752 | D22: 7.315 | E22: -84.61 | F22: -170.824 | G22: 567.78 | H22: -41.20662461 | I22: 201.895757 | J22: -2335.256323 | K22: 476.6223524 | L22: -671.0554308 | M22: -332.3771835
A23: II. | B23: Novac iz poslovanja | C23: 304.962 | D23: =SUM(D17+D18) -> 561.25 | E23: 6306.434 | F23: -145.343 | G23: 106.538 | H23: =IFERROR(D23/C23*100,) -> 184.0393229 | I23: =IFERROR(F23/E23*100,) -> -2.304678048 | J23: =IFERROR(F23/D23*100,) -> -25.8963029 | K23: =IFERROR(E23/C23*100,) -> 2067.940924 | L23: =IFERROR(G23/E23*100,) -> 1.689354079 | M23: =IFERROR(G23/F23*100,) -> -73.30108777
A24: 4. | B24: Novčani izdaci za kamate | C24: -49.638 | D24: -62.991 | E24: -54.483 | F24: -44.516 | G24: -55.85 | H24: =IFERROR(D24/C24*100,) -> 126.9007615 | I24: =IFERROR(F24/E24*100,) -> 81.70622029 | J24: =IFERROR(F24/D24*100,) -> 70.67041323 | K24: =IFERROR(E24/C24*100,) -> 109.7606672 | L24: =IFERROR(G24/E24*100,) -> 102.5090395 | M24: =IFERROR(G24/F24*100,) -> 125.4605086
A25: 5. | B25: Plaćeni porez na dobit | H25: 0 | I25: 0 | J25: 0 | K25: 0 | L25: 0 | M25: 0
A26: A. NETO NOVČANI TOKOVI OD POSLOVNIH AKTIVNOSTI | C26: =SUM(C23:C25) -> 255.324 | D26: =SUM(D23:D25) -> 498.259 | E26: 6251.951 | F26: -189.859 | G26: 50.688 | H26: 195.1477339 | I26: -3.036796034 | J26: -38.1044798 | K26: 2448.634284 | L26: 0.8107549147 | M26: -26.69770725
A27: NOVČANI TOKOVI OD INVESTICIJSKIH AKTIVNOSTI
A28: 1. | B28: Novčani primici od prodaje dugotrajne materijalne i nematerijalne imovine | D28: 34.629 | E28: 6.636 | F28: 0 | G28: 0 | H28: 0 | I28: 0 | J28: 0 | K28: 0 | L28: 0 | M28: 0
A29: 2. | B29: Novčani primici od prodaje financijskih instrumenata | D29: =SUM(F29)/7.5345 -> 0 | E29: =SUM(G29)/7.5345 -> 0 | H29: 0 | I29: 0 | J29: 0 | K29: 0 | L29: 0 | M29: 0
A30: 3. | B30: Novčani primici od kamata | C30: 0 | D30: 0.006 | E30: 0.445 | F30: 0.512 | G30: 0.52 | H30: 0 | I30: 115.0561798 | J30: 8533.333333 | K30: 0 | L30: 116.8539326 | M30: 101.5625
A31: 4. | B31: Novčani primici od dividendi | D31: 0 | H31: 0 | I31: 0 | J31: 0 | K31: 0 | L31: 0 | M31: 0
A32: 5. | B32: Novčani primici s osnove povrata danih zajmova i štednih uloga | D32: 0 | H32: 0 | I32: 0 | J32: 0 | K32: 0 | L32: 0 | M32: 0
A33: 6. | B33: Ostali novčani primici od investicijskih aktivnosti | C33: 0 | D33: 0 | E33: 132.723 | F33: 0 | G33: 8000 | H33: 0 | I33: 0 | J33: 0 | K33: 0 | L33: 6027.591299 | M33: 0
A34: II. | B34: Ukupno novčani primici od investicijskih aktivnosti | C34: =SUM(C28:C33) -> 0 | D34: =SUM(D28:D33) -> 34.635 | E34: 139.804 | F34: 0.512 | G34: 8000.52 | H34: 0 | I34: 0.3662270035 | J34: 1.478273423 | K34: 0 | L34: 5722.668879 | M34: 1562601.562
A35: 1. | B35: Novčani izdaci za kupnju dugotrajne materijalne i nematerijalne imovine | C35: -145.995 | D35: -576.189 | E35: -6366.713 | F35: -190.241 | G35: -8000 | H35: 394.6635159 | I35: 2.988056788 | J35: 33.01711765 | K35: 4360.911675 | L35: 125.6535358 | M35: 4205.192361
A36: 2. | B36: Novčani izdaci za stjecanje financijskih instrumenata | H36: 0 | I36: 0 | J36: 0 | K36: 0 | L36: 0 | M36: 0
A37: 3. | B37: Novčani izdaci s osnove danih zajmova i štednih uloga | H37: 0 | I37: 0 | J37: 0 | K37: 0 | L37: 0 | M37: 0
A38: 4. | B38: Stjecanje ovisnog društva, umanjeno za stečeni novac | H38: 0 | I38: 0 | J38: 0 | K38: 0 | L38: 0 | M38: 0
A39: 5. | B39: Ostali novčani izdaci od investicijskih aktivnosti | H39: 0 | I39: 0 | J39: 0 | K39: 0 | L39: 0 | M39: 0
A40: III. | B40: Ukupno novčani izdaci od investicijskih aktivnosti | C40: =SUM(C35:C39) -> -145.995 | D40: =SUM(D35:D39) -> -576.189 | E40: -6366.713 | F40: -190.241 | G40: -8000 | H40: 394.6635159 | I40: 2.988056788 | J40: 33.01711765 | K40: 4360.911675 | L40: 125.6535358 | M40: 4205.192361
A41: B. NETO NOVČANI TOKOVI OD INVESTICIJSKIH AKTIVNOSTI | C41: =C34+C40 -> -145.995 | D41: =D34+D40 -> -541.554 | E41: -6226.909 | F41: -189.729 | G41: 0.52 | H41: 370.9401007 | I41: 3.046921033 | J41: 35.03417942 | K41: 4265.152231 | L41: -0.008350852726 | M41: -0.2740751282
A42: NOVČANI TOKOVI OD FINANCIJSKIH AKTIVNOSTI
A43: 1. | B43: Novčani primici od povećanja temeljnog (upisanog) kapitala | H43: 0 | I43: 0 | J43: 0 | K43: 0 | L43: 0 | M43: 0
A44: 2. | B44: Novčani primici od izdavanja vlasničkih i dužničkih financijskih instrumenata | H44: 0 | I44: 0 | J44: 0 | K44: 0 | L44: 0 | M44: 0
A45: 3. | B45: Novčani primici od glavnice kredita, pozajmica i drugih posudbi | H45: 0 | I45: 0 | J45: 0 | K45: 0 | L45: 0 | M45: 0
A46: 4. | B46: Ostali novčani primici od financijskih aktivnosti | H46: 0 | I46: 0 | J46: 0 | K46: 0 | L46: 0 | M46: 0
A47: IV. | B47: Ukupno novčani primici od financijskih aktivnosti | C47: =SUM(C43:C46) -> 0 | D47: =SUM(D43:D46) -> 0 | E47: 0 | F47: 0 | G47: 0 | H47: 0 | I47: 0 | J47: 0 | K47: 0 | L47: 0 | M47: 0
A48: 1. | B48: Novčani izdaci za otplatu glavnice kredita, pozajmica i drugih posudbi i dužničkih financijskih instrumenata | H48: 0 | I48: 0 | J48: 0 | K48: 0 | L48: 0 | M48: 0
A49: 2. | B49: Novčani izdaci za isplatu dividendi | H49: 0 | I49: 0 | J49: 0 | K49: 0 | L49: 0 | M49: 0
A50: 3. | B50: Novčani izdaci za financijski najam | C50: -97.184 | D50: -90.547 | E50: 0 | F50: -90.547 | G50: 0 | H50: 93.17068653 | I50: 0 | J50: 100 | K50: 0 | L50: 0 | M50: 0
A51: 4. | B51: Novčani izdaci za otkup vlastitih dionica i smanjenje temeljnog (upisanog) kapitala | H51: 0 | I51: 0 | J51: 0 | K51: 0 | L51: 0 | M51: 0
A52: 5. | B52: Ostali novčani izdaci od financijskih aktivnosti | H52: 0 | I52: 0 | J52: 0 | K52: 0 | L52: 0 | M52: 0
A53: V. | B53: Ukupno novčani izdaci od financijskih aktivnosti | C53: =SUM(C48:C52) -> -97.184 | D53: =SUM(D48:D52) -> -90.547 | E53: 0 | F53: -90.547 | G53: 0 | H53: 93.17068653 | I53: 0 | J53: 100 | K53: 0 | L53: 0 | M53: 0
A54: C. NETO NOVČANI TOKOVI OD FINANCIJSKIH AKTIVNOSTI | C54: =C47+C53 -> -97.184 | D54: =D47+D53 -> -90.547 | E54: 0 | F54: -90.547 | G54: 0 | H54: 93.17068653 | I54: 0 | J54: 100 | K54: 0 | L54: 0 | M54: 0
A55: 1. | B55: Nerealizirane tečajne razlike po novcu i novčanim ekvivalentima | H55: =IFERROR(D55/C55*100,) -> 0 | I55: =IFERROR(F55/E55*100,) -> 0 | J55: =IFERROR(F55/D55*100,) -> 0 | K55: =IFERROR(E55/C55*100,) -> 0 | L55: =IFERROR(G55/E55*100,) -> 0 | M55: =IFERROR(G55/F55*100,) -> 0
A56: D. NETO POVEĆANJE ILI SMANJENE NOVČANIH TOKOVA | C56: 12.145 | D56: =D26+D41+D54+D55 -> -133.842 | E56: 25.042 | F56: -470.135 | G56: 51.208 | H56: -1102.033759 | I56: -1877.385992 | J56: 351.2611886 | K56: 206.1918485 | L56: 204.4884594 | M56: -10.89219054
A57: E. NOVAC I NOVČANI EKVIVALENTI NA POČETKU RAZDOBLJA | C57: 910.139 | D57: 904.77 | E57: 598.755 | F57: 770.928 | G57: 300.793 | H57: 99.41009011 | I57: 128.755167 | J57: 85.2070692 | K57: 65.78720393 | L57: 50.23640721 | M57: 39.01700288
A58: F. NOVAC I NOVČANI EKVIVALENTI NA KRAJU RAZDOBLJA | C58: =C57+C56 -> 922.284 | D58: =D57+D56 -> 770.928 | E58: 623.797 | F58: 300.793 | G58: 352.001 | H58: 83.58900295 | I58: 48.21969327 | J58: 39.01700288 | K58: 67.63610775 | L58: 56.4287741 | M58: 117.0243323

Sheet MFIN
B2: DODATNE STAVKE
B4: Obveznik: | C4: =IF(ISBLANK(Podloga!B2),"",Podloga!B2) -> Zračna luka Osijek d.o.o.
C7: =Podloga!B36 -> 2022. planirano | D7: =Podloga!C36 -> 2022. ostvareno | E7: =Podloga!D36 -> 2023. planirano | F7: =Podloga!E36 -> 2023. procijenjeno | G7: =Podloga!F36 -> 2024. planirano
A8: R.Br. | B8: RAČUN DOBITI I GUBITKA - dodatna razrada
A9: 1. | B9: Operativni prihodi (od 1.1. do 1.n.) - prihodi iz redovnog poslovanja | C9: =SUM(C10:C15) -> 0 | D9: =SUM(D10:D15) -> 0 | E9: 0 | F9: 0 | G9: 0
A10: 1.1.
A11: 1.2.
A12: 1.3.
A13: 1.4.
A14: 1.5.
A15: 1.n.
A16: 2. | B16: Neoperativni prihodi (od 2.1 do 2.n.) - jednokratni | C16: =SUM(C17:C22) -> 0 | D16: =SUM(D17:D22) -> 0 | E16: =SUM(E17:E22) -> 0 | F16: =SUM(F17:F22) -> 0 | G16: =SUM(G17:G22) -> 0
A17: 2.1.
A18: 2.2.
A19: 2.3.
A20: 2.4.
A21: 2.5.
A22: 2.n.
A23: 3. | B23: Državne potpore
A24: I. | B24: Ukupni poslovni prihodi (1.+2.+3.) | C24: =C9+C16+C23 -> 0 | D24: =D9+D16+D23 -> 0 | E24: 0 | F24: 0 | G24: 0
B25: PROVJERA | C25: =(C9+C16+C23)-RDG!C5 -> -2007.445 | D25: =(D9+D16+D23)-RDG!D5 -> -2450.167 | E25: =(E9+E16+E23)-RDG!E5 -> -2131.827 | F25: =(F9+F16+F23)-RDG!F5 -> -2803.972 | G25: =(G9+G16+G23)-RDG!G5 -> -3445.894
A26: 1. | B26: Operativni poslovni rashodi (od 1.1. do 1.n.) | C26: =SUM(C27:C32) -> 0 | D26: =SUM(D27:D32) -> 0 | E26: =SUM(E27:E32) -> 0 | F26: =SUM(F27:F32) -> 0 | G26: =SUM(G27:G32) -> 0
A27: 1.1. | B27: sirovine i materijal
A28: 1.2. | B28: energija i gorivo
A29: 1.3. | B29: sitan inventar
A30: 1.4. | B30: ostali vanjski troškovi
A31: 1.5. | B31: ostali troškovi poslovanja
A32: 1.n. | B32: bankarske usluge i troškovi platnog prometa
A33: 2. | B33: Neoperativni poslovni rashodi (od 2.1 do 2.n.) | C33: =SUM(C34:C39) -> 0 | D33: =SUM(D34:D39) -> 0 | E33: =SUM(E34:E39) -> 0 | F33: =SUM(F34:F39) -> 0 | G33: =SUM(G34:G39) -> 0
A34: 2.1. | B34: ostali rashodi - izvanredni
A35: 2.2.
A36: 2.3.
A37: 2.4.
A38: 2.5.
A39: 2.n.
A40: 3. | B40: Troškovi osoblja | C40: =RDG!C17 -> 769.792 | D40: =RDG!D17 -> 744.925 | E40: =RDG!E17 -> 877.529 | F40: =RDG!F17 -> 841.779 | G40: =RDG!G17 -> 981.454
A41: 4. | B41: Amortizacija | C41: =RDG!C21 -> 291.99 | D41: =RDG!D21 -> 303.832 | E41: =RDG!E21 -> 289.336 | F41: =RDG!F21 -> 371.362 | G41: =RDG!G21 -> 425
A42: 5. | B42: Promjena vrijednosti i rezerviranja | C42: =RDG!C12+RDG!C23+RDG!C26 -> 0 | D42: =RDG!D12+RDG!D23+RDG!D26 -> 2.35 | E42: =RDG!E12+RDG!E23+RDG!E26 -> 0 | F42: =RDG!F12+RDG!F23+RDG!F26 -> 2.35 | G42: =RDG!G12+RDG!G23+RDG!G26 -> 0
A43: II. | B43: Ukupni poslovni rashodi | C43: =C26+C33+C40+C41+C42 -> 1061.782 | D43: =D26+D33+D40+D41+D42 -> 1051.107 | E43: 1166.865 | F43: 1215.491 | G43: 1406.454
B44: PROVJERA | C44: =(C26+C33+C40+C41+C42)-RDG!C11 -> -866.307 | D44: =(D26+D33+D40+D41+D42)-RDG!D11 -> -1684.251 | E44: =(E26+E33+E40+E41+E42)-RDG!E11 -> -898.847 | F44: =(F26+F33+F40+F41+F42)-RDG!F11 -> -2169.435 | G44: =(G26+G33+G40+G41+G42)-RDG!G11 -> -1972.16
A45: III. | B45: UKUPNI FINANCIJSKI PRIHODI (od 1. do 4.) | C45: =C46+C51+C52+C53 -> 0 | D45: =D46+D51+D52+D53 -> 0 | E45: =E46+E51+E52+E53 -> 0 | F45: =F46+F51+F52+F53 -> 0 | G45: =G46+G51+G52+G53 -> 0
A46: 1. | B46: Prihodi od kamata (po investiciji) (od 1.1. do 1. n.) | C46: =SUM(C47:C50) -> 0 | D46: =SUM(D47:D50) -> 0 | E46: =SUM(E47:E50) -> 0 | F46: =SUM(F47:F50) -> 0 | G46: =SUM(G47:G50) -> 0
A47: 1.1. | B47: Ostali prihodi s osnove kamata
A48: 1.2.
A49: 1.3.
A50: 1.n.
A51: 2. | B51: Pozitivne tečajne razlike
A52: 3. | B52: Ostali financijski prihodi (core) - iz redovnog poslovanja
A53: 4. | B53: Ostali financijski prihodi (non-core) - jednokratni
A54: IV. | B54: UKUPNI FINANCIJSKI RASHODI (od 1. do 4.) | C54: =C55+C60+C61+C62 -> 0 | D54: =D55+D60+D61+D62 -> 0 | E54: =E55+E60+E61+E62 -> 0 | F54: =F55+F60+F61+F62 -> 0 | G54: =G55+G60+G61+G62 -> 0
A55: 1. | B55: Rashodi od kamata (po obvezi) (od 1.1. do 1. n.) | C55: =SUM(C56:C59) -> 0 | D55: =SUM(D56:D59) -> 0 | E55: =SUM(E56:E59) -> 0 | F55: =SUM(F56:F59) -> 0 | G55: =SUM(G56:G59) -> 0
A56: 1.1.
A57: 1.2.
A58: 1.3.
A59: 1.n.
A60: 2. | B60: Negativne tečajne razlike
A61: 3. | B61: Ostali financijski rashodi (core) - iz redovnog poslovanja
A62: 4. | B62: Ostali financijski rashodi (non-core) - jednokratni
A63: V. | B63: NETO FINANCIJSKI PRIHODI/RASHODI (III.-IV.) | C63: =C45-C54 -> 0 | D63: =D45-D54 -> 0 | E63: =E45-E54 -> 0 | F63: =F45-F54 -> 0 | G63: =G45-G54 -> 0
B64: PROVJERA | C64: =(C45+C54)-(RDG!C34+RDG!C45) -> -78.306 | D64: =(D45+D54)-(RDG!D34+RDG!D45) -> -72.388 | E64: =(E45+E54)-(RDG!E34+RDG!E45) -> -61.767 | F64: =(F45+F54)-(RDG!F34+RDG!F45) -> -47.631 | G64: =(G45+G54)-(RDG!G34+RDG!G45) -> -63.34
B66: INVESTICIJSKA ULAGANJA
B67: Isplata za ukupna investicijska ulaganja (od 1.1. do 1.n) | C67: =SUM(C68:C72) -> 0 | D67: =SUM(D68:D72) -> 0 | E67: 0 | F67: 0 | G67: 0
A68: 1.1. | B68: otklanjanje nalaza Agencije za civilno zrakoplovstvo radi sigurnosti
A69: 1.2. | B69: Segment / naziv investicije
A70: 1.3. | B70: Segment / naziv investicije
A71: 1.4. | B71: Segment / naziv investicije
A72: 1.n. | B72: Segment / naziv investicije
B73: Izvori financiranja investicija (od 1.1. do 1.6.) | C73: =SUM(C74:C79) -> 0 | D73: =SUM(D74:D79) -> 0 | E73: 0 | F73: 0 | G73: 0
A74: 1.1. | B74: Vlastita sredstva
A75: 1.2. | B75: Sredstva iz Državnog proračuna
A76: 1.3. | B76: Banke i ostale financijske institucije
A77: 1.4. | B77: Međunarodne financijske institucije
A78: 1.5. | B78: Nefinancijske institucije
A79: 1.6 | B79: EU fondovi
B81: OSTALE STAVKE
B82: Prosjek broja zaposlenih tijekom razdoblja | C82: =Podloga!B37 -> 0 | D82: =Podloga!C37 -> 0 | E82: =Podloga!D37 -> 0 | F82: =Podloga!E37 -> 0 | G82: =Podloga!F37 -> 0
B83: Broj zaposlenih prema satima rada
B84: Dugotrajna financijska imovina
B85: Od čega: Dani dugoročni depoziti
B86: Od čega: Likvidne dionice / ostalo
B87: Od čega: Ostalo
B88: Kratkotrajna financijska imovina
B89: Od čega: Dani kratkorični depoziti
B90: Od čega: Likvidne dionice / ostalo
B91: Od čega: Ostalo
B92: Dokapitalizacija
B93: Promjene temeljnog kapitala
B94: (+) Dokapitalizacija
B95: (-) Smanjenje / otpis
B96: Isplaćena dividenda
B99: * Ukoliko kod određenih kategorija postoji veći broj stavaka, moguće je ubacivati dodatne redove

Sheet _TM_NT- indirektna metoda (2) (hidden)
A1: Left | B1: Top | C1: Right | D1: Bottom | E1: Ref
A2: 11 | B2: 2 | C2: 11 | D2: 3 | E2: $K$2:$K$3

Sheet _TM_Dug (hidden)
A1: Left | B1: Top | C1: Right | D1: Bottom | E1: Ref
A2: 1 | B2: 41 | C2: 13 | D2: 41 | E2: $A$41:$M$41
A3: 15 | B3: 2 | C3: 17 | D3: 41 | E3: $O$2:$Q$41

Sheet _TM_Sponzorstva i donacije (hidden)
A1: Left | B1: Top | C1: Right | D1: Bottom | E1: Ref
A2: 2 | B2: 2 | C2: 5 | D2: 31 | E2: $B$2:$E$31

Sheet _TM_ULaganja (hidden)
A1: Left | B1: Top | C1: Right | D1: Bottom | E1: Ref
A2: 2 | B2: 2 | C2: 8 | D2: 44 | E2: $B$2:$H$44
A3: 2 | B3: 45 | C3: 8 | D3: 45 | E3: $B$45:$H$45

Sheet _TM_Građ. objekti i zemljišta (hidden)
A1: Left | B1: Top | C1: Right | D1: Bottom | E1: Ref
A2: 2 | B2: 2 | C2: 9 | D2: 70 | E2: $B$2:$I$70

Sheet Dashboard (hidden)
A1: Dashboard:
A2: Prikaz ključnih pokazatelja poslovanja | B2: =HYPERLINK("#'Ključni poslovni pokazatelji'!A1","Ključni poslovni pokazatelji") -> Ključni poslovni pokazatelji
A3: Analiza izvještaja o financijskom položaju | B3: =HYPERLINK("#'Financijski položaj'!A1","Financijski položaj") -> Financijski položaj
A4: Analiza računa dobiti i gubitka | B4: =HYPERLINK("#'RDG 1'!A1","RDG 1") -> RDG 1
B5: =HYPERLINK("#'RDG 2'!A1","RDG 2") -> RDG 2
A6: Analiza izvještaja o novčanom toku | B6: =HYPERLINK("#'Novčani tok'!A1","Izvještaj o novčanom toku ") -> Izvještaj o novčanom toku
A7: Analiza profitabilnosti | B7: =HYPERLINK("#Profitabilnost!A1","Profitabilnost") -> Profitabilnost
A8: Analiza likvidnosti | B8: =HYPERLINK("#Likvidnost!A1","Likvidnost") -> Likvidnost
A9: Analiza aktivnosti | B9: =HYPERLINK("#Aktivnost!A1","Aktivnost") -> Aktivnost
A10: Analiza zaduženosti | B10: =HYPERLINK("#Zaduženost!A1","Zaduženost") -> Zaduženost

Sheet _TM_Profit and loss (hidden)
A1: Left | B1: Top | C1: Right | D1: Bottom | E1: Ref
A2: 2 | B2: 17 | C2: 13 | D2: 17 | E2: $B$17:$M$17
A3: 2 | B3: 17 | C3: 13 | D3: 17 | E3: $B$17:$M$17

Sheet Ključni poslovni pokazatelji (hidden)
B1: =Naslovna!B3&" - "&Naslovna!I2 -> Ministarstvo državne imovine - Godišnji financijski plan poslovanja
B2: SAŽETI PRIKAZ KLJUČNIH FINANCIJSKIH POKAZATELJA
B3: Društvo: | C3: =Podloga!B2 -> Zračna luka Osijek d.o.o.
B4: Tip dokumenta: | C4: =Naslovna!B8 -> Godišnji financijski plan poslovanja
B5: Jedinstveni ključni pokazatelji poslovanja
D6: =LEFT(Podloga!C36,10)&"." -> 2022. ostv. | E6: =LEFT(Podloga!E36,10)&"." -> 2023. proc. | G6: =LEFT(Podloga!B36,10)&"." -> 2022. plan. | H6: =LEFT(Podloga!D36,10)&"." -> 2023. plan. | I6: =LEFT(Podloga!F36,10)&"." -> 2024. plan.
B7: Glavni financijski pokazatelji (u tisućama kuna) | C7: OSTVARENO | F7: PLANIRANO
B8: Prihodi | D8: =IFERROR(RDG!D57,) -> 2450.767 | E8: =IFERROR(RDG!F57,) -> 2804.489 | G8: =IFERROR(RDG!C57,) -> 2012.754 | H8: =IFERROR(RDG!E57,) -> 2132.276 | I8: =IFERROR(RDG!G57,) -> 3446.434
B9: Imovina | D9: =IFERROR(Bilanca!D68,) -> 13481.1923 | E9: =IFERROR(Bilanca!F68,) -> 12973.986 | G9: =IFERROR(Bilanca!C68,) -> 13326.6952 | H9: =IFERROR(Bilanca!E68,) -> 19429.3726 | I9: =IFERROR(Bilanca!G68,) -> 20409.84
B10: EBITDA | D10: =IFERROR((RDG!D59+RDG!D46+RDG!D48+RDG!D21),) -> 17.653 | E10: =IFERROR((RDG!F59+RDG!F46+RDG!F48+RDG!F21),) -> -211.673 | G10: =IFERROR((RDG!C59+RDG!C46+RDG!C48+RDG!C21),) -> 374.001 | H10: =IFERROR((RDG!E59+RDG!E46+RDG!E48+RDG!E21),) -> 349.065 | I10: =IFERROR((RDG!G59+RDG!G46+RDG!G48+RDG!G21),) -> 485.87
B11: Dobit | D11: =IFERROR(RDG!D59,) -> -356.379 | E11: =IFERROR(RDG!F59,) -> -627.551 | G11: =IFERROR(RDG!C59,) -> 11.668 | H11: =IFERROR(RDG!E59,) -> 5.246 | I11: =IFERROR(RDG!G59,) -> 5.02
B12: Prihod od osnovne djelatnosti po zaposlenom | D12: =IFERROR(RDG!D5/Podloga!C37,) -> 0 | E12: =IFERROR(RDG!F5/Podloga!E37,) -> 0 | G12: =IFERROR(RDG!C5/Podloga!B37,) -> 0 | H12: =IFERROR(RDG!E5/Podloga!D37,) -> 0 | I12: =IFERROR(RDG!G5/Podloga!F37,) -> 0
B13: Pokazatelji profitabilnosti | C13: OSTVARENO | F13: PLANIRANO
B14: ROA | D14: =IFERROR(RDG!D63/Bilanca!D68,) -> -0.02643527309 | E14: =IFERROR(RDG!F63/Bilanca!F68,) -> -0.04836994583 | G14: =IFERROR(RDG!C63/Bilanca!C68,) -> 0.0008755358943 | H14: =IFERROR(RDG!E63/Bilanca!E68,) -> 0.0002700035718 | I14: =IFERROR(RDG!G63/Bilanca!G68,) -> 0.0002459597919
B15: ROE | D15: =IFERROR((RDG!D83/Bilanca!D$75),) -> -0.2325998349 | E15: =IFERROR((RDG!F83/Bilanca!F$75),) -> -0.6937293073 | G15: =IFERROR((RDG!C83/Bilanca!C$75),) -> 0.006059592572 | H15: =IFERROR((RDG!E83/Bilanca!E$75),) -> 0.003507589525 | I15: =IFERROR((RDG!G83/Bilanca!G$75),) -> 0.00551875773
B16: EBITDA Marža | D16: =IFERROR((RDG!D59+RDG!D46+RDG!D48+RDG!D21)/RDG!D57,) -> 0.007203051126 | E16: =IFERROR((RDG!F59+RDG!F46+RDG!F48+RDG!F21)/RDG!F57,) -> -0.075476495 | G16: =IFERROR((RDG!C59+RDG!C46+RDG!C48+RDG!C21)/RDG!C57,) -> 0.1858155542 | H16: =IFERROR((RDG!E59+RDG!E46+RDG!E48+RDG!E21)/RDG!E57,) -> 0.1637053552 | I16: =IFERROR((RDG!G59+RDG!G46+RDG!G48+RDG!G21)/RDG!G57,) -> 0.1409776018
B17: EBIT Marža | D17: =IFERROR((RDG!D59+RDG!D46+RDG!D48)/RDG!D57,) -> -0.1167711986 | E17: =IFERROR((RDG!F59+RDG!F46+RDG!F48)/RDG!F57,) -> -0.2078934879 | G17: =IFERROR((RDG!C59+RDG!C46+RDG!C48)/RDG!C57,) -> 0.04074566489 | H17: =IFERROR((RDG!E59+RDG!E46+RDG!E48)/RDG!E57,) -> 0.02801185212 | I17: =IFERROR((RDG!G59+RDG!G46+RDG!G48)/RDG!G57,) -> 0.01766173384
B18: Neto profitna marža | D18: =IFERROR(RDG!D63/RDG!D57,) -> -0.1454152924 | E18: =IFERROR(RDG!F63/RDG!F57,) -> -0.2237666113 | G18: =IFERROR(RDG!C63/RDG!C57,) -> 0.005797032325 | H18: =IFERROR(RDG!E63/RDG!E57,) -> 0.002460281877 | I18: =IFERROR(RDG!G63/RDG!G57,) -> 0.001456578017
B19: Pokazatelji likvidnosti | C19: OSTVARENO | F19: PLANIRANO
B20: Tekuća likvidnost | D20: =IFERROR(Bilanca!D40/Bilanca!D115,) -> 0.1184428344 | E20: =IFERROR(Bilanca!F40/Bilanca!F115,) -> 0.08003261826 | G20: =IFERROR(Bilanca!C40/Bilanca!C115,) -> 0.1217405473 | H20: =IFERROR(Bilanca!E40/Bilanca!E115,) -> 0.06244822732 | I20: =IFERROR(Bilanca!G40/Bilanca!G115,) -> 0.03935919473
B21: Trenutna likvidnost | D21: =IFERROR(Bilanca!D66/Bilanca!D115,) -> 0.08412468115 | E21: =IFERROR(Bilanca!F66/Bilanca!F115,) -> 0.03247069177 | G21: =IFERROR(Bilanca!C66/Bilanca!C115,) -> 0.08628528761 | H21: =IFERROR(Bilanca!E66/Bilanca!E115,) -> 0.04178164545 | I21: =IFERROR(Bilanca!G66/Bilanca!G115,) -> 0.02107689578
B22: Financijska stabilnost | D22: =IFERROR(Bilanca!D5/(Bilanca!D75+Bilanca!D103),) -> 2.875623464 | E22: =IFERROR(Bilanca!F5/(Bilanca!F75+Bilanca!F103),) -> 3.302518722 | G22: =IFERROR(Bilanca!C5/(Bilanca!C75+Bilanca!C103),) -> 2.537800065 | H22: =IFERROR(Bilanca!E5/(Bilanca!E75+Bilanca!E103),) -> 4.147310373 | I22: =IFERROR(Bilanca!G5/(Bilanca!G75+Bilanca!G103),) -> 5.325501841
B23: Pokazatelji aktivnosti | C23: OSTVARENO | F23: PLANIRANO
B24: Obrtaj imovine | D24: =IFERROR(RDG!D57/Bilanca!D68,) -> 0.1817915616 | E24: =IFERROR(RDG!F57/Bilanca!F68,) -> 0.2161624808 | G24: =IFERROR(RDG!C57/Bilanca!C68,) -> 0.1510317427 | H24: =IFERROR(RDG!E57/Bilanca!E68,) -> 0.1097449745 | I24: =IFERROR(RDG!G57/Bilanca!G68,) -> 0.1688613923
B25: Obrtaj potraživanja | D25: =IFERROR(((RDG!D6+RDG!D7)/(Bilanca!D51)),) -> 0 | E25: =IFERROR(((RDG!F6+RDG!F7)/(Bilanca!F51)),) -> 0 | G25: =IFERROR(((RDG!C6+RDG!C7)/(Bilanca!C51)),) -> 0 | H25: =IFERROR(((RDG!E6+RDG!E7)/(Bilanca!E51)),) -> 0 | I25: =IFERROR(((RDG!G6+RDG!G7)/(Bilanca!G51)),) -> 0
B26: Dani potraživanja | D26: =IFERROR(365/D25,) -> 0 | E26: =IFERROR(365/E25,) -> 0 | G26: =IFERROR(365/G25,) -> 0 | H26: =IFERROR(365/H25,) -> 0 | I26: =IFERROR(365/I25,) -> 0
B27: Pokazatelji zaduženosti | C27: OSTVARENO | F27: PLANIRANO
B28: Koeficijent zaduženosti | D28: =IFERROR(((Bilanca!D96+Bilanca!D103+Bilanca!D115+Bilanca!D130)/Bilanca!D68),) -> 0.8863484575 | E28: =IFERROR(((Bilanca!F96+Bilanca!F103+Bilanca!F115+Bilanca!F130)/Bilanca!F68),) -> 0.9302753988 | G28: =IFERROR(((Bilanca!C96+Bilanca!C103+Bilanca!C115+Bilanca!C130)/Bilanca!C68),) -> 0.8555128506 | H28: =IFERROR(((Bilanca!E96+Bilanca!E103+Bilanca!E115+Bilanca!E130)/Bilanca!E68),) -> 0.923023114 | I28: =IFERROR(((Bilanca!G96+Bilanca!G103+Bilanca!G115+Bilanca!G130)/Bilanca!G68),) -> 0.9554320857
B29: Koeficijent vlastitog financiranja | D29: =IFERROR((Bilanca!D75/Bilanca!D68),) -> 0.1136512977 | E29: =IFERROR((Bilanca!F75/Bilanca!F68),) -> 0.06972452414 | G29: =IFERROR((Bilanca!C75/Bilanca!C68),) -> 0.1444875846 | H29: =IFERROR((Bilanca!E75/Bilanca!E68),) -> 0.07697695807 | I29: =IFERROR((Bilanca!G75/Bilanca!G68),) -> 0.0445679633
B30: Koeficijent financiranja | D30: =IFERROR(((Bilanca!D96+Bilanca!D103+Bilanca!D115+Bilanca!D130)/Bilanca!D75),) -> 7.798841501 | E30: =IFERROR(((Bilanca!F96+Bilanca!F103+Bilanca!F115+Bilanca!F130)/Bilanca!F75),) -> 13.34215486 | G30: =IFERROR(((Bilanca!C96+Bilanca!C103+Bilanca!C115+Bilanca!C130)/Bilanca!C75),) -> 5.921012889 | H30: =IFERROR(((Bilanca!E96+Bilanca!E103+Bilanca!E115+Bilanca!E130)/Bilanca!E75),) -> 11.9909014 | I30: =IFERROR(((Bilanca!G96+Bilanca!G103+Bilanca!G115+Bilanca!G130)/Bilanca!G75),) -> 21.43764298
B31: Odnos ukupne imovine i kapitala | D31: =IFERROR(Bilanca!D68/Bilanca!D75,) -> 8.798843655 | E31: =IFERROR(Bilanca!F68/Bilanca!F75,) -> 14.34215597 | G31: =IFERROR(Bilanca!C68/Bilanca!C75,) -> 6.921009877 | H31: =IFERROR(Bilanca!E68/Bilanca!E75,) -> 12.99090046 | I31: =IFERROR(Bilanca!G68/Bilanca!G75,) -> 22.43764189
B32: * Plavo osjenčana pozadina označava planirane vrijednosti
B66: =HYPERLINK("#Sadržaj!A1","Povratak na sadržaj") -> Povratak na sadržaj

Sheet Financijski položaj (hidden)
B1: =Naslovna!B3&" - "&Naslovna!I2 -> Ministarstvo državne imovine - Godišnji financijski plan poslovanja
B2: SAŽETI PRIKAZ IZVJEŠTAJA O FINANCIJSKOM POLOŽAJU
B4: Društvo: | D4: =Podloga!B2 -> Zračna luka Osijek d.o.o.
B5: Tip dokumenta: | D5: =Naslovna!B8 -> Godišnji financijski plan poslovanja
B6: Sastavlja se za godinu: | D6: =Podloga!B8 -> 2024
B8: Bilanca (u 000 kn)
C9: =Podloga!B36 -> 2022. planirano | D9: =Podloga!C36 -> 2022. ostvareno | F9: =Podloga!D36 -> 2023. planirano | G9: =Podloga!E36 -> 2023. procijenjeno | I9: =Podloga!F36 -> 2024. planirano
B10: Dugotrajna imovina | C10: =Bilanca!C5 -> 12296.7681 | D10: =Bilanca!D5 -> 12395.7689 | E10: =D10-C10 -> 99.0008 | F10: =Bilanca!E5 -> 18497.025 | G10: =Bilanca!F5 -> 12232.602 | H10: =G10-F10 -> -6264.423 | I10: =Bilanca!G5 -> 19752.51 | J10: =I10-G10 -> 7519.908
B11: Kratkotrajna imovina | C11: =Bilanca!C40 -> 1029.9271 | D11: =Bilanca!D40 -> 1085.4234 | E11: =D11-C11 -> 55.4963 | F11: =Bilanca!E40 -> 932.3476 | G11: =Bilanca!F40 -> 741.384 | H11: =G11-F11 -> -190.9636 | I11: =Bilanca!G40 -> 657.33 | J11: =I11-G11 -> -84.054
B12: Ostalo | C12: =Bilanca!C67+Bilanca!C4 -> 0 | D12: =Bilanca!D67+Bilanca!D4 -> 0 | E12: 0 | F12: =Bilanca!E67+Bilanca!E4 -> 0 | G12: =Bilanca!F67+Bilanca!F4 -> 0 | H12: 0 | I12: =Bilanca!G67+Bilanca!G4 -> 0 | J12: 0
B13: Ukupno aktiva | C13: =SUM(C10:C12) -> 13326.6952 | D13: =SUM(D10:D12) -> 13481.1923 | E13: 154.4971 | F13: =SUM(F10:F12) -> 19429.3726 | G13: =SUM(G10:G12) -> 12973.986 | H13: -6455.3866 | I13: =SUM(I10:I12) -> 20409.84 | J13: 7435.854
B15: Kapital i rezerve | C15: =Bilanca!C75 -> 1925.542 | D15: =Bilanca!D75 -> 1532.155 | E15: -393.387 | F15: =Bilanca!E75 -> 1495.614 | G15: =Bilanca!F75 -> 904.605 | H15: -591.009 | I15: =Bilanca!G75 -> 909.625 | J15: 5.02
B16: Rezerviranja | C16: =Bilanca!C96 -> 21.24 | D16: =Bilanca!D96 -> 6.44 | E16: -14.8 | F16: =Bilanca!E96 -> 39.44 | G16: =Bilanca!F96 -> 6.44 | H16: -33 | I16: =Bilanca!G96 -> 0 | J16: -6.44
B17: Dugoročne obveze | C17: =Bilanca!C103 -> 2919.902 | D17: =Bilanca!D103 -> 2778.482 | E17: -141.42 | F17: =Bilanca!E103 -> 2964.391 | G17: =Bilanca!F103 -> 2799.417 | H17: -164.974 | I17: =Bilanca!G103 -> 2799.417 | J17: 0
B18: Kratkoročne obveze | C18: =Bilanca!C115 -> 8460.017 | D18: =Bilanca!D115 -> 9164.112 | E18: 704.095 | F18: =Bilanca!E115 -> 14929.929 | G18: =Bilanca!F115 -> 9263.523 | H18: -5666.406 | I18: =Bilanca!G115 -> 16700.799 | J18: 7437.276
B19: Ostalo | C19: =Bilanca!C130 -> 0 | D19: =Bilanca!D130 -> 0 | E19: 0 | F19: =Bilanca!E130 -> 0 | G19: =Bilanca!F130 -> 0 | H19: 0 | I19: =Bilanca!G130 -> 0 | J19: 0
B20: Ukupna pasiva | C20: =SUM(C15:C19) -> 13326.701 | D20: =SUM(D15:D19) -> 13481.189 | E20: 154.488 | F20: =SUM(F15:F19) -> 19429.374 | G20: =SUM(G15:G19) -> 12973.985 | H20: -6455.389 | I20: =SUM(I15:I19) -> 20409.841 | J20: 7435.856
B22: * Ostvareni rezultati se uspoređuju s planom, osim plana za slijedeću godinu koji se uspoređuje s procijenjenim rezultatom tekuće godine
B23: ** Plavo osjenčana pozadina označava planirane vrijednosti
B57: Dodatni komentari i pojašnjenja na rezultate
B68: =HYPERLINK("#Sadržaj!A1","Povratak na sadržaj") -> Povratak na sadržaj

Sheet RDG 1 (hidden)
B1: =Naslovna!B3&" - "&Naslovna!I2 -> Ministarstvo državne imovine - Godišnji financijski plan poslovanja
B2: SAŽETI PRIKAZ RAČUNA DOBITI I GUBITKA (1/2)
B4: Društvo: | C4: =Podloga!B2 -> Zračna luka Osijek d.o.o.
B5: Tip dokumenta: | C5: =Naslovna!B8 -> Godišnji financijski plan poslovanja
B6: Sastavlja se za godinu: | C6: =Podloga!B8 -> 2024
B8: Račun dobiti i gubitka (u 000 kn)
C9: =Podloga!B36 -> 2022. planirano | D9: =Podloga!C36 -> 2022. ostvareno | F9: =Podloga!D36 -> 2023. planirano | G9: =Podloga!E36 -> 2023. procijenjeno | I9: =Podloga!F36 -> 2024. planirano
B10: Poslovni prihodi | C10: =RDG!C5 -> 2007.445 | D10: =RDG!D5 -> 2450.167 | E10: =D10-C10 -> 442.722 | F10: =RDG!E5 -> 2131.827 | G10: =RDG!F5 -> 2803.972 | H10: =G10-F10 -> 672.145 | I10: =RDG!G5 -> 3445.894 | J10: =I10-G10 -> 641.922
B11: Poslovni rashodi | C11: =RDG!C11 -> 1928.089 | D11: =RDG!D11 -> 2735.358 | E11: =D11-C11 -> 807.269 | F11: =RDG!E11 -> 2065.712 | G11: =RDG!F11 -> 3384.926 | H11: =G11-F11 -> 1319.214 | I11: =RDG!G11 -> 3378.614 | J11: =I11-G11 -> -6.312
B12: Financijski i investicijski prihodi | C12: =RDG!C34+RDG!C53+RDG!C54 -> 5.309 | D12: =RDG!D34+RDG!D53+RDG!D54 -> 0.6 | E12: -4.709 | F12: =RDG!E34+RDG!E53+RDG!E54 -> 0.449 | G12: =RDG!F34+RDG!F53+RDG!F54 -> 0.517 | H12: 0.068 | I12: =RDG!G34+RDG!G53+RDG!G54 -> 0.54 | J12: 0.023
B13: Financijski i investicijski rashodi | C13: =RDG!C45+RDG!C55+RDG!C56 -> 72.997 | D13: =RDG!D45+RDG!D55+RDG!D56 -> 71.788 | E13: -1.209 | F13: =RDG!E45+RDG!E55+RDG!E56 -> 61.318 | G13: =RDG!F45+RDG!F55+RDG!F56 -> 47.114 | H13: -14.204 | I13: =RDG!G45+RDG!G55+RDG!G56 -> 62.8 | J13: 15.686
B14: Dobit/Gubitak prije oporezivanja | C14: =RDG!C59 -> 11.668 | D14: =RDG!D59 -> -356.379 | E14: -368.047 | F14: =RDG!E59 -> 5.246 | G14: =RDG!F59 -> -627.551 | H14: -632.797 | I14: =RDG!G59 -> 5.02 | J14: 632.571
B15: Porez na dobit | C15: =RDG!C62 -> 0 | D15: =RDG!D62 -> 0 | E15: 0 | F15: =RDG!E62 -> 0 | G15: =RDG!F62 -> 0 | H15: 0 | I15: =RDG!G62 -> 0 | J15: 0
B16: Neto dobit | C16: =C10-C11+C12-C13-C15 -> 11.668 | D16: =D10-D11+D12-D13-D15 -> -356.379 | E16: -368.047 | F16: =F10-F11+F12-F13-F15 -> 5.246 | G16: =G10-G11+G12-G13-G15 -> -627.551 | H16: -632.797 | I16: =I10-I11+I12-I13-I15 -> 5.02 | J16: 632.571
B18: * Ostvareni rezultati se uspoređuju s planom, osim plana za slijedeću godinu koji se uspoređuje s procijenjenim rezultatom tekuće godine
B19: ** Plavo osjenčana pozadina označava planirane vrijednosti
B63: Dodatni komentari i pojašnjenja na rezultate
B74: =HYPERLINK("#Sadržaj!A1","Povratak na sadržaj") -> Povratak na sadržaj

Sheet RDG 2 (hidden)
B1: =Naslovna!B3&" - "&Naslovna!I2 -> Ministarstvo državne imovine - Godišnji financijski plan poslovanja
B2: SAŽETI PRIKAZ RAČUNA DOBITI I GUBITKA (2/2)
B4: Društvo: | C4: =Podloga!B2 -> Zračna luka Osijek d.o.o.
B5: Tip dokumenta: | C5: =Naslovna!B8 -> Godišnji financijski plan poslovanja
B6: Sastavlja se za godinu: | C6: =Podloga!B8 -> 2024
B63: Dodatni komentari i pojašnjenja na rezultate
B75: =HYPERLINK("#Sadržaj!A1","Povratak na sadržaj") -> Povratak na sadržaj

Sheet Novčani tok (hidden)
A1: =Naslovna!B3&" - "&Naslovna!I2 -> Ministarstvo državne imovine - Godišnji financijski plan poslovanja
B2: ="SAŽETI PRIKAZ NOVČANOG TOKA PO "&(IF(Podloga!B19="Direktna","DIREKTNOJ","INDIREKTNOJ"))&" METODI" -> SAŽETI PRIKAZ NOVČANOG TOKA PO INDIREKTNOJ METODI
B4: Društvo: | C4: =Podloga!B2 -> Zračna luka Osijek d.o.o.
B5: Tip dokumenta: | C5: =Naslovna!B8 -> Godišnji financijski plan poslovanja
B6: Sastavlja se za godinu: | C6: =Podloga!B8 -> 2024
B8: Izvještaj o novčanom toku (u 000 kn)
C9: =Podloga!B36 -> 2022. planirano | D9: =Podloga!C36 -> 2022. ostvareno | F9: =Podloga!D36 -> 2023. planirano | G9: =Podloga!E36 -> 2023. procijenjeno | I9: =Podloga!F36 -> 2024. planirano
B10: Novac i novčani ekvivalenti na početku razdoblja | C10: =IF(Podloga!$B$19="Direktna",'NT dir.'!C49,'NT indir.'!C57) -> 910.139 | D10: =IF(Podloga!$B$19="Direktna",'NT dir.'!D49,'NT indir.'!D57) -> 904.77 | E10: =D10-C10 -> -5.369 | F10: =IF(Podloga!$B$19="Direktna",'NT dir.'!E49,'NT indir.'!E57) -> 598.755 | G10: =IF(Podloga!$B$19="Direktna",'NT dir.'!F49,'NT indir.'!F57) -> 770.928 | H10: =G10-F10 -> 172.173 | I10: =IF(Podloga!$B$19="Direktna",'NT dir.'!G49,'NT indir.'!G57) -> 300.793 | J10: =I10-G10 -> -470.135
B11: Neto novčani tok od poslovnih aktivnosti | C11: =IF(Podloga!$B$19="Direktna",'NT dir.'!C18,'NT indir.'!C26) -> 255.324 | D11: =IF(Podloga!$B$19="Direktna",'NT dir.'!D18,'NT indir.'!D26) -> 498.259 | E11: 242.935 | F11: =IF(Podloga!$B$19="Direktna",'NT dir.'!E18,'NT indir.'!E26) -> 6251.951 | G11: =IF(Podloga!$B$19="Direktna",'NT dir.'!F18,'NT indir.'!F26) -> -189.859 | H11: =G11-F11 -> -6441.81 | I11: =IF(Podloga!$B$19="Direktna",'NT dir.'!G18,'NT indir.'!G26) -> 50.688 | J11: =I11-G11 -> 240.547
B12: Neto novčani tok od investicijskih aktivnosti | C12: =IF(Podloga!$B$19="Direktna",'NT dir.'!C33,'NT indir.'!C41) -> -145.995 | D12: =IF(Podloga!$B$19="Direktna",'NT dir.'!D33,'NT indir.'!D41) -> -541.554 | E12: -395.559 | F12: =IF(Podloga!$B$19="Direktna",'NT dir.'!E33,'NT indir.'!E41) -> -6226.909 | G12: =IF(Podloga!$B$19="Direktna",'NT dir.'!F33,'NT indir.'!F41) -> -189.729 | H12: 6037.18 | I12: =IF(Podloga!$B$19="Direktna",'NT dir.'!G33,'NT indir.'!G41) -> 0.52 | J12: 190.249
B13: Neto novčani tok od financijskih aktivnosti | C13: =IF(Podloga!$B$19="Direktna",'NT dir.'!C46+'NT dir.'!C47,'NT indir.'!C54+'NT indir.'!C55) -> -97.184 | D13: =IF(Podloga!$B$19="Direktna",'NT dir.'!D46+'NT dir.'!D47,'NT indir.'!D54+'NT indir.'!D55) -> -90.547 | E13: 6.637 | F13: =IF(Podloga!$B$19="Direktna",'NT dir.'!E46+'NT dir.'!E47,'NT indir.'!E54+'NT indir.'!E55) -> 0 | G13: =IF(Podloga!$B$19="Direktna",'NT dir.'!F46+'NT dir.'!F47,'NT indir.'!F54+'NT indir.'!F55) -> -90.547 | H13: -90.547 | I13: =IF(Podloga!$B$19="Direktna",'NT dir.'!G46+'NT dir.'!G47,'NT indir.'!G54+'NT indir.'!G55) -> 0 | J13: 90.547
B14: Novac i novčani ekvivalenti na kraju razdoblja | C14: =IF(Podloga!$B$19="Direktna",'NT dir.'!C50,'NT indir.'!C58) -> 922.284 | D14: =IF(Podloga!$B$19="Direktna",'NT dir.'!D50,'NT indir.'!D58) -> 770.928 | E14: -151.356 | F14: =IF(Podloga!$B$19="Direktna",'NT dir.'!E50,'NT indir.'!E58) -> 623.797 | G14: =IF(Podloga!$B$19="Direktna",'NT dir.'!F50,'NT indir.'!F58) -> 300.793 | H14: -323.004 | I14: =IF(Podloga!$B$19="Direktna",'NT dir.'!G50,'NT indir.'!G58) -> 352.001 | J14: 51.208
B15: * Ostvareni rezultati se uspoređuju s planom, osim plana za slijedeću godinu koji se uspoređuje s procijenjenim rezultatom tekuće godine
B16: ** Plavo osjenčana pozadina označava planirane vrijednosti
C38: =IF(Podloga!B19="Direktna"," "," Nije primjenjivo kod indirektne metode") -> Nije primjenjivo kod indirektne metode
C47: =IF(Podloga!B19="Direktna"," "," Nije primjenjivo kod indirektne metode") -> Nije primjenjivo kod indirektne metode
B57: Dodatni komentari i pojašnjenja na rezultate
B67: =HYPERLINK("#Sadržaj!A1","Povratak na sadržaj") -> Povratak na sadržaj

Sheet Profitabilnost (hidden)
B1: =Naslovna!B3&" - "&Naslovna!I2 -> Ministarstvo državne imovine - Godišnji financijski plan poslovanja
B2: SAŽETI PRIKAZ POKAZATELJA PROFITABILNOSTI
B4: Društvo: | C4: =Podloga!B2 -> Zračna luka Osijek d.o.o.
B5: Tip dokumenta: | C5: =Naslovna!B8 -> Godišnji financijski plan poslovanja
B6: Sastavlja se za godinu: | C6: =Podloga!B8 -> 2024
B8: Pokazatelji profitabilnosti
C9: =Podloga!B36 -> 2022. planirano | D9: =Podloga!C36 -> 2022. ostvareno | F9: =Podloga!D36 -> 2023. planirano | G9: =Podloga!E36 -> 2023. procijenjeno | I9: =Podloga!F36 -> 2024. planirano
B10: ROA | C10: =IFERROR(RDG!C63/Bilanca!C68,) -> 0.0008755358943 | D10: =IFERROR(RDG!D63/Bilanca!D68,) -> -0.02643527309 | E10: =D10-C10 -> -0.02731080898 | F10: =IFERROR(RDG!E63/Bilanca!E68,) -> 0.0002700035718 | G10: =IFERROR(RDG!F63/Bilanca!F68,) -> -0.04836994583 | H10: =G10-F10 -> -0.0486399494 | I10: =IFERROR(RDG!G63/Bilanca!G68,) -> 0.0002459597919 | J10: =I10-G10 -> 0.04861590562
B11: ROE | C11: =IFERROR((RDG!C83/Bilanca!C$75),) -> 0.006059592572 | D11: =IFERROR((RDG!D83/Bilanca!D$75),) -> -0.2325998349 | E11: =D11-C11 -> -0.2386594274 | F11: =IFERROR((RDG!E83/Bilanca!E$75),) -> 0.003507589525 | G11: =IFERROR((RDG!F83/Bilanca!F$75),) -> -0.6937293073 | H11: =G11-F11 -> -0.6972368968 | I11: =IFERROR((RDG!G83/Bilanca!G$75),) -> 0.00551875773 | J11: =I11-G11 -> 0.699248065
B12: EBITDA Marža | C12: =IFERROR((RDG!C59+RDG!C46+RDG!C48+RDG!C21)/RDG!C57,) -> 0.1858155542 | D12: =IFERROR((RDG!D59+RDG!D46+RDG!D48+RDG!D21)/RDG!D57,) -> 0.007203051126 | E12: =D12-C12 -> -0.1786125031 | F12: =IFERROR((RDG!E59+RDG!E46+RDG!E48+RDG!E21)/RDG!E57,) -> 0.1637053552 | G12: =IFERROR((RDG!F59+RDG!F46+RDG!F48+RDG!F21)/RDG!F57,) -> -0.075476495 | H12: =G12-F12 -> -0.2391818502 | I12: =IFERROR((RDG!G59+RDG!G46+RDG!G48+RDG!G21)/RDG!G57,) -> 0.1409776018 | J12: =I12-G12 -> 0.2164540968
B13: EBIT Marža | C13: =IFERROR((RDG!C59+RDG!C46+RDG!C48)/RDG!C57,) -> 0.04074566489 | D13: =IFERROR((RDG!D59+RDG!D46+RDG!D48)/RDG!D57,) -> -0.1167711986 | E13: -0.1575168635 | F13: =IFERROR((RDG!E59+RDG!E46+RDG!E48)/RDG!E57,) -> 0.02801185212 | G13: =IFERROR((RDG!F59+RDG!F46+RDG!F48)/RDG!F57,) -> -0.2078934879 | H13: =G13-F13 -> -0.23590534 | I13: =IFERROR((RDG!G59+RDG!G46+RDG!G48)/RDG!G57,) -> 0.01766173384 | J13: 0.2255552217
B14: Neto profitna marža (neto dobit / ukupni prihod) | C14: =IFERROR(RDG!C63/RDG!C57,) -> 0.005797032325 | D14: =IFERROR(RDG!D63/RDG!D57,) -> -0.1454152924 | E14: =D14-C14 -> -0.1512123248 | F14: =IFERROR(RDG!E63/RDG!E57,) -> 0.002460281877 | G14: =IFERROR(RDG!F63/RDG!F57,) -> -0.2237666113 | H14: =G14-F14 -> -0.2262268932 | I14: =IFERROR(RDG!G63/RDG!G57,) -> 0.001456578017 | J14: =I14-G14 -> 0.2252231893
B16: * Ostvareni rezultati se uspoređuju s planom, osim plana za slijedeću godinu koji se uspoređuje s procijenjenim rezultatom tekuće godine
B17: ** Plavo osjenčana pozadina označava planirane vrijednosti
B58: Dodatni komentari i pojašnjenja na rezultate
B69: =HYPERLINK("#Sadržaj!A1","Povratak na sadržaj") -> Povratak na sadržaj

Sheet Likvidnost (hidden)
B1: =Naslovna!B3&" - "&Naslovna!I2 -> Ministarstvo državne imovine - Godišnji financijski plan poslovanja
B2: SAŽETI PRIKAZ POKAZATELJA LIKVIDNOSTI
B4: Društvo: | C4: =Podloga!B2 -> Zračna luka Osijek d.o.o.
B5: Tip dokumenta: | C5: =Naslovna!B8 -> Godišnji financijski plan poslovanja
B6: Sastavlja se za godinu: | C6: =Podloga!B8 -> 2024
B8: Pokazatelji likvidnosti
C9: =Podloga!B36 -> 2022. planirano | D9: =Podloga!C36 -> 2022. ostvareno | F9: =Podloga!D36 -> 2023. planirano | G9: =Podloga!E36 -> 2023. procijenjeno | I9: =Podloga!F36 -> 2024. planirano
B10: Neto radni kapital (u 000 kn) | C10: =Bilanca!C40-Bilanca!C115 -> -7430.0899 | D10: =Bilanca!D40-Bilanca!D115 -> -8078.6886 | E10: =D10-C10 -> -648.5987 | F10: =Bilanca!E40-Bilanca!E115 -> -13997.5814 | G10: =Bilanca!F40-Bilanca!F115 -> -8522.139 | H10: =G10-F10 -> 5475.4424 | I10: =Bilanca!G40-Bilanca!G115 -> -16043.469 | J10: =I10-G10 -> -7521.33
B11: Koeficijent tekuće likvidnosti | C11: =IFERROR(Bilanca!C40/Bilanca!C115,) -> 0.1217405473 | D11: =IFERROR(Bilanca!D40/Bilanca!D115,) -> 0.1184428344 | E11: =D11-C11 -> -0.003297712934 | F11: =IFERROR(Bilanca!E40/Bilanca!E115,) -> 0.06244822732 | G11: =IFERROR(Bilanca!F40/Bilanca!F115,) -> 0.08003261826 | H11: =G11-F11 -> 0.01758439094 | I11: =IFERROR(Bilanca!G40/Bilanca!G115,) -> 0.03935919473 | J11: =I11-G11 -> -0.04067342353
B12: Koeficijent trenutne likvidnosti | C12: =IFERROR(Bilanca!C66/Bilanca!C115,) -> 0.08628528761 | D12: =IFERROR(Bilanca!D66/Bilanca!D115,) -> 0.08412468115 | E12: -0.002160606459 | F12: =IFERROR(Bilanca!E66/Bilanca!E115,) -> 0.04178164545 | G12: =IFERROR(Bilanca!F66/Bilanca!F115,) -> 0.03247069177 | H12: -0.009310953679 | I12: =IFERROR(Bilanca!G66/Bilanca!G115,) -> 0.02107689578 | J12: -0.01139379598
B13: Koeficijent financijske stabilnosti | C13: =IFERROR(Bilanca!C5/(Bilanca!C75+Bilanca!C103),) -> 2.537800065 | D13: =IFERROR(Bilanca!D5/(Bilanca!D75+Bilanca!D103),) -> 2.875623464 | E13: 0.3378233982 | F13: =IFERROR(Bilanca!E5/(Bilanca!E75+Bilanca!E103),) -> 4.147310373 | G13: =IFERROR(Bilanca!F5/(Bilanca!F75+Bilanca!F103),) -> 3.302518722 | H13: -0.8447916514 | I13: =IFERROR(Bilanca!G5/(Bilanca!G75+Bilanca!G103),) -> 5.325501841 | J13: 2.02298312
B15: * Ostvareni rezultati se uspoređuju s planom, osim plana za slijedeću godinu koji se uspoređuje s procijenjenim rezultatom tekuće godine
B16: ** Plavo osjenčana pozadina označava planirane vrijednosti
B57: Dodatni komentari i pojašnjenja na rezultate
B68: =HYPERLINK("#Sadržaj!A1","Povratak na sadržaj") -> Povratak na sadržaj

Sheet _TM_Aktivnost (hidden)
A1: Left | B1: Top | C1: Right | D1: Bottom | E1: Ref
A2: 7 | B2: 13 | C2: 7 | D2: 16 | E2: $G$13:$G$16
A3: 4 | B3: 13 | C3: 4 | D3: 16 | E3: $D$13:$D$16

Sheet Aktivnost (hidden)
B1: =Naslovna!B3&" - "&Naslovna!I2 -> Ministarstvo državne imovine - Godišnji financijski plan poslovanja
B2: SAŽETI PRIKAZ POKAZATELJA AKTIVNOSTI
B4: Društvo: | C4: =Podloga!B2 -> Zračna luka Osijek d.o.o.
B5: Tip dokumenta: | C5: =Naslovna!B8 -> Godišnji financijski plan poslovanja
B6: Sastavlja se za godinu: | C6: =Podloga!B8 -> 2024
B8: Pokazatelji aktivnosti
C9: =Podloga!B36 -> 2022. planirano | D9: =Podloga!C36 -> 2022. ostvareno | F9: =Podloga!D36 -> 2023. planirano | G9: =Podloga!E36 -> 2023. procijenjeno | I9: =Podloga!F36 -> 2024. planirano
B10: Koeficijent obrtaja imovine | C10: =IFERROR(RDG!C57/Bilanca!C68,) -> 0.1510317427 | D10: =IFERROR(RDG!D57/Bilanca!D68,) -> 0.1817915616 | E10: =D10-C10 -> 0.0307598189 | F10: =IFERROR(RDG!E57/Bilanca!E68,) -> 0.1097449745 | G10: =IFERROR(RDG!F57/Bilanca!F68,) -> 0.2161624808 | H10: =G10-F10 -> 0.1064175064 | I10: =IFERROR(RDG!G57/Bilanca!G68,) -> 0.1688613923 | J10: =I10-G10 -> -0.04730108848
B11: Koeficijent obrtaja potraživanja | C11: =IFERROR(((RDG!C6+RDG!C7)/(Bilanca!C51)),) -> 0 | D11: =IFERROR(((RDG!D6+RDG!D7)/(Bilanca!D51)),) -> 0 | E11: 0 | F11: =IFERROR(((RDG!E6+RDG!E7)/(Bilanca!E51)),) -> 0 | G11: =IFERROR(((RDG!F6+RDG!F7)/(Bilanca!F51)),) -> 0 | H11: =G11-F11 -> 0 | I11: =IFERROR(((RDG!G6+RDG!G7)/(Bilanca!G51)),) -> 0 | J11: 0
B12: Koeficijent obrtaja neto radnog kapitala | C12: =IFERROR(RDG!C57/(Bilanca!C40-Bilanca!C115),) -> -0.2708922809 | D12: =IFERROR(RDG!D57/(Bilanca!D40-Bilanca!D115),) -> -0.3033619838 | E12: -0.03246970292 | F12: =IFERROR(RDG!E57/(Bilanca!E40-Bilanca!E115),) -> -0.152331745 | G12: =IFERROR(RDG!F57/(Bilanca!F40-Bilanca!F115),) -> -0.3290827573 | H12: -0.1767510123 | I12: =IFERROR(RDG!G57/(Bilanca!G40-Bilanca!G115),) -> -0.2148185034 | J12: 0.1142642539
B13: Dani naplate potraživanja | C13: =IFERROR(365/C11,) -> 0 | D13: 0 | E13: 0 | F13: =IFERROR(365/F11,) -> 0 | G13: =IFERROR(365/G11,) -> 0 | H13: 0 | I13: =IFERROR(365/I11,) -> 0 | J13: 0
B14: Dani vezivanja zaliha | C14: =IFERROR(365/((RDG!C6+RDG!C7)/Bilanca!C41),) -> 16.5701994 | D14: =IFERROR(365/((RDG!D6+RDG!D7)/Bilanca!D41),) -> 18.49899628 | E14: 1.928796877 | F14: =IFERROR(365/((RDG!E6+RDG!E7)/Bilanca!E41),) -> 18.77029109 | G14: =IFERROR(365/((RDG!F6+RDG!F7)/Bilanca!F41),) -> 11.94282817 | H14: -6.827462921 | I14: =IFERROR(365/((RDG!G6+RDG!G7)/Bilanca!G41),) -> 10.43323487 | J14: -1.509593306
B15: Dani plaćanja dobavljačima | C15: =IFERROR(365/(RDG!C13/(Bilanca!C123)),) -> 153.5903521 | D15: =IFERROR(365/(RDG!D13/(Bilanca!D123)),) -> 52.79488661 | E15: -100.7954655 | F15: =IFERROR(365/(RDG!E13/(Bilanca!E123)),) -> 164.4504786 | G15: =IFERROR(365/(RDG!F13/(Bilanca!F123)),) -> 42.64187904 | H15: -121.8085996 | I15: =IFERROR(365/(RDG!G13/(Bilanca!G123)),) -> 69.1931886 | J15: 26.55130956
B16: Ekonomičnost ukupnog poslovanja | C16: =IFERROR(RDG!C57/RDG!C58,) -> 1.005830834 | D16: =IFERROR(RDG!D57/RDG!D58,) -> 0.873045791 | E16: -0.1327850429 | F16: =IFERROR(RDG!E57/RDG!E58,) -> 1.00246635 | G16: =IFERROR(RDG!F57/RDG!F58,) -> 0.8171492756 | H16: -0.1853170741 | I16: =IFERROR(RDG!G57/RDG!G58,) -> 1.001458703 | J16: 0.1843094271
B18: * Ostvareni rezultati se uspoređuju s planom, osim plana za slijedeću godinu koji se uspoređuje s procijenjenim rezultatom tekuće godine
B19: ** Plavo osjenčana pozadina označava planirane vrijednosti
B58: Dodatni komentari i pojašnjenja na rezultate
B69: =HYPERLINK("#Sadržaj!A1","Povratak na sadržaj") -> Povratak na sadržaj

Sheet Zaduženost (hidden)
B1: =Naslovna!B3&" - "&Naslovna!I2 -> Ministarstvo državne imovine - Godišnji financijski plan poslovanja
B2: SAŽETI PRIKAZ POKAZATELJA ZADUŽENOSTI
B4: Društvo: | C4: =Podloga!B2 -> Zračna luka Osijek d.o.o.
B5: Tip dokumenta: | C5: =Naslovna!B8 -> Godišnji financijski plan poslovanja
B6: Sastavlja se za godinu: | C6: =Podloga!B8 -> 2024
B8: Pokazatelji zaduženosti
C9: =Podloga!B36 -> 2022. planirano | D9: =Podloga!C36 -> 2022. ostvareno | F9: =Podloga!D36 -> 2023. planirano | G9: =Podloga!E36 -> 2023. procijenjeno | I9: =Podloga!F36 -> 2024. planirano
B10: Koeficijent zaduženosti | C10: =IFERROR(((Bilanca!C96+Bilanca!C103+Bilanca!C115+Bilanca!C130)/Bilanca!C68),) -> 0.8555128506 | D10: =IFERROR(((Bilanca!D96+Bilanca!D103+Bilanca!D115+Bilanca!D130)/Bilanca!D68),) -> 0.8863484575 | E10: =D10-C10 -> 0.03083560685 | F10: =IFERROR(((Bilanca!E96+Bilanca!E103+Bilanca!E115+Bilanca!E130)/Bilanca!E68),) -> 0.923023114 | G10: =IFERROR(((Bilanca!F96+Bilanca!F103+Bilanca!F115+Bilanca!F130)/Bilanca!F68),) -> 0.9302753988 | H10: =G10-F10 -> 0.007252284803 | I10: =IFERROR(((Bilanca!G96+Bilanca!G103+Bilanca!G115+Bilanca!G130)/Bilanca!G68),) -> 0.9554320857 | J10: =I10-G10 -> 0.02515668691
B11: Koeficijent vlastitog financiranja (kapital/ukupna imovina) | C11: =IFERROR((Bilanca!C75/Bilanca!C68),) -> 0.1444875846 | D11: =IFERROR((Bilanca!D75/Bilanca!D68),) -> 0.1136512977 | E11: =D11-C11 -> -0.03083628685 | F11: =IFERROR((Bilanca!E75/Bilanca!E68),) -> 0.07697695807 | G11: =IFERROR((Bilanca!F75/Bilanca!F68),) -> 0.06972452414 | H11: =G11-F11 -> -0.007252433936 | I11: =IFERROR((Bilanca!G75/Bilanca!G68),) -> 0.0445679633 | J11: =I11-G11 -> -0.02515656084
B12: Koeficijent financiranja (ukupne obveze/kapital) | C12: =IFERROR(((Bilanca!C96+Bilanca!C103+Bilanca!C115+Bilanca!C130)/Bilanca!C75),) -> 5.921012889 | D12: =IFERROR(((Bilanca!D96+Bilanca!D103+Bilanca!D115+Bilanca!D130)/Bilanca!D75),) -> 7.798841501 | E12: =D12-C12 -> 1.877828612 | F12: =IFERROR(((Bilanca!E96+Bilanca!E103+Bilanca!E115+Bilanca!E130)/Bilanca!E75),) -> 11.9909014 | G12: =IFERROR(((Bilanca!F96+Bilanca!F103+Bilanca!F115+Bilanca!F130)/Bilanca!F75),) -> 13.34215486 | H12: 1.351253467 | I12: =IFERROR(((Bilanca!G96+Bilanca!G103+Bilanca!G115+Bilanca!G130)/Bilanca!G75),) -> 21.43764298 | J12: =I12-G12 -> 8.095488122
B13: Odnos ukupne imovine i kapitala | C13: =IFERROR(Bilanca!C68/Bilanca!C75,) -> 6.921009877 | D13: =IFERROR(Bilanca!D68/Bilanca!D75,) -> 8.798843655 | E13: =D13-C13 -> 1.877833778 | F13: =IFERROR(Bilanca!E68/Bilanca!E75,) -> 12.99090046 | G13: =IFERROR(Bilanca!F68/Bilanca!F75,) -> 14.34215597 | H13: 1.351255509 | I13: =IFERROR(Bilanca!G68/Bilanca!G75,) -> 22.43764189 | J13: =I13-G13 -> 8.095485917
B15: * Ostvareni rezultati se uspoređuju s planom, osim plana za slijedeću godinu koji se uspoređuje s procijenjenim rezultatom tekuće godine
B16: ** Plavo osjenčana pozadina označava planirane vrijednosti
B57: Dodatni komentari i pojašnjenja na rezultate
B68: =HYPERLINK("#Sadržaj!A1","Povratak na sadržaj") -> Povratak na sadržaj

Sheet DuPont (hidden)
B1: =Naslovna!B3&" - "&Naslovna!I2 -> Ministarstvo državne imovine - Godišnji financijski plan poslovanja
B2: DuPont analiza | R2: ROE
T3: Index
B4: Društvo: | G4: =Podloga!B2 -> Zračna luka Osijek d.o.o. | R4: =LEFT(Podloga!B36,8) -> 2022. pl | S4: =O14*W14 -> 0.006059592572
B5: Tip dokumenta: | G5: =Naslovna!B8 -> Godišnji financijski plan poslovanja | R5: =LEFT(Podloga!C36,7) -> 2022. o | S5: -0.2325998349 | T5: =IFERROR((S5/S4)*100,) -> -3838.539178
B6: Sastavlja se za godinu: | G6: =Podloga!B8 -> 2024 | R6: =LEFT(Podloga!D36,8) -> 2023. pl | S6: 0.003507589525 | T6: -1.507993128
R7: =LEFT(Podloga!E36,8) -> 2023. pr | S7: -0.6937293073 | T7: =IFERROR((S7/S5)*100,) -> 298.2501289
R8: =LEFT(Podloga!F36,8) -> 2024. pl | S8: 0.00551875773 | T8: -0.795520338
N12: ROA | V12: Odnos imovine i kapitala
P13: Index | X13: Index
N14: =LEFT(Podloga!B36,8) -> 2022. pl | O14: =S17*K17 -> 0.0008755358943 | V14: =LEFT(Podloga!B36,8) -> 2022. pl | W14: =IFERROR(Bilanca!C68/Bilanca!C75,) -> 6.921009877
J15: Neto profitna marža | N15: =LEFT(Podloga!C36,7) -> 2022. o | O15: =S18*K18 -> -0.02643527309 | P15: =IFERROR((O15/O14)*100,) -> -3019.32488 | R15: Koeficijent obrtaja imovine | V15: =LEFT(Podloga!C36,7) -> 2022. o | W15: =IFERROR(Bilanca!D68/Bilanca!D75,) -> 8.798843655 | X15: =IFERROR((W15/W14)*100,) -> 127.1323667
L16: Index | N16: =LEFT(Podloga!D36,8) -> 2023. pl | O16: =S19*K19 -> 0.0002700035718 | P16: -1.02137614 | T16: Index | V16: =LEFT(Podloga!D36,8) -> 2023. pl | W16: =IFERROR(Bilanca!E68/Bilanca!E75,) -> 12.99090046 | X16: 147.6432696
J17: =LEFT(Podloga!B36,8) -> 2022. pl | K17: =IFERROR(G26/C36,) -> 0.005797032325 | N17: =LEFT(Podloga!E36,8) -> 2023. pr | O17: =S20*K20 -> -0.04836994583 | P17: =IFERROR((O17/O15)*100,) -> 182.9750185 | R17: =LEFT(Podloga!B36,8) -> 2022. pl | S17: =IFERROR(O26/W26,) -> 0.1510317427 | V17: =LEFT(Podloga!E36,8) -> 2023. pr | W17: =IFERROR(Bilanca!F68/Bilanca!F75,) -> 14.34215597 | X17: =IFERROR((W17/W15)*100,) -> 163.0004638
J18: =LEFT(Podloga!C36,8) -> 2022. os | K18: =IFERROR(G27/C37,) -> -0.1454152924 | L18: =IFERROR(K18/K17*100,) -> -2508.443705 | N18: =LEFT(Podloga!F36,8) -> 2024. pl | O18: =S21*K21 -> 0.0002459597919 | P18: -0.5084971416 | R18: =LEFT(Podloga!C36,7) -> 2022. o | S18: =IFERROR(O27/W27,) -> 0.1817915616 | T18: =IFERROR((S18/S17)*100,) -> 120.3664596 | V18: =LEFT(Podloga!F36,8) -> 2024. pl | W18: =IFERROR(Bilanca!G68/Bilanca!G75,) -> 22.43764189 | X18: 156.4453903
J19: =LEFT(Podloga!D36,8) -> 2023. pl | K19: =IFERROR(G28/C38,) -> 0.002460281877 | L19: =IFERROR(K19/K18*100,) -> -1.691900374 | R19: =LEFT(Podloga!D36,8) -> 2023. pl | S19: =IFERROR(O28/W28,) -> 0.1097449745 | T19: =IFERROR((S19/S18)*100,) -> 60.36857461
J20: =LEFT(Podloga!E36,8) -> 2023. pr | K20: =IFERROR(G29/C39,) -> -0.2237666113 | L20: =IFERROR(K20/K18*100,) -> 153.8810723 | R20: =LEFT(Podloga!E36,8) -> 2023. pr | S20: =IFERROR(O29/W29,) -> 0.2161624808 | T20: =IFERROR((S20/S18)*100,) -> 118.9067738
J21: =LEFT(Podloga!F36,8) -> 2024. pl | K21: =IFERROR(G30/C40,) -> 0.001456578017 | L21: =IFERROR(K21/K20*100,) -> -0.6509362626 | R21: =LEFT(Podloga!F36,8) -> 2024. pl | S21: =IFERROR(O30/W30,) -> 0.1688613923 | T21: =IFERROR((S21/S20)*100,) -> 78.11780828
F24: Neto dobit ili gubitak razdoblja (u mil. HRK) | N24: Ukupni prihodi (u mil. HRK) | V24: Ukupna imovina (u mil. HRK)
H25: Index | P25: Index | X25: Index
F26: =LEFT(Podloga!B36,8) -> 2022. pl | G26: =RDG!C63 -> 11.668 | N26: =LEFT(Podloga!B36,8) -> 2022. pl | O26: =RDG!C57 -> 2012.754 | V26: =LEFT(Podloga!B36,8) -> 2022. pl | W26: =Bilanca!C68 -> 13326.6952
F27: =LEFT(Podloga!C36,7) -> 2022. o | G27: =RDG!D63 -> -356.379 | H27: =IFERROR(G27/G26*100,) -> -3054.328077 | N27: =LEFT(Podloga!C36,7) -> 2022. o | O27: =RDG!D57 -> 2450.767 | P27: =IFERROR(O27/O26*100,) -> 121.7618745 | V27: =LEFT(Podloga!C36,7) -> 2022. o | W27: =Bilanca!D68 -> 13481.1923 | X27: =IFERROR(W27/W26*100,) -> 101.1593054
F28: =LEFT(Podloga!D36,8) -> 2023. pl | G28: =RDG!E63 -> 5.246 | H28: =IFERROR(G28/G27*100,) -> -1.472028374 | N28: =LEFT(Podloga!D36,8) -> 2023. pl | O28: =RDG!E57 -> 2132.276 | P28: =IFERROR(O28/O27*100,) -> 87.00443575 | V28: =LEFT(Podloga!D36,8) -> 2023. pl | W28: =Bilanca!E68 -> 19429.3726 | X28: =IFERROR(W28/W27*100,) -> 144.122064
F29: =LEFT(Podloga!E36,8) -> 2023. pr | G29: =RDG!F63 -> -627.551 | H29: =IFERROR(G29/G27*100,) -> 176.0909032 | N29: =LEFT(Podloga!E36,8) -> 2023. pr | O29: =RDG!F57 -> 2804.489 | P29: =IFERROR(O29/O27*100,) -> 114.4331142 | V29: =LEFT(Podloga!E36,8) -> 2023. pr | W29: =Bilanca!F68 -> 12973.986 | X29: =IFERROR(W29/W27*100,) -> 96.23767476
F30: =LEFT(Podloga!F36,8) -> 2024. pl | G30: =RDG!G63 -> 5.02 | H30: =IFERROR(G30/G29*100,) -> -0.7999349854 | N30: =LEFT(Podloga!F36,8) -> 2024. pl | O30: =RDG!G57 -> 3446.434 | P30: =IFERROR(O30/O29*100,) -> 122.8899097 | V30: =LEFT(Podloga!F36,8) -> 2024. pl | W30: =Bilanca!G68 -> 20409.84 | X30: =IFERROR(W30/W29*100,) -> 157.3135658
B34: Ukupni prihodi (u mil. HRK) | J34: Ukupni rashodi + porez na dobit (u mil. HRK) | R34: Kratkotrajna imovina (u mil. HRK) | Z34: Dugotrajna imovina (u mil. HRK)
D35: Index | L35: Index | T35: Index | AB35: Index
B36: =LEFT(Podloga!B36,8) -> 2022. pl | C36: =RDG!C57 -> 2012.754 | J36: =LEFT(Podloga!B36,8) -> 2022. pl | K36: =RDG!C58+RDG!C62 -> 2001.086 | R36: =LEFT(Podloga!B36,8) -> 2022. pl | S36: =Bilanca!C40+Bilanca!C67 -> 1029.9271 | Z36: =LEFT(Podloga!B36,8) -> 2022. pl | AA36: =Bilanca!C5 -> 12296.7681
B37: =LEFT(Podloga!C36,7) -> 2022. o | C37: =RDG!D57 -> 2450.767 | D37: =IFERROR(C37/C36*100,) -> 121.7618745 | J37: =LEFT(Podloga!C36,7) -> 2022. o | K37: =RDG!D58+RDG!D62 -> 2807.146 | L37: =IFERROR(K37/K36*100,) -> 140.2811273 | R37: =LEFT(Podloga!C36,7) -> 2022. o | S37: =Bilanca!D40+Bilanca!D67 -> 1085.4234 | T37: =IFERROR(S37/S36*100,) -> 105.3883717 | Z37: =LEFT(Podloga!C36,7) -> 2022. o | AA37: =Bilanca!D5 -> 12395.7689 | AB37: =IFERROR(AA37/AA36*100,) -> 100.8050961
B38: =LEFT(Podloga!D36,8) -> 2023. pl | C38: =RDG!E57 -> 2132.276 | D38: =IFERROR(C38/C37*100,) -> 87.00443575 | J38: =LEFT(Podloga!D36,8) -> 2023. pl | K38: =RDG!E58+RDG!E62 -> 2127.03 | L38: =IFERROR(K38/K37*100,) -> 75.77197623 | R38: =LEFT(Podloga!D36,8) -> 2023. pl | S38: =Bilanca!E40+Bilanca!E67 -> 932.3476 | T38: =IFERROR(S38/S37*100,) -> 85.8971347 | Z38: =LEFT(Podloga!D36,8) -> 2023. pl | AA38: =Bilanca!E5 -> 18497.025 | AB38: =IFERROR(AA38/AA37*100,) -> 149.2204731
B39: =LEFT(Podloga!E36,8) -> 2023. pr | C39: =RDG!F57 -> 2804.489 | D39: =IFERROR(C39/C37*100,) -> 114.4331142 | J39: =LEFT(Podloga!E36,8) -> 2023. pr | K39: =RDG!F58+RDG!F62 -> 3432.04 | L39: =IFERROR(K39/K37*100,) -> 122.26083 | R39: =LEFT(Podloga!E36,8) -> 2023. pr | S39: =Bilanca!F40+Bilanca!F67 -> 741.384 | T39: =IFERROR(S39/S37*100,) -> 68.30366841 | Z39: =LEFT(Podloga!E36,8) -> 2023. pr | AA39: =Bilanca!F5 -> 12232.602 | AB39: =IFERROR(AA39/AA37*100,) -> 98.68368875
B40: =LEFT(Podloga!F36,8) -> 2024. pl | C40: =RDG!G57 -> 3446.434 | D40: =IFERROR(C40/C39*100,) -> 122.8899097 | J40: =LEFT(Podloga!F36,8) -> 2024. pl | K40: =RDG!G58+RDG!G62 -> 3441.414 | L40: =IFERROR(K40/K39*100,) -> 100.273132 | R40: =LEFT(Podloga!F36,8) -> 2024. pl | S40: =Bilanca!G40+Bilanca!G67 -> 657.33 | T40: =IFERROR(S40/S39*100,) -> 88.66255544 | Z40: =LEFT(Podloga!F36,8) -> 2024. pl | AA40: =Bilanca!G5 -> 19752.51 | AB40: =IFERROR(AA40/AA39*100,) -> 161.4743127
A44: * Procijenjeni i planirani rezultat za tekuću godinu se uspoređuju s ostvarenim rezultatom poslovanja u prethodnoj godini
B50: =HYPERLINK("#Sadržaj!A1","Povratak na sadržaj") -> Povratak na sadržaj

Sheet _TM_Altman Integral (Basic) (hidden)
A1: Left | B1: Top | C1: Right | D1: Bottom | E1: Ref
A2: 2 | B2: 1 | C2: 10 | D2: 1 | E2: $B$1:$J$1

Sheet Altman Integral (Basic) (hidden)
B1: =Naslovna!B3&" - "&Naslovna!I2 -> Ministarstvo državne imovine - Godišnji financijski plan poslovanja
A2: Altman Integral (Basic)
B4: Društvo: | C4: =Podloga!B2 -> Zračna luka Osijek d.o.o.
B5: Tip dokumenta: | C5: =Naslovna!B8 -> Godišnji financijski plan poslovanja
B6: Sastavlja se za godinu: | C6: =Podloga!B8 -> 2024
B8: Basic model se koristi za proizvodna trgovačka društva koja kotiraju na burzi
C30: =LEFT(Podloga!B36,8) -> 2022. pl | D30: =LEFT(Podloga!C36,7) -> 2022. o | E30: =LEFT(Podloga!D36,8) -> 2023. pl | F30: =LEFT(Podloga!E36,8) -> 2023. pr | G30: =LEFT(Podloga!F36,8) -> 2024. pl
B31: Z-score | C31: =IFERROR('Dashboard (data)'!$BT$2*'Dashboard (data)'!BM2+'Dashboard (data)'!$BT$3*'Dashboard (data)'!BM3+'Dashboard (data)'!$BT$4*'Dashboard (data)'!BM4+'Dashboard (data)'!$BT$5*'Dashboard (data)'!BM5+'Dashboard (data)'!$BT$6*'Dashboard (data)'!BM6,) -> 0.09972254937 | D31: =IFERROR('Dashboard (data)'!$BT$2*'Dashboard (data)'!BN2+'Dashboard (data)'!$BT$3*'Dashboard (data)'!BN3+'Dashboard (data)'!$BT$4*'Dashboard (data)'!BN4+'Dashboard (data)'!$BT$5*'Dashboard (data)'!BN5+'Dashboard (data)'!$BT$6*'Dashboard (data)'!BN6,) -> 0.04325098011 | E31: =IFERROR('Dashboard (data)'!$BT$2*'Dashboard (data)'!BO2+'Dashboard (data)'!$BT$3*'Dashboard (data)'!BO3+'Dashboard (data)'!$BT$4*'Dashboard (data)'!BO4+'Dashboard (data)'!$BT$5*'Dashboard (data)'!BO5+'Dashboard (data)'!$BT$6*'Dashboard (data)'!BO6,) -> 0.03422409121 | F31: =IFERROR('Dashboard (data)'!$BT$2*'Dashboard (data)'!BP2+'Dashboard (data)'!$BT$3*'Dashboard (data)'!BP3+'Dashboard (data)'!$BT$4*'Dashboard (data)'!BP4+'Dashboard (data)'!$BT$5*'Dashboard (data)'!BP5+'Dashboard (data)'!$BT$6*'Dashboard (data)'!BP6,) -> -0.07357856714 | G31: =IFERROR('Dashboard (data)'!$BT$2*'Dashboard (data)'!BQ2+'Dashboard (data)'!$BT$3*'Dashboard (data)'!BQ3+'Dashboard (data)'!$BT$4*'Dashboard (data)'!BQ4+'Dashboard (data)'!$BT$5*'Dashboard (data)'!BQ5+'Dashboard (data)'!$BT$6*'Dashboard (data)'!BQ6,) -> 0.0408032596
B34: Objašnjenje | C34: Raspon vrijednosti vezan uz rizik bankrota (od -4,00 do +8,00)
C35: Vrlo niski rizik | D35: Zona nesigurnosti | F35: Visoki rizik
B36: Z-score model (Basic) | C36: ≥ 3,00 | D36: 2,99 – 1,81 | F36: ≤ 1,80
C39: =LEFT(Podloga!B36,8) -> 2022. pl | D39: =LEFT(Podloga!C36,7) -> 2022. o | E39: =LEFT(Podloga!D36,8) -> 2023. pl | F39: =LEFT(Podloga!E36,8) -> 2023. pr | G39: =LEFT(Podloga!F36,8) -> 2024. pl
B40: Kratkotrajna imovina | C40: =Bilanca!C40 -> 1029.9271 | D40: =Bilanca!D40 -> 1085.4234 | E40: =Bilanca!E40 -> 932.3476 | F40: =Bilanca!F40 -> 741.384 | G40: =Bilanca!G40 -> 657.33
B41: Ukupna imovina | C41: =Bilanca!C68 -> 13326.6952 | D41: =Bilanca!D68 -> 13481.1923 | E41: =Bilanca!E68 -> 19429.3726 | F41: =Bilanca!F68 -> 12973.986 | G41: =Bilanca!G68 -> 20409.84
B42: Zadržana dobit | C42: =Bilanca!C89 -> -1564.522 | D42: =Bilanca!D89 -> -1589.864 | E42: =Bilanca!E89 -> -1988.033 | F42: =Bilanca!F89 -> -1946.244 | G42: =Bilanca!G89 -> -2573.795
B43: Operativna dobit (EBIT) | C43: =RDG!C59+RDG!C46+RDG!C48 -> 82.011 | D43: =RDG!D59+RDG!D46+RDG!D48 -> -286.179 | E43: =RDG!E59+RDG!E46+RDG!E48 -> 59.729 | F43: =RDG!F59+RDG!F46+RDG!F48 -> -583.035 | G43: =RDG!G59+RDG!G46+RDG!G48 -> 60.87
B44: Knjigovodstvena vrijednost ukupnih obveza | C44: =Bilanca!C103+Bilanca!C115 -> 11379.919 | D44: =Bilanca!D103+Bilanca!D115 -> 11942.594 | E44: =Bilanca!E103+Bilanca!E115 -> 17894.32 | F44: =Bilanca!F103+Bilanca!F115 -> 12062.94 | G44: =Bilanca!G103+Bilanca!G115 -> 19500.216
B45: Ukupni prihodi | C45: =RDG!C57 -> 2012.754 | D45: =RDG!D57 -> 2450.767 | E45: =RDG!E57 -> 2132.276 | F45: =RDG!F57 -> 2804.489 | G45: =RDG!G57 -> 3446.434
B46: Tržišna vrijednost vlasničkog kapitala** | C46: =Podloga!B32*Podloga!B33 ->  | D46: =Podloga!B32*Podloga!B33 ->  | E46: =Podloga!C32*Podloga!C33 ->  | F46: =Podloga!C32*Podloga!C33 ->  | G46: =Podloga!C32*Podloga!C33 -> 
B47: * Plavo osjenčana pozadina označava planirane vrijednosti
B48: ** Umjesto tržišne vrijednosti vlasničkog kapitala za buduće razdoblje uzima se zadnje važeća vrijednost
B50: Dodatni komentari i pojašnjenja na rezultate
B61: =HYPERLINK("#Sadržaj!A1","Povratak na sadržaj") -> Povratak na sadržaj

Sheet _TM_Altman Integral (A) (hidden)
A1: Left | B1: Top | C1: Right | D1: Bottom | E1: Ref
A2: 2 | B2: 1 | C2: 2 | D2: 1 | E2: $B$1

Sheet Altman Integral (A) (hidden)
B1: =Naslovna!B3&" - "&Naslovna!I2 -> Ministarstvo državne imovine - Godišnji financijski plan poslovanja
A2: Altman Integral (A)
B4: Društvo: | C4: =Podloga!B2 -> Zračna luka Osijek d.o.o.
B5: Tip dokumenta: | C5: =Naslovna!B8 -> Godišnji financijski plan poslovanja
B6: Sastavlja se za godinu: | C6: =Podloga!B8 -> 2024
B9: A model se koristi za trgovačka društva koja ne kotiraju na burzi
C26: =LEFT(Podloga!B36,8) -> 2022. pl | D26: =LEFT(Podloga!C36,7) -> 2022. o | E26: =LEFT(Podloga!D36,8) -> 2023. pl | F26: =LEFT(Podloga!E36,8) -> 2023. pr | G26: =LEFT(Podloga!F36,8) -> 2024. pl
B27: Z-score | C27: =IFERROR('Dashboard (data)'!$BT$13*'Dashboard (data)'!BM13+'Dashboard (data)'!$BT$14*'Dashboard (data)'!BM14+'Dashboard (data)'!$BT$15*'Dashboard (data)'!BM15+'Dashboard (data)'!$BT$16*'Dashboard (data)'!BM16+'Dashboard (data)'!$BT$17*'Dashboard (data)'!BM17,) -> 0.2542036419 | D27: =IFERROR('Dashboard (data)'!$BT$13*'Dashboard (data)'!BN13+'Dashboard (data)'!$BT$14*'Dashboard (data)'!BN14+'Dashboard (data)'!$BT$15*'Dashboard (data)'!BN15+'Dashboard (data)'!$BT$16*'Dashboard (data)'!BN16+'Dashboard (data)'!$BT$17*'Dashboard (data)'!BN17,) -> 0.1956417543 | E27: =IFERROR('Dashboard (data)'!$BT$13*'Dashboard (data)'!BO13+'Dashboard (data)'!$BT$14*'Dashboard (data)'!BO14+'Dashboard (data)'!$BT$15*'Dashboard (data)'!BO15+'Dashboard (data)'!$BT$16*'Dashboard (data)'!BO16+'Dashboard (data)'!$BT$17*'Dashboard (data)'!BO17,) -> 0.1484593222 | F27: =IFERROR('Dashboard (data)'!$BT$13*'Dashboard (data)'!BP13+'Dashboard (data)'!$BT$14*'Dashboard (data)'!BP14+'Dashboard (data)'!$BT$15*'Dashboard (data)'!BP15+'Dashboard (data)'!$BT$16*'Dashboard (data)'!BP16+'Dashboard (data)'!$BT$17*'Dashboard (data)'!BP17,) -> 0.1111268049 | G27: =IFERROR('Dashboard (data)'!$BT$13*'Dashboard (data)'!BQ13+'Dashboard (data)'!$BT$14*'Dashboard (data)'!BQ14+'Dashboard (data)'!$BT$15*'Dashboard (data)'!BQ15+'Dashboard (data)'!$BT$16*'Dashboard (data)'!BQ16+'Dashboard (data)'!$BT$17*'Dashboard (data)'!BQ17,) -> 0.1689891338
B30: Objašnjenje | C30: Raspon vrijednosti vezan uz rizik bankrota (od -4,00 do +8,00)
C31: Vrlo niski rizik | D31: Zona nesigurnosti | F31: Visoki rizik
B32: Z-score model (A model) | C32: ≥ 2,90 | D32: 2,89 – 1,24 | F32: ≤ 1,23
C34: =LEFT(Podloga!B36,8) -> 2022. pl | D34: =LEFT(Podloga!C36,7) -> 2022. o | E34: =LEFT(Podloga!D36,8) -> 2023. pl | F34: =LEFT(Podloga!E36,8) -> 2023. pr | G34: =LEFT(Podloga!F36,8) -> 2024. pl
B35: Kratkotrajna imovina | C35: =Bilanca!C40 -> 1029.9271 | D35: =Bilanca!D40 -> 1085.4234 | E35: =Bilanca!E40 -> 932.3476 | F35: =Bilanca!F40 -> 741.384 | G35: =Bilanca!G40 -> 657.33
B36: Ukupna imovina | C36: =Bilanca!C68 -> 13326.6952 | D36: =Bilanca!D68 -> 13481.1923 | E36: =Bilanca!E68 -> 19429.3726 | F36: =Bilanca!F68 -> 12973.986 | G36: =Bilanca!G68 -> 20409.84
B37: Zadržana dobit | C37: =Bilanca!C89 -> -1564.522 | D37: =Bilanca!D89 -> -1589.864 | E37: =Bilanca!E89 -> -1988.033 | F37: =Bilanca!F89 -> -1946.244 | G37: =Bilanca!G89 -> -2573.795
B38: Operativna dobit (EBIT) | C38: =RDG!C59+RDG!C46+RDG!C48 -> 82.011 | D38: =RDG!D59+RDG!D46+RDG!D48 -> -286.179 | E38: =RDG!E59+RDG!E46+RDG!E48 -> 59.729 | F38: =RDG!F59+RDG!F46+RDG!F48 -> -583.035 | G38: =RDG!G59+RDG!G46+RDG!G48 -> 60.87
B39: Knjigovodstvena vrijednost ukupnih obveza | C39: =Bilanca!C103+Bilanca!C115 -> 11379.919 | D39: =Bilanca!D103+Bilanca!D115 -> 11942.594 | E39: =Bilanca!E103+Bilanca!E115 -> 17894.32 | F39: =Bilanca!F103+Bilanca!F115 -> 12062.94 | G39: =Bilanca!G103+Bilanca!G115 -> 19500.216
B40: Ukupni prihodi | C40: =RDG!C57 -> 2012.754 | D40: =RDG!D57 -> 2450.767 | E40: =RDG!E57 -> 2132.276 | F40: =RDG!F57 -> 2804.489 | G40: =RDG!G57 -> 3446.434
B41: Knjigovodstvena vrijednost vlasn. kapitala | C41: =Bilanca!C76+Bilanca!C77 -> 3478.399 | D41: =Bilanca!D76+Bilanca!D77 -> 3478.399 | E41: =Bilanca!E76+Bilanca!E77 -> 3478.4 | F41: =Bilanca!F76+Bilanca!F77 -> 3478.4 | G41: =Bilanca!G76+Bilanca!G77 -> 3478.4
B43: * Plavo osjenčana pozadina označava planirane vrijednosti
B46: Dodatni komentari i pojašnjenja na rezultate
B57: =HYPERLINK("#Sadržaj!A1","Povratak na sadržaj") -> Povratak na sadržaj

Sheet _TM_Altman Integral (B) (hidden)
A1: Left | B1: Top | C1: Right | D1: Bottom | E1: Ref
A2: 2 | B2: 1 | C2: 7 | D2: 1 | E2: $B$1:$G$1

Sheet Altman Integral (B) (hidden)
B1: =Naslovna!B3&" - "&Naslovna!I2 -> Ministarstvo državne imovine - Godišnji financijski plan poslovanja
A2: Altman Integral (B)
B4: Društvo: | C4: =Podloga!B2 -> Zračna luka Osijek d.o.o.
B5: Tip dokumenta: | C5: =Naslovna!B8 -> Godišnji financijski plan poslovanja
B6: Sastavlja se za godinu: | C6: =Podloga!B8 -> 2024
B9: B model se koristi za neproizvodna trgovačka društva koja kotiraju na burzi
C26: =LEFT(Podloga!B36,8) -> 2022. pl | D26: =LEFT(Podloga!C36,7) -> 2022. o | E26: =LEFT(Podloga!D36,8) -> 2023. pl | F26: =LEFT(Podloga!E36,8) -> 2023. pr | G26: =LEFT(Podloga!F36,8) -> 2024. pl
B27: Z-score | C27: =IFERROR('Dashboard (data)'!$BT$23*'Dashboard (data)'!BM23+'Dashboard (data)'!$BT$24*'Dashboard (data)'!BM24+'Dashboard (data)'!$BT$25*'Dashboard (data)'!BM25+'Dashboard (data)'!$BT$26*'Dashboard (data)'!BM26,) -> 0 | D27: =IFERROR('Dashboard (data)'!$BT$23*'Dashboard (data)'!BN23+'Dashboard (data)'!$BT$24*'Dashboard (data)'!BN24+'Dashboard (data)'!$BT$25*'Dashboard (data)'!BN25+'Dashboard (data)'!$BT$26*'Dashboard (data)'!BN26,) -> 0 | E27: =IFERROR('Dashboard (data)'!$BT$23*'Dashboard (data)'!BO23+'Dashboard (data)'!$BT$24*'Dashboard (data)'!BO24+'Dashboard (data)'!$BT$25*'Dashboard (data)'!BO25+'Dashboard (data)'!$BT$26*'Dashboard (data)'!BO26,) -> 0 | F27: =IFERROR('Dashboard (data)'!$BT$23*'Dashboard (data)'!BP23+'Dashboard (data)'!$BT$24*'Dashboard (data)'!BP24+'Dashboard (data)'!$BT$25*'Dashboard (data)'!BP25+'Dashboard (data)'!$BT$26*'Dashboard (data)'!BP26,) -> 0 | G27: =IFERROR('Dashboard (data)'!$BT$23*'Dashboard (data)'!BQ23+'Dashboard (data)'!$BT$24*'Dashboard (data)'!BQ24+'Dashboard (data)'!$BT$25*'Dashboard (data)'!BQ25+'Dashboard (data)'!$BT$26*'Dashboard (data)'!BQ26,) -> 0
B30: Objašnjenje | C30: Raspon vrijednosti vezan uz rizik bankrota (od -4,00 do +8,00)
C31: Vrlo niski rizik | D31: Zona nesigurnosti | F31: Visoki rizik
B32: Z-score model (B model) | C32: ≥ 2,60 | D32: 2,59 – 1,11 | F32: ≤ 1,1
C34: =LEFT(Podloga!B36,8) -> 2022. pl | D34: =LEFT(Podloga!C36,7) -> 2022. o | E34: =LEFT(Podloga!D36,8) -> 2023. pl | F34: =LEFT(Podloga!E36,8) -> 2023. pr | G34: =LEFT(Podloga!F36,8) -> 2024. pl
B35: Kratkotrajna imovina | C35: =Bilanca!C40 -> 1029.9271 | D35: =Bilanca!D40 -> 1085.4234 | E35: =Bilanca!E40 -> 932.3476 | F35: =Bilanca!F40 -> 741.384 | G35: =Bilanca!G40 -> 657.33
B36: Ukupna imovina | C36: =Bilanca!C68 -> 13326.6952 | D36: =Bilanca!D68 -> 13481.1923 | E36: =Bilanca!E68 -> 19429.3726 | F36: =Bilanca!F68 -> 12973.986 | G36: =Bilanca!G68 -> 20409.84
B37: Zadržana dobit | C37: =Bilanca!C89 -> -1564.522 | D37: =Bilanca!D89 -> -1589.864 | E37: =Bilanca!E89 -> -1988.033 | F37: =Bilanca!F89 -> -1946.244 | G37: =Bilanca!G89 -> -2573.795
B38: Operativna dobit (EBIT) | C38: =RDG!C59+RDG!C46+RDG!C48 -> 82.011 | D38: =RDG!D59+RDG!D46+RDG!D48 -> -286.179 | E38: =RDG!E59+RDG!E46+RDG!E48 -> 59.729 | F38: =RDG!F59+RDG!F46+RDG!F48 -> -583.035 | G38: =RDG!G59+RDG!G46+RDG!G48 -> 60.87
B39: Knjigovodstvena vrijednost ukupnih obveza | C39: =Bilanca!C103+Bilanca!C115 -> 11379.919 | D39: =Bilanca!D103+Bilanca!D115 -> 11942.594 | E39: =Bilanca!E103+Bilanca!E115 -> 17894.32 | F39: =Bilanca!F103+Bilanca!F115 -> 12062.94 | G39: =Bilanca!G103+Bilanca!G115 -> 19500.216
B40: Ukupni prihodi | C40: =RDG!C57 -> 2012.754 | D40: =RDG!D57 -> 2450.767 | E40: =RDG!E57 -> 2132.276 | F40: =RDG!F57 -> 2804.489 | G40: =RDG!G57 -> 3446.434
B41: Tržišna vrijednost vlasničkog kapitala** | C41: =Podloga!B32*Podloga!B33 ->  | D41: =Podloga!B32*Podloga!B33 ->  | E41: =Podloga!C32*Podloga!C33 ->  | F41: =Podloga!C32*Podloga!C33 ->  | G41: =Podloga!C32*Podloga!C33 -> 
B43: * Plavo osjenčana pozadina označava planirane vrijednosti
B44: ** Umjesto tržišne vrijednosti vlasničkog kapitala za buduće razdoblje uzima se zadnje važeća vrijednost
B46: Dodatni komentari i pojašnjenja na rezultate
B57: =HYPERLINK("#Sadržaj!A1","Povratak na sadržaj") -> Povratak na sadržaj

Sheet _TM_Dashboard (hidden)
A1: Left | B1: Top | C1: Right | D1: Bottom | E1: Ref
A2: 1 | B2: 33 | C2: 7 | D2: 33 | E2: $A$33:$G$33
A3: 1 | B3: 6 | C3: 16 | D3: 6 | E3: $A$6:$P$6
A4: 2 | B4: 23 | C4: 8 | D4: 27 | E4: $B$23:$H$27
A5: 1 | B5: 28 | C5: 16 | D5: 28 | E5: $A$28:$P$28
A6: 1 | B6: 30 | C6: 16 | D6: 30 | E6: $A$30:$P$30
A7: 1 | B7: 34 | C7: 7 | D7: 34 | E7: $A$34:$G$34

Sheet _TM_Dashboard (data) (hidden)
A1: Left | B1: Top | C1: Right | D1: Bottom | E1: Ref
A2: 53 | B2: 59 | C2: 60 | D2: 65 | E2: $BA$59:$BH$65
A3: 53 | B3: 1 | C3: 60 | D3: 5 | E3: $BA$1:$BH$5
A4: 53 | B4: 6 | C4: 60 | D4: 9 | E4: $BA$6:$BH$9
A5: 53 | B5: 11 | C5: 60 | D5: 13 | E5: $BA$11:$BH$13
A6: 53 | B6: 14 | C6: 60 | D6: 16 | E6: $BA$14:$BH$16
A7: 53 | B7: 17 | C7: 60 | D7: 26 | E7: $BA$17:$BH$26
A8: 53 | B8: 27 | C8: 60 | D8: 30 | E8: $BA$27:$BH$30
A9: 53 | B9: 31 | C9: 60 | D9: 34 | E9: $BA$31:$BH$34
A10: 53 | B10: 35 | C10: 60 | D10: 37 | E10: $BA$35:$BH$37
A11: 53 | B11: 39 | C11: 60 | D11: 41 | E11: $BA$39:$BH$41
A12: 53 | B12: 52 | C12: 59 | D12: 56 | E12: $BA$52:$BG$56
A13: 53 | B13: 68 | C13: 60 | D13: 75 | E13: $BA$68:$BH$75
A14: 53 | B14: 79 | C14: 60 | D14: 94 | E14: $BA$79:$BH$94
A15: 53 | B15: 95 | C15: 55 | D15: 107 | E15: $BA$95:$BC$107
A16: 64 | B16: 1 | C16: 72 | D16: 8 | E16: $BL$1:$BT$8
A17: 64 | B17: 12 | C17: 72 | D17: 19 | E17: $BL$12:$BT$19
A18: 64 | B18: 22 | C18: 72 | D18: 28 | E18: $BL$22:$BT$28
A19: 66 | B19: 120 | C19: 72 | D19: 127 | E19: $BN$120:$BT$127
A20: 86 | B20: 1 | C20: 90 | D20: 35 | E20: $CH$1:$CL$35
A21: 84 | B21: 1 | C21: 84 | D21: 35 | E21: $CF$1:$CF$35
A22: 85 | B22: 1 | C22: 85 | D22: 18 | E22: $CG$1:$CG$18
A23: 85 | B23: 19 | C23: 85 | D23: 35 | E23: $CG$19:$CG$35
A24: 94 | B24: 1 | C24: 98 | D24: 29 | E24: $CP$1:$CT$29
A25: 92 | B25: 1 | C25: 92 | D25: 29 | E25: $CN$1:$CN$29
A26: 93 | B26: 1 | C26: 93 | D26: 15 | E26: $CO$1:$CO$15
A27: 93 | B27: 16 | C27: 93 | D27: 29 | E27: $CO$16:$CO$29
A28: 100 | B28: 17 | C28: 110 | D28: 29 | E28: $CV$17:$DF$29
A29: 101 | B29: 1 | C29: 108 | D29: 8 | E29: $CW$1:$DD$8
A30: 110 | B30: 1 | C30: 116 | D30: 4 | E30: $DF$1:$DL$4
A31: 110 | B31: 7 | C31: 116 | D31: 12 | E31: $DF$7:$DL$12
A32: 118 | B32: 1 | C32: 125 | D32: 4 | E32: $DN$1:$DU$4
A33: 118 | B33: 6 | C33: 125 | D33: 12 | E33: $DN$6:$DU$12
A34: 118 | B34: 14 | C34: 125 | D34: 19 | E34: $DN$14:$DU$19
A35: 112 | B35: 15 | C35: 115 | D35: 18 | E35: $DH$15:$DK$18
A36: 112 | B36: 20 | C36: 115 | D36: 23 | E36: $DH$20:$DK$23
A37: 53 | B37: 43 | C37: 58 | D37: 46 | E37: $BA$43:$BF$46
A38: 76 | B38: 2 | C38: 76 | D38: 3 | E38: $BX$2:$BX$3

Sheet Dashboard (data) (hidden)
AO1: Računovodstveni standard | AP1: Pravni oblik | AR1: Funkcija revizorski | AS1: FUNKCIJA NO | AT1: PREDSTAVNIK | AU1: SPOL | AV1: Funkcija Uprava | AZ1: Veličina društva | BB1: =Podloga!B36 -> 2022. planirano | BC1: =Podloga!C36 -> 2022. ostvareno | BD1: =Podloga!D36 -> 2023. planirano | BE1: =Podloga!E36 -> 2023. procijenjeno | BF1: =Podloga!F36 -> 2024. planirano | BL1: Altman basic | CF1: Analiza bruto dobiti | CG1: U tisućama kuna | CH1: Bruto dobit prethodne godine | CI1: =RDG!D59 -> -356.379 | CJ1: =CI1 -> -356.379 | CN1: =CH1 -> Bruto dobit prethodne godine | CO1: =CJ1 -> -356.379 | CP1: =CK1 -> 0 | CQ1: =IF(CI1>=0,CL1,0) -> 0 | CR1: =IF(CI1<0,CL1,0) -> 0 | CS1: =IF(CI1>=0,CM1,0) -> 0 | CT1: =IF(CI1<0,CM1,0) -> 0 | CU1: 0 | CV1: Analiza EBITDA (plan 2015 / ostvareno 2015) | CW1: U tisućama kuna | CX1: Planirana EBITDA tekuće godine | CY1: =BD3 -> 349.065 | CZ1: =CY1 -> 349.065 | DD1: =CX1 -> Planirana EBITDA tekuće godine | DE1: =CZ1 -> 349.065 | DF1: =DA1 -> 0 | DG1: =IF(CY1>=0,DB1,0) -> 0 | DH1: =IF(CY1<0,DB1,0) -> 0 | DI1: =IF(CY1>=0,DC1,0) -> 0 | DJ1: =IF(CY1<0,DC1,0) -> 0 | DK1: 0 | DN1: =Podloga!B36 -> 2022. planirano | DO1: =Podloga!C36 -> 2022. ostvareno | DP1: =Podloga!D36 -> 2023. planirano | DQ1: =Podloga!E36 -> 2023. procijenjeno | DR1: =Podloga!F36 -> 2024. planirano | DW1: =Podloga!B36 -> 2022. planirano | DX1: =Podloga!C36 -> 2022. ostvareno | DY1: =Podloga!D36 -> 2023. planirano | DZ1: =Podloga!E36 -> 2023. procijenjeno | EA1: =Podloga!F36 -> 2024. planirano | EF1: =Podloga!B36 -> 2022. planirano | EG1: =Podloga!C36 -> 2022. ostvareno | EH1: =Podloga!D36 -> 2023. planirano | EI1: =Podloga!E36 -> 2023. procijenjeno | EJ1: =Podloga!F36 -> 2024. planirano | EM1: =Podloga!C36 -> 2022. ostvareno | EN1: =Podloga!E36 -> 2023. procijenjeno | EO1: =Podloga!B36 -> 2022. planirano | EP1: =Podloga!D36 -> 2023. planirano | EQ1: =Podloga!F36 -> 2024. planirano
AO2: HSFI | AP2: d.o.o. | AR2: Predsjednik | AS2: Predsjednik | AT2: RH | AU2: M | AV2: Predsjednik | AX2: DA | AY2: Donacija | AZ2: Mikro | BA2: Ukupni prihod | BB2: =RDG!C57 -> 2012.754 | BC2: =RDG!D57 -> 2450.767 | BD2: =RDG!E57 -> 2132.276 | BE2: =RDG!F57 -> 2804.489 | BF2: =RDG!G57 -> 3446.434 | BL2: X1 | BM2: =IFERROR('Altman Integral (Basic)'!C40/'Altman Integral (Basic)'!C41,) -> 0.07728300862 | BN2: =IFERROR('Altman Integral (Basic)'!D40/'Altman Integral (Basic)'!D41,) -> 0.08051390232 | BO2: =IFERROR('Altman Integral (Basic)'!E40/'Altman Integral (Basic)'!E41,) -> 0.0479865006 | BP2: =IFERROR('Altman Integral (Basic)'!F40/'Altman Integral (Basic)'!F41,) -> 0.05714388778 | BQ2: =IFERROR('Altman Integral (Basic)'!G40/'Altman Integral (Basic)'!G41,) -> 0.03220652391 | BR2: Koeficijent: | BS2: X1 | BT2: 1.2 | BX2: Direktna | CH2: Poslovni prihodi Δ | CI2: =RDG!F5-RDG!D5 -> 353.805 | CK2: =IF(SUM(CI1)>=0,(IF(CI2>=0,SUM(CI1),(IF(ABS(SUM(CI1))>ABS(CI2),SUM(CI1:CI2),0)))),(IF(CI2<0,SUM(CI1),(IF(ABS(SUM(CI1))>ABS(CI2),SUM(CI1:CI2),0))))) -> -2.574 | CL2: =IF(SUM(CI1)>=0,(IF(CI2<0,(IF(ABS(CI2)>ABS(SUM(CI1)),SUM(CI1),ABS(CI2))),CI2)),(IF(CI2>0,(IF(ABS(CI2)>ABS(SUM(CI1)),SUM(CI1:CI2),0)),0))) -> 0 | CM2: =IF(SUM(CI1)<0,(IF(CI2<0,CI2,(IF(ABS(CI2)>ABS(SUM(CI1)),SUM(CI1),0-CI2)))),(IF(CI2<0,(IF(ABS(CI2)>ABS(SUM(CI1)),SUM(CI1:CI2),0)),0))) -> -353.805 | CN2: Poslovni prihodi Δ | CP2: =CK2 -> -2.574 | CQ2: =IF(CI2>=0,CL2,0) -> 0 | CR2: =IF(CI2<0,CL2,0) -> 0 | CS2: =IF(CI2>=0,CM2,0) -> -353.805 | CT2: =IF(CI2<0,CM2,0) -> 0 | CU2: 0 | CX2: Prihodi od prodaje Δ | CY2: =(RDG!F6+RDG!F7)-(RDG!E6+RDG!E7) -> 444.966 | DA2: =IF(SUM(CY1)>=0,(IF(CY2>=0,SUM(CY1),(IF(ABS(SUM(CY1))>ABS(CY2),SUM(CY1:CY2),0)))),(IF(CY2<0,SUM(CY1),(IF(ABS(SUM(CY1))>ABS(CY2),SUM(CY1:CY2),0))))) -> 349.065 | DB2: =IF(SUM(CY1)>=0,(IF(CY2<0,(IF(ABS(CY2)>ABS(SUM(CY1)),SUM(CY1),ABS(CY2))),CY2)),(IF(CY2>0,(IF(ABS(CY2)>ABS(SUM(CY1)),SUM(CY1:CY2),0)),0))) -> 444.966 | DC2: =IF(SUM(CY1)<0,(IF(CY2<0,CY2,(IF(ABS(CY2)>ABS(SUM(CY1)),SUM(CY1),0-CY2)))),(IF(CY2<0,(IF(ABS(CY2)>ABS(SUM(CY1)),SUM(CY1:CY2),0)),0))) -> 0 | DD2: =CX2 -> Prihodi od prodaje Δ | DE2: =CZ2 -> 0 | DF2: =DA2 -> 349.065 | DG2: =IF(CY2>=0,DB2,0) -> 444.966 | DH2: =IF(CY2<0,DB2,0) -> 0 | DI2: =IF(CY2>=0,DC2,0) -> 0 | DJ2: =IF(CY2<0,DC2,0) -> 0 | DK2: 0 | DM2: Kapital i rezerve | DN2: =Bilanca!C75 -> 1925.542 | DO2: =Bilanca!D75 -> 1532.155 | DP2: =Bilanca!E75 -> 1495.614 | DQ2: =Bilanca!F75 -> 904.605 | DR2: =Bilanca!G75 -> 909.625 | DV2: Priljev od poslovnih aktivnosti | DW2: =IFERROR(IF(Podloga!$B$19="Direktna",'NT dir.'!C7+'NT dir.'!C8+'NT dir.'!C9+'NT dir.'!C10+'NT dir.'!#REF!,'NT indir.'!C17),) -> 387.191 | DX2: =IFERROR(IF(Podloga!$B$19="Direktna",'NT dir.'!D7+'NT dir.'!D8+'NT dir.'!D9+'NT dir.'!D10+'NT dir.'!#REF!,'NT indir.'!D17),) -> 19.996 | DY2: =IFERROR(IF(Podloga!$B$19="Direktna",'NT dir.'!E7+'NT dir.'!E8+'NT dir.'!E9+'NT dir.'!E10+'NT dir.'!#REF!,'NT indir.'!E17),) -> 368.382 | DZ2: =IFERROR(IF(Podloga!$B$19="Direktna",'NT dir.'!F7+'NT dir.'!F8+'NT dir.'!F9+'NT dir.'!F10+'NT dir.'!#REF!,'NT indir.'!F17),) -> -194.78 | EA2: =IFERROR(IF(Podloga!$B$19="Direktna",'NT dir.'!G7+'NT dir.'!G8+'NT dir.'!G9+'NT dir.'!G10+'NT dir.'!#REF!,'NT indir.'!G17),) -> -200.859 | EE2: Ukupni prihodi | EF2: =RDG!C57 -> 2012.754 | EG2: =RDG!D57 -> 2450.767 | EH2: =RDG!E57 -> 2132.276 | EI2: =RDG!F57 -> 2804.489 | EJ2: =RDG!G57 -> 3446.434 | EL2: Prihodi | EM2: =RDG!D57 -> 2450.767 | EN2: =RDG!F57 -> 2804.489 | EO2: =RDG!C57 -> 2012.754 | EP2: =RDG!E57 -> 2132.276 | EQ2: =RDG!G57 -> 3446.434
AO3: MSFI | AP3: d.d. | AR3: Član | AS3: Član | AT3: CERP | AU3: Ž | AV3: Član | AX3: NE | AY3: Sponzorstvo | AZ3: Mali | BA3: EBITDA | BB3: =RDG!C59+RDG!C46+RDG!C48+RDG!C21 -> 374.001 | BC3: =RDG!D59+RDG!D46+RDG!D48+RDG!D21 -> 17.653 | BD3: =RDG!E59+RDG!E46+RDG!E48+RDG!E21 -> 349.065 | BE3: =RDG!F59+RDG!F46+RDG!F48+RDG!F21 -> -211.673 | BF3: =RDG!G59+RDG!G46+RDG!G48+RDG!G21 -> 485.87 | BL3: X2 | BM3: =IFERROR('Altman Integral (Basic)'!C42/'Altman Integral (Basic)'!C41,) -> -0.1173975976 | BN3: =IFERROR('Altman Integral (Basic)'!D42/'Altman Integral (Basic)'!D41,) -> -0.1179320022 | BO3: =IFERROR('Altman Integral (Basic)'!E42/'Altman Integral (Basic)'!E41,) -> -0.1023210086 | BP3: =IFERROR('Altman Integral (Basic)'!F42/'Altman Integral (Basic)'!F41,) -> -0.150011261 | BQ3: =IFERROR('Altman Integral (Basic)'!G42/'Altman Integral (Basic)'!G41,) -> -0.1261055942 | BS3: X2 | BT3: 1.4 | BX3: Indirektna | CH3: Materijalni troškovi Δ | CI3: =RDG!D13-RDG!F13 -> -309.153 | CK3: =IF(SUM(CI1:CI2)>=0,(IF(CI3>=0,SUM(CI1:CI2),(IF(ABS(SUM(CI1:CI2))>ABS(CI3),SUM(CI1:CI3),0)))),(IF(CI3<0,SUM(CI1:CI2),(IF(ABS(SUM(CI1:CI2))>ABS(CI3),SUM(CI1:CI3),0))))) -> -2.574 | CL3: =IF(SUM(CI1:CI2)>=0,(IF(CI3<0,(IF(ABS(CI3)>ABS(SUM(CI1:CI2)),SUM(CI1:CI2),ABS(CI3))),CI3)),(IF(CI3>0,(IF(ABS(CI3)>ABS(SUM(CI1:CI2)),SUM(CI1:CI3),0)),0))) -> 0 | CM3: =IF(SUM(CI1:CI2)<0,(IF(CI3<0,CI3,(IF(ABS(CI3)>ABS(SUM(CI1:CI2)),SUM(CI1:CI2),0-CI3)))),(IF(CI3<0,(IF(ABS(CI3)>ABS(SUM(CI1:CI2)),SUM(CI1:CI3),0)),0))) -> -309.153 | CN3: Materijalni troškovi Δ | CP3: -2.574 | CQ3: 0 | CR3: 0 | CS3: 0 | CT3: -309.153 | CU3: 0 | CX3: Ostali prihodi Δ | CY3: =(RDG!F57-RDG!F6-RDG!F7)-(RDG!E57-RDG!E6-RDG!E7) -> 227.247 | DA3: =IF(SUM(CY1:CY2)>=0,(IF(CY3>=0,SUM(CY1:CY2),(IF(ABS(SUM(CY1:CY2))>ABS(CY3),SUM(CY1:CY3),0)))),(IF(CY3<0,SUM(CY1:CY2),(IF(ABS(SUM(CY1:CY2))>ABS(CY3),SUM(CY1:CY3),0))))) -> 794.031 | DB3: =IF(SUM(CY1:CY2)>=0,(IF(CY3<0,(IF(ABS(CY3)>ABS(SUM(CY1:CY2)),SUM(CY1:CY2),ABS(CY3))),CY3)),(IF(CY3>0,(IF(ABS(CY3)>ABS(SUM(CY1:CY2)),SUM(CY1:CY3),0)),0))) -> 227.247 | DC3: =IF(SUM(CY1:CY2)<0,(IF(CY3<0,CY3,(IF(ABS(CY3)>ABS(SUM(CY1:CY2)),SUM(CY1:CY2),0-CY3)))),(IF(CY3<0,(IF(ABS(CY3)>ABS(SUM(CY1:CY2)),SUM(CY1:CY3),0)),0))) -> 0 | DD3: Ostali prihodi Δ | DE3: 0 | DF3: 794.031 | DG3: 227.247 | DH3: 0 | DI3: 0 | DJ3: 0 | DK3: 0 | DM3: Rezerviranja | DN3: =Bilanca!C96 -> 21.24 | DO3: =Bilanca!D96 -> 6.44 | DP3: =Bilanca!E96 -> 39.44 | DQ3: =Bilanca!F96 -> 6.44 | DR3: =Bilanca!G96 -> 0 | DV3: Poslovni prihodi | DW3: =IFERROR(RDG!C5,) -> 2007.445 | DX3: =IFERROR(RDG!D5,) -> 2450.167 | DY3: =IFERROR(RDG!E5,) -> 2131.827 | DZ3: =IFERROR(RDG!F5,) -> 2803.972 | EA3: =IFERROR(RDG!G5,) -> 3445.894 | EE3: Ukupna imovina | EF3: =Bilanca!C68 -> 13326.6952 | EG3: =Bilanca!D68 -> 13481.1923 | EH3: =Bilanca!E68 -> 19429.3726 | EI3: =Bilanca!F68 -> 12973.986 | EJ3: =Bilanca!G68 -> 20409.84 | EL3: EBITDA | EM3: =BC3 -> 17.653 | EN3: =BE3 -> -211.673 | EO3: =BB3 -> 374.001 | EP3: =BD3 -> 349.065 | EQ3: =BF3 -> 485.87
AP4: Ustanova | AR4: Zamjenik predsj. | AS4: Zamjenik predsj. | AT4: MIDIM (RH) funkcija | AV4: Zamjenik predsj. | AZ4: Srednji | BA4: EBITDA marža | BB4: =IFERROR((RDG!C59+RDG!C46+RDG!C48+RDG!C21)/RDG!C57,) -> 0.1858155542 | BC4: =IFERROR((RDG!D59+RDG!D46+RDG!D48+RDG!D21)/RDG!D57,) -> 0.007203051126 | BD4: =IFERROR((RDG!E59+RDG!E46+RDG!E48+RDG!E21)/RDG!E57,) -> 0.1637053552 | BE4: =IFERROR((RDG!F59+RDG!F46+RDG!F48+RDG!F21)/RDG!F57,) -> -0.075476495 | BF4: =IFERROR((RDG!G59+RDG!G46+RDG!G48+RDG!G21)/RDG!G57,) -> 0.1409776018 | BL4: X3 | BM4: =IFERROR('Altman Integral (Basic)'!C43/'Altman Integral (Basic)'!C41,) -> 0.006153888775 | BN4: =IFERROR('Altman Integral (Basic)'!D43/'Altman Integral (Basic)'!D41,) -> -0.02122801853 | BO4: =IFERROR('Altman Integral (Basic)'!E43/'Altman Integral (Basic)'!E41,) -> 0.003074159996 | BP4: =IFERROR('Altman Integral (Basic)'!F43/'Altman Integral (Basic)'!F41,) -> -0.04493877209 | BQ4: =IFERROR('Altman Integral (Basic)'!G43/'Altman Integral (Basic)'!G41,) -> 0.002982384967 | BS4: X3 | BT4: 3.3 | CH4: Troškovi osoblja Δ | CI4: =RDG!D17-RDG!F17 -> -96.854 | CK4: =IF(SUM(CI1:CI3)>=0,(IF(CI4>=0,SUM(CI1:CI3),(IF(ABS(SUM(CI1:CI3))>ABS(CI4),SUM(CI1:CI4),0)))),(IF(CI4<0,SUM(CI1:CI3),(IF(ABS(SUM(CI1:CI3))>ABS(CI4),SUM(CI1:CI4),0))))) -> -311.727 | CL4: =IF(SUM(CI1:CI3)>=0,(IF(CI4<0,(IF(ABS(CI4)>ABS(SUM(CI1:CI3)),SUM(CI1:CI3),ABS(CI4))),CI4)),(IF(CI4>0,(IF(ABS(CI4)>ABS(SUM(CI1:CI3)),SUM(CI1:CI4),0)),0))) -> 0 | CM4: =IF(SUM(CI1:CI3)<0,(IF(CI4<0,CI4,(IF(ABS(CI4)>ABS(SUM(CI1:CI3)),SUM(CI1:CI3),0-CI4)))),(IF(CI4<0,(IF(ABS(CI4)>ABS(SUM(CI1:CI3)),SUM(CI1:CI4),0)),0))) -> -96.854 | CN4: Troškovi osoblja Δ | CP4: -311.727 | CQ4: 0 | CR4: 0 | CS4: 0 | CT4: -96.854 | CU4: 0 | CX4: Promjena vrijednosti zaliha Δ | CY4: =RDG!E12-RDG!F12 -> 0 | DA4: =IF(SUM(CY1:CY3)>=0,(IF(CY4>=0,SUM(CY1:CY3),(IF(ABS(SUM(CY1:CY3))>ABS(CY4),SUM(CY1:CY4),0)))),(IF(CY4<0,SUM(CY1:CY3),(IF(ABS(SUM(CY1:CY3))>ABS(CY4),SUM(CY1:CY4),0))))) -> 1021.278 | DB4: =IF(SUM(CY1:CY3)>=0,(IF(CY4<0,(IF(ABS(CY4)>ABS(SUM(CY1:CY3)),SUM(CY1:CY3),ABS(CY4))),CY4)),(IF(CY4>0,(IF(ABS(CY4)>ABS(SUM(CY2:CY3)),SUM(CY1:CY4),0)),0))) -> 0 | DC4: =IF(SUM(CY1:CY3)<0,(IF(CY4<0,CY4,(IF(ABS(CY4)>ABS(SUM(CY1:CY3)),SUM(CY1:CY3),0-CY4)))),(IF(CY4<0,(IF(ABS(CY4)>ABS(SUM(CY1:CY3)),SUM(CY1:CY4),0)),0))) -> 0 | DD4: Promjena vrijednosti zaliha Δ | DE4: 0 | DF4: 1021.278 | DG4: 0 | DH4: 0 | DI4: 0 | DJ4: 0 | DK4: 0 | DM4: Dugoročne obveze | DN4: =Bilanca!C103 -> 2919.902 | DO4: =Bilanca!D103 -> 2778.482 | DP4: =Bilanca!E103 -> 2964.391 | DQ4: =Bilanca!F103 -> 2799.417 | DR4: =Bilanca!G103 -> 2799.417 | DV4: Omjer primitaka od poslovnih aktivnosti i poslovnih prihoda | DW4: =DW2/DW3 -> 0.1928775135 | DX4: =DX2/DX3 -> 0.008161076367 | DY4: =DY2/DY3 -> 0.1728010763 | DZ4: -0.0694657436 | EA4: -0.0582893728 | EE4: Koeficijent obrtaja imovine | EF4: =EF2/EF3 -> 0.1510317427 | EG4: =EG2/EG3 -> 0.1817915616 | EH4: 0.1097449745 | EI4: 0.2161624808 | EJ4: 0.1688613923 | EL4: EBITDA marža | EM4: =BC4 -> 0.007203051126 | EN4: =BE4 -> -0.075476495 | EO4: =BB4 -> 0.1858155542 | EP4: =BD4 -> 0.1637053552 | EQ4: =BF4 -> 0.1409776018
AP5: Druga osoba za koje je upis propisan zakonom | AS5: Predstavnik radnika | AT5: RH - funkcija | AV5: Direktor | AZ5: Veliki | BL5: X4 | BM5: =IFERROR('Altman Integral (Basic)'!C46/'Altman Integral (Basic)'!C44,) -> 0 | BN5: =IFERROR('Altman Integral (Basic)'!D46/'Altman Integral (Basic)'!D44,) -> 0 | BO5: =IFERROR('Altman Integral (Basic)'!E46/'Altman Integral (Basic)'!E44,) -> 0 | BP5: =IFERROR('Altman Integral (Basic)'!F46/'Altman Integral (Basic)'!F44,) -> 0 | BQ5: =IFERROR('Altman Integral (Basic)'!G46/'Altman Integral (Basic)'!G44,) -> 0 | BS5: X4 | BT5: 0.6 | CH5: Ostali poslovni rashodi Δ | CI5: =(RDG!D11-RDG!D13-RDG!D17)-(RDG!F11-RDG!F13-RDG!F17) -> -243.561 | CK5: =IF(SUM(CI1:CI4)>=0,(IF(CI5>=0,SUM(CI1:CI4),(IF(ABS(SUM(CI1:CI4))>ABS(CI5),SUM(CI1:CI5),0)))),(IF(CI5<0,SUM(CI1:CI4),(IF(ABS(SUM(CI1:CI4))>ABS(CI5),SUM(CI1:CI5),0))))) -> -408.581 | CL5: =IF(SUM(CI1:CI4)>=0,(IF(CI5<0,(IF(ABS(CI5)>ABS(SUM(CI1:CI4)),SUM(CI1:CI4),ABS(CI5))),CI5)),(IF(CI5>0,(IF(ABS(CI5)>ABS(SUM(CI1:CI4)),SUM(CI1:CI5),0)),0))) -> 0 | CM5: =IF(SUM(CI1:CI4)<0,(IF(CI5<0,CI5,(IF(ABS(CI5)>ABS(SUM(CI1:CI4)),SUM(CI1:CI4),0-CI5)))),(IF(CI5<0,(IF(ABS(CI5)>ABS(SUM(CI1:CI4)),SUM(CI1:CI5),0)),0))) -> -243.561 | CN5: Ostali poslovni rashodi Δ | CP5: -408.581 | CQ5: 0 | CR5: 0 | CS5: 0 | CT5: -243.561 | CU5: 0 | CX5: Materijalni troškovi Δ | CY5: =RDG!E13-RDG!F13 -> -1064.785 | DA5: =IF(SUM(CY1:CY4)>=0,(IF(CY5>=0,SUM(CY1:CY4),(IF(ABS(SUM(CY1:CY4))>ABS(CY5),SUM(CY1:CY5),0)))),(IF(CY5<0,SUM(CY1:CY4),(IF(ABS(SUM(CY1:CY4))>ABS(CY5),SUM(CY1:CY5),0))))) -> 0 | DB5: =IF(SUM(CY1:CY4)>=0,(IF(CY5<0,(IF(ABS(CY5)>ABS(SUM(CY1:CY4)),SUM(CY1:CY4),ABS(CY5))),CY5)),(IF(CY5>0,(IF(ABS(CY5)>ABS(SUM(CY1:CY4)),SUM(CY1:CY5),0)),0))) -> 1021.278 | DC5: =IF(SUM(CY1:CY4)<0,(IF(CY5<0,CY5,(IF(ABS(CY5)>ABS(SUM(CY1:CY4)),SUM(CY1:CY4),0-CY5)))),(IF(CY5<0,(IF(ABS(CY5)>ABS(SUM(CY1:CY4)),SUM(CY1:CY5),0)),0))) -> -43.507 | DD5: Materijalni troškovi Δ | DE5: 0 | DF5: 0 | DG5: 0 | DH5: 1021.278 | DI5: 0 | DJ5: -43.507 | DK5: 0 | DM5: Kratkoročne obveze | DN5: =Bilanca!C115 -> 8460.017 | DO5: =Bilanca!D115 -> 9164.112 | DP5: =Bilanca!E115 -> 14929.929 | DQ5: =Bilanca!F115 -> 9263.523 | DR5: =Bilanca!G115 -> 16700.799 | EL5: Neto profitna marža | EM5: =BC8 -> -0.1454152924 | EN5: =BE8 -> -0.2237666113 | EO5: =BB8 -> 0.005797032325 | EP5: =BD8 -> 0.002460281877 | EQ5: =BF8 -> 0.001456578017
AT6: predst. radnika | BB6: =Podloga!B36 -> 2022. planirano | BC6: =Podloga!C36 -> 2022. ostvareno | BD6: =Podloga!D36 -> 2023. planirano | BE6: =Podloga!E36 -> 2023. procijenjeno | BF6: =Podloga!F36 -> 2024. planirano | BL6: X5 | BM6: =IFERROR('Altman Integral (Basic)'!C45/'Altman Integral (Basic)'!C41,) -> 0.1510317427 | BN6: =IFERROR('Altman Integral (Basic)'!D45/'Altman Integral (Basic)'!D41,) -> 0.1817915616 | BO6: =IFERROR('Altman Integral (Basic)'!E45/'Altman Integral (Basic)'!E41,) -> 0.1097449745 | BP6: =IFERROR('Altman Integral (Basic)'!F45/'Altman Integral (Basic)'!F41,) -> 0.2161624808 | BQ6: =IFERROR('Altman Integral (Basic)'!G45/'Altman Integral (Basic)'!G41,) -> 0.1688613923 | BS6: X5 | BT6: 1 | CH6: Financijski i investicijski prihodi Δ | CI6: =(RDG!F34+RDG!F53+RDG!F54)-(RDG!D34+RDG!D53+RDG!D54) -> -0.083 | CK6: =IF(SUM(CI1:CI5)>=0,(IF(CI6>=0,SUM(CI1:CI5),(IF(ABS(SUM(CI1:CI5))>ABS(CI6),SUM(CI1:CI6),0)))),(IF(CI6<0,SUM(CI1:CI5),(IF(ABS(SUM(CI1:CI5))>ABS(CI6),SUM(CI1:CI6),0))))) -> -652.142 | CL6: =IF(SUM(CI1:CI5)>=0,(IF(CI6<0,(IF(ABS(CI6)>ABS(SUM(CI1:CI5)),SUM(CI1:CI5),ABS(CI6))),CI6)),(IF(CI6>0,(IF(ABS(CI6)>ABS(SUM(CI1:CI5)),SUM(CI1:CI6),0)),0))) -> 0 | CM6: =IF(SUM(CI1:CI5)<0,(IF(CI6<0,CI6,(IF(ABS(CI6)>ABS(SUM(CI1:CI5)),SUM(CI1:CI5),0-CI6)))),(IF(CI6<0,(IF(ABS(CI6)>ABS(SUM(CI1:CI5)),SUM(CI1:CI6),0)),0))) -> -0.083 | CN6: Financijski i investicijski prihodi Δ | CP6: -652.142 | CQ6: 0 | CR6: 0 | CS6: 0 | CT6: -0.083 | CU6: 0 | CX6: Troškovi osoblja Δ | CY6: =RDG!E17-RDG!F17 -> 35.75 | DA6: =IF(SUM(CY1:CY5)>=0,(IF(CY6>=0,SUM(CY1:CY5),(IF(ABS(SUM(CY1:CY5))>ABS(CY6),SUM(CY1:CY6),0)))),(IF(CY6<0,SUM(CY1:CY5),(IF(ABS(SUM(CY1:CY5))>ABS(CY6),SUM(CY1:CY6),0))))) -> -7.757 | DB6: =IF(SUM(CY1:CY5)>=0,(IF(CY6<0,(IF(ABS(CY6)>ABS(SUM(CY1:CY5)),SUM(CY1:CY5),ABS(CY6))),CY6)),(IF(CY6>0,(IF(ABS(CY6)>ABS(SUM(CY1:CY5)),SUM(CY1:CY6),0)),0))) -> 0 | DC6: =IF(SUM(CY1:CY5)<0,(IF(CY6<0,CY6,(IF(ABS(CY6)>ABS(SUM(CY1:CY5)),SUM(CY1:CY5),0-CY6)))),(IF(CY6<0,(IF(ABS(CY6)>ABS(SUM(CY1:CY5)),SUM(CY1:CY6),0)),0))) -> -35.75 | DD6: Troškovi osoblja Δ | DE6: 0 | DF6: -7.757 | DG6: 0 | DH6: 0 | DI6: -35.75 | DJ6: 0 | DK6: 0 | DM6: Ostalo | DN6: =Bilanca!C130 -> 0 | DO6: =Bilanca!D130 -> 0 | DP6: =Bilanca!E130 -> 0 | DQ6: =Bilanca!F130 -> 0 | DR6: =Bilanca!G130 -> 0 | EF6: =Podloga!B36 -> 2022. planirano | EG6: =Podloga!C36 -> 2022. ostvareno | EH6: =Podloga!D36 -> 2023. planirano | EI6: =Podloga!E36 -> 2023. procijenjeno | EJ6: =Podloga!F36 -> 2024. planirano | EL6: Poslovne akt. | EM6: =IF(Podloga!$B$19="Direktna",'NT dir.'!D18,'NT indir.'!D26) -> 498.259 | EN6: =IF(Podloga!$B$19="Direktna",'NT dir.'!F18,'NT indir.'!F26) -> -189.859 | EO6: =IF(Podloga!$B$19="Direktna",'NT dir.'!C18,'NT indir.'!C26) -> 255.324 | EP6: =IF(Podloga!$B$19="Direktna",'NT dir.'!E18,'NT indir.'!E26) -> 6251.951 | EQ6: =IF(Podloga!$B$19="Direktna",'NT dir.'!G18,'NT indir.'!G26) -> 50.688
AT7: predst. poslodavaca (bez prava glasa) | BA7: Dobit razdoblja | BB7: =RDG!C63 -> 11.668 | BC7: =RDG!D63 -> -356.379 | BD7: =RDG!E63 -> 5.246 | BE7: =RDG!F63 -> -627.551 | BF7: =RDG!G63 -> 5.02 | BL7: Gornja granica | BM7: 3 | BN7: 3 | BO7: 3 | BP7: 3 | BQ7: 3 | CH7: Financijski i investicijski rashodi Δ | CI7: =(RDG!D45+RDG!D55+RDG!D56)-(RDG!F45+RDG!F55+RDG!F56) -> 24.674 | CK7: =IF(SUM(CI1:CI6)>=0,(IF(CI7>=0,SUM(CI1:CI6),(IF(ABS(SUM(CI1:CI6))>ABS(CI7),SUM(CI1:CI7),0)))),(IF(CI7<0,SUM(CI1:CI6),(IF(ABS(SUM(CI1:CI6))>ABS(CI7),SUM(CI1:CI7),0))))) -> -627.551 | CL7: =IF(SUM(CI1:CI6)>=0,(IF(CI7<0,(IF(ABS(CI7)>ABS(SUM(CI1:CI6)),SUM(CI1:CI6),ABS(CI7))),CI7)),(IF(CI7>0,(IF(ABS(CI7)>ABS(SUM(CI1:CI6)),SUM(CI1:CI7),0)),0))) -> 0 | CM7: =IF(SUM(CI1:CI6)<0,(IF(CI7<0,CI7,(IF(ABS(CI7)>ABS(SUM(CI1:CI6)),SUM(CI1:CI6),0-CI7)))),(IF(CI7<0,(IF(ABS(CI7)>ABS(SUM(CI1:CI6)),SUM(CI1:CI7),0)),0))) -> -24.674 | CN7: Financijski i investicijski rashodi Δ | CP7: -627.551 | CQ7: 0 | CR7: 0 | CS7: -24.674 | CT7: 0 | CU7: 0 | CX7: Vrijednosna usklađenja Δ | CY7: =RDG!E23-RDG!F23 -> 0 | DA7: =IF(SUM(CY1:CY6)>=0,(IF(CY7>=0,SUM(CY1:CY6),(IF(ABS(SUM(CY1:CY6))>ABS(CY7),SUM(CY1:CY7),0)))),(IF(CY7<0,SUM(CY1:CY6),(IF(ABS(SUM(CY1:CY6))>ABS(CY7),SUM(CY1:CY7),0))))) -> -7.757 | DB7: =IF(SUM(CY1:CY6)>=0,(IF(CY7<0,(IF(ABS(CY7)>ABS(SUM(CY1:CY6)),SUM(CY1:CY6),ABS(CY7))),CY7)),(IF(CY7>0,(IF(ABS(CY7)>ABS(SUM(CY1:CY6)),SUM(CY1:CY7),0)),0))) -> 0 | DC7: =IF(SUM(CY1:CY6)<0,(IF(CY7<0,CY7,(IF(ABS(CY7)>ABS(SUM(CY1:CY6)),SUM(CY1:CY6),0-CY7)))),(IF(CY7<0,(IF(ABS(CY7)>ABS(SUM(CY1:CY6)),SUM(CY1:CY7),0)),0))) -> 0 | DD7: Vrijednosna usklađenja Δ | DE7: 0 | DF7: -7.757 | DG7: 0 | DH7: 0 | DI7: 0 | DJ7: 0 | DK7: 0 | DM7: Ukupno pasiva | DN7: =SUM(DN2:DN6) -> 13326.701 | DO7: =SUM(DO2:DO6) -> 13481.189 | DP7: 19429.374 | DQ7: 12973.985 | DR7: 20409.841 | DW7: =Podloga!B36 -> 2022. planirano | DX7: =Podloga!C36 -> 2022. ostvareno | DY7: =Podloga!D36 -> 2023. planirano | DZ7: =Podloga!E36 -> 2023. procijenjeno | EA7: =Podloga!F36 -> 2024. planirano | EE7: Ukupni prihodi | EF7: =RDG!C57 -> 2012.754 | EG7: =RDG!D57 -> 2450.767 | EH7: =RDG!E57 -> 2132.276 | EI7: =RDG!F57 -> 2804.489 | EJ7: =RDG!G57 -> 3446.434 | EL7: Investicijske akt. | EM7: =IF(Podloga!$B$19="Direktna",'NT dir.'!D33,'NT indir.'!D41) -> -541.554 | EN7: =IF(Podloga!$B$19="Direktna",'NT dir.'!F33,'NT indir.'!F41) -> -189.729 | EO7: =IF(Podloga!$B$19="Direktna",'NT dir.'!C33,'NT indir.'!C41) -> -145.995 | EP7: =IF(Podloga!$B$19="Direktna",'NT dir.'!E33,'NT indir.'!E41) -> -6226.909 | EQ7: =IF(Podloga!$B$19="Direktna",'NT dir.'!G33,'NT indir.'!G41) -> 0.52
AT8: Grad Crikvenica | BA8: Neto profitna marža | BB8: =IFERROR(RDG!C63/RDG!C57,) -> 0.005797032325 | BC8: =IFERROR(RDG!D63/RDG!D57,) -> -0.1454152924 | BD8: =IFERROR(RDG!E63/RDG!E57,) -> 0.002460281877 | BE8: =IFERROR(RDG!F63/RDG!F57,) -> -0.2237666113 | BF8: =IFERROR(RDG!G63/RDG!G57,) -> 0.001456578017 | BL8: Donja granica | BM8: 1.8 | BN8: 1.8 | BO8: 1.8 | BP8: 1.8 | BQ8: 1.8 | CH8: Procijenjena bruto dobit tekuće godine | CI8: =RDG!F59 -> -627.551 | CJ8: =CI8 -> -627.551 | CN8: Procijenjena bruto dobit tekuće godine | CO8: =CJ8 -> -627.551 | CP8: 0 | CQ8: 0 | CR8: 0 | CS8: 0 | CT8: 0 | CU8: 0 | CX8: Rezerviranja Δ | CY8: =RDG!E26-RDG!F26 -> -2.35 | DA8: =IF(SUM(CY1:CY7)>=0,(IF(CY8>=0,SUM(CY1:CY7),(IF(ABS(SUM(CY1:CY7))>ABS(CY8),SUM(CY1:CY8),0)))),(IF(CY8<0,SUM(CY1:CY7),(IF(ABS(SUM(CY1:CY7))>ABS(CY8),SUM(CY1:CY8),0))))) -> -7.757 | DB8: =IF(SUM(CY1:CY7)>=0,(IF(CY8<0,(IF(ABS(CY8)>ABS(SUM(CY1:CY7)),SUM(CY1:CY7),ABS(CY8))),CY8)),(IF(CY8>0,(IF(ABS(CY8)>ABS(SUM(CY1:CY7)),SUM(CY1:CY8),0)),0))) -> 0 | DC8: =IF(SUM(CY1:CY7)<0,(IF(CY8<0,CY8,(IF(ABS(CY8)>ABS(SUM(CY1:CY7)),SUM(CY1:CY7),0-CY8)))),(IF(CY8<0,(IF(ABS(CY8)>ABS(SUM(CY1:CY7)),SUM(CY1:CY8),0)),0))) -> -2.35 | DD8: Rezerviranja Δ | DE8: 0 | DF8: -7.757 | DG8: 0 | DH8: 0 | DI8: 0 | DJ8: -2.35 | DK8: 0 | DM8: Udio kapitala u pasivi | DN8: =Bilanca!C75/Bilanca!C131 -> 0.1444875217 | DO8: =Bilanca!D75/Bilanca!D131 -> 0.1136513256 | DP8: =Bilanca!E75/Bilanca!E131 -> 0.07697695253 | DQ8: =Bilanca!F75/Bilanca!F131 -> 0.06972452951 | DR8: =Bilanca!G75/Bilanca!G131 -> 0.04456796111 | DV8: Novčani primici od kupaca | DW8: =IFERROR(IF(Podloga!$B$19="Direktna",'NT dir.'!C7,),) -> 0 | DX8: =IFERROR(IF(Podloga!$B$19="Direktna",'NT dir.'!D7,),) -> 0 | DY8: =IFERROR(IF(Podloga!$B$19="Direktna",'NT dir.'!E7,),) -> 0 | DZ8: =IFERROR(IF(Podloga!$B$19="Direktna",'NT dir.'!F7,),) -> 0 | EA8: =IFERROR(IF(Podloga!$B$19="Direktna",'NT dir.'!G7,),) -> 0 | EE8: Ukupni rashodi | EF8: =RDG!C58 -> 2001.086 | EG8: =RDG!D58 -> 2807.146 | EH8: =RDG!E58 -> 2127.03 | EI8: =RDG!F58 -> 3432.04 | EJ8: =RDG!G58 -> 3441.414 | EL8: Financijske akt. | EM8: =IF(Podloga!$B$19="Direktna",'NT dir.'!D46,'NT indir.'!D54) -> -90.547 | EN8: =IF(Podloga!$B$19="Direktna",'NT dir.'!F46,'NT indir.'!F54) -> -90.547 | EO8: =IF(Podloga!$B$19="Direktna",'NT dir.'!C46,'NT indir.'!C54) -> -97.184 | EP8: =IF(Podloga!$B$19="Direktna",'NT dir.'!E46,'NT indir.'!E54) -> 0 | EQ8: =IF(Podloga!$B$19="Direktna",'NT dir.'!G46,'NT indir.'!G54) -> 0
AT9: Grad Dubrovnik | BA9: Operativna profitna marža | BB9: =(RDG!C5-RDG!C11)/(RDG!C6+RDG!C7) -> 0.1357310966 | BC9: =(RDG!D5-RDG!D11)/(RDG!D6+RDG!D7) -> -0.4347046065 | BD9: =(RDG!E5-RDG!E11)/(RDG!E6+RDG!E7) -> 0.09538862406 | BE9: =(RDG!F5-RDG!F11)/(RDG!F6+RDG!F7) -> -0.5104694054 | BF9: =(RDG!G5-RDG!G11)/(RDG!G6+RDG!G7) -> 0.05269035644 | CX9: Ostali poslovni rashodi Δ | CY9: =(RDG!E22+RDG!E33+RDG!E55+RDG!E56)-(RDG!F22+RDG!F33+RDG!F55+RDG!F56) -> -205.803 | DA9: =IF(SUM(CY1:CY8)>=0,(IF(CY9>=0,SUM(CY1:CY8),(IF(ABS(SUM(CY1:CY8))>ABS(CY9),SUM(CY1:CY9),0)))),(IF(CY9<0,SUM(CY1:CY8),(IF(ABS(SUM(CY1:CY8))>ABS(CY9),SUM(CY1:CY9),0))))) -> -10.107 | DB9: =IF(SUM(CY1:CY8)>=0,(IF(CY9<0,(IF(ABS(CY9)>ABS(SUM(CY1:CY8)),SUM(CY1:CY8),ABS(CY9))),CY9)),(IF(CY9>0,(IF(ABS(CY9)>ABS(SUM(CY1:CY8)),SUM(CY1:CY9),0)),0))) -> 0 | DC9: =IF(SUM(CY1:CY8)<0,(IF(CY9<0,CY9,(IF(ABS(CY9)>ABS(SUM(CY1:CY8)),SUM(CY1:CY8),0-CY9)))),(IF(CY9<0,(IF(ABS(CY9)>ABS(SUM(CY1:CY8)),SUM(CY1:CY9),0)),0))) -> -205.803 | DD9: Ostali poslovni rashodi Δ | DE9: 0 | DF9: -10.107 | DG9: 0 | DH9: 0 | DI9: 0 | DJ9: -205.803 | DK9: 0 | DV9: Novčani primici od tantijema, naknada, provizija i slično | DW9: =IFERROR(IF(Podloga!$B$19="Direktna",'NT dir.'!C8,),) -> 0 | DX9: =IFERROR(IF(Podloga!$B$19="Direktna",'NT dir.'!D8,),) -> 0 | DY9: =IFERROR(IF(Podloga!$B$19="Direktna",'NT dir.'!E8,),) -> 0 | DZ9: =IFERROR(IF(Podloga!$B$19="Direktna",'NT dir.'!F8,),) -> 0 | EA9: =IFERROR(IF(Podloga!$B$19="Direktna",'NT dir.'!G8,),) -> 0 | EE9: Prihodi od poslovnih aktivnosti | EF9: =RDG!C5 -> 2007.445 | EG9: =RDG!D5 -> 2450.167 | EH9: =RDG!E5 -> 2131.827 | EI9: =RDG!F5 -> 2803.972 | EJ9: =RDG!G5 -> 3445.894 | EL9: Ukupno novč. tokovi | EM9: =IF(Podloga!$B$19="Direktna",'NT dir.'!D48,'NT indir.'!D56) -> -133.842 | EN9: =IF(Podloga!$B$19="Direktna",'NT dir.'!F48,'NT indir.'!F56) -> -470.135 | EO9: =IF(Podloga!$B$19="Direktna",'NT dir.'!C48,'NT indir.'!C56) -> 12.145 | EP9: =IF(Podloga!$B$19="Direktna",'NT dir.'!E48,'NT indir.'!E56) -> 25.042 | EQ9: =IF(Podloga!$B$19="Direktna",'NT dir.'!G48,'NT indir.'!G56) -> 51.208
AT10: Grad Kaštela | CH10: Planirana bruto dobit tekuće godine | CI10: =RDG!E59 -> 5.246 | CJ10: =CI10 -> 5.246 | CN10: =CH10 -> Planirana bruto dobit tekuće godine | CO10: =CJ10 -> 5.246 | CP10: =CK10 -> 0 | CQ10: 0 | CR10: 0 | CS10: 0 | CT10: 0 | CU10: 0 | CX10: Financijski rashodi (bez kamata) Δ | CY10: =(RDG!E45-RDG!E46-RDG!E48)-(RDG!F45-RDG!F46-RDG!F48) -> 4.237 | DA10: =IF(SUM(CY1:CY9)>=0,(IF(CY10>=0,SUM(CY1:CY9),(IF(ABS(SUM(CY1:CY9))>ABS(CY10),SUM(CY1:CY10),0)))),(IF(CY10<0,SUM(CY1:CY9),(IF(ABS(SUM(CY1:CY9))>ABS(CY10),SUM(CY1:CY10),0))))) -> -211.673 | DB10: =IF(SUM(CY1:CY9)>=0,(IF(CY10<0,(IF(ABS(CY10)>ABS(SUM(CY1:CY9)),SUM(CY1:CY9),ABS(CY10))),CY10)),(IF(CY10>0,(IF(ABS(CY10)>ABS(SUM(CY1:CY9)),SUM(CY1:CY10),0)),0))) -> 0 | DC10: =IF(SUM(CY1:CY9)<0,(IF(CY10<0,CY10,(IF(ABS(CY10)>ABS(SUM(CY1:CY9)),SUM(CY1:CY9),0-CY10)))),(IF(CY10<0,(IF(ABS(CY10)>ABS(SUM(CY1:CY9)),SUM(CY1:CY10),0)),0))) -> -4.237 | DD10: Financijski rashodi (bez kamata) Δ | DE10: 0 | DF10: -211.673 | DG10: 0 | DH10: 0 | DI10: -4.237 | DJ10: 0 | DK10: 0 | DV10: Novčani primici od osiguranja za naknadu šteta | DW10: =IFERROR(IF(Podloga!$B$19="Direktna",'NT dir.'!C9,),) -> 0 | DX10: =IFERROR(IF(Podloga!$B$19="Direktna",'NT dir.'!D9,),) -> 0 | DY10: =IFERROR(IF(Podloga!$B$19="Direktna",'NT dir.'!E9,),) -> 0 | DZ10: =IFERROR(IF(Podloga!$B$19="Direktna",'NT dir.'!F9,),) -> 0 | EA10: =IFERROR(IF(Podloga!$B$19="Direktna",'NT dir.'!G9,),) -> 0 | EE10: Rashodi od poslovnih aktivnosti | EF10: =RDG!C11 -> 1928.089 | EG10: =RDG!D11 -> 2735.358 | EH10: =RDG!E11 -> 2065.712 | EI10: =RDG!F11 -> 3384.926 | EJ10: =RDG!G11 -> 3378.614
AT11: Grad Krk i općina Omišalj | BB11: =Podloga!B36 -> 2022. planirano | BC11: =Podloga!C36 -> 2022. ostvareno | BD11: =Podloga!D36 -> 2023. planirano | BE11: =Podloga!E36 -> 2023. procijenjeno | BF11: =Podloga!F36 -> 2024. planirano | CH11: Poslovni prihodi Δ | CI11: =RDG!F5-RDG!E5 -> 672.145 | CK11: =IF(SUM(CI10)>=0,(IF(CI11>=0,SUM(CI10),(IF(ABS(SUM(CI10))>ABS(CI11),SUM(CI10:CI11),0)))),(IF(CI11<0,SUM(CI10),(IF(ABS(SUM(CI10))>ABS(CI11),SUM(CI10:CI11),0))))) -> 5.246 | CL11: =IF(SUM(CI10)>=0,(IF(CI11<0,(IF(ABS(CI11)>ABS(SUM(CI10)),SUM(CI10),ABS(CI11))),CI11)),(IF(CI11>0,(IF(ABS(CI11)>ABS(SUM(CI10)),SUM(CI10:CI11),0)),0))) -> 672.145 | CM11: =IF(SUM(CI10)<0,(IF(CI11<0,CI11,(IF(ABS(CI11)>ABS(SUM(CI10)),SUM(CI10),0-CI11)))),(IF(CI11<0,(IF(ABS(CI11)>ABS(SUM(CI10)),SUM(CI10:CI11),0)),0))) -> 0 | CN11: Poslovni prihodi Δ | CP11: =CK11 -> 5.246 | CQ11: 672.145 | CR11: 0 | CS11: 0 | CT11: 0 | CU11: 0 | CX11: Procijenjena EBITDA tekuće godine | CY11: =BE3 -> -211.673 | CZ11: =CY11 -> -211.673 | DD11: Procijenjena EBITDA tekuće godine | DE11: -211.673 | DF11: 0 | DG11: 0 | DH11: 0 | DI11: 0 | DJ11: 0 | DK11: 0 | DV11: Novčani primici s osnove povrata poreza | DW11: =IFERROR(IF(Podloga!$B$19="Direktna",'NT dir.'!C10,),) -> 0 | DX11: =IFERROR(IF(Podloga!$B$19="Direktna",'NT dir.'!D10,),) -> 0 | DY11: =IFERROR(IF(Podloga!$B$19="Direktna",'NT dir.'!E10,),) -> 0 | DZ11: =IFERROR(IF(Podloga!$B$19="Direktna",'NT dir.'!F10,),) -> 0 | EA11: =IFERROR(IF(Podloga!$B$19="Direktna",'NT dir.'!G10,),) -> 0 | EE11: Ekonomičnost ukupnog poslovanja | EF11: =EF7/EF8 -> 1.005830834 | EG11: =EG7/EG8 -> 0.873045791 | EH11: 1.00246635 | EI11: 0.8171492756 | EJ11: 1.001458703
AT12: Grad Opatija | BA12: ROE | BB12: =IFERROR((RDG!C83/Bilanca!C$75),) -> 0.006059592572 | BC12: =IFERROR((RDG!D83/Bilanca!D$75),) -> -0.2325998349 | BD12: =IFERROR((RDG!E83/Bilanca!E$75),) -> 0.003507589525 | BE12: =IFERROR((RDG!F83/Bilanca!F$75),) -> -0.6937293073 | BF12: =IFERROR((RDG!G83/Bilanca!G$75),) -> 0.00551875773 | BL12: Altman a | CH12: Materijalni troškovi Δ | CI12: =RDG!E13-RDG!F13 -> -1064.785 | CK12: =IF(SUM(CI10:CI11)>=0,(IF(CI12>=0,SUM(CI10:CI11),(IF(ABS(SUM(CI10:CI11))>ABS(CI12),SUM(CI10:CI12),0)))),(IF(CI12<0,SUM(CI10:CI11),(IF(ABS(SUM(CI10:CI11))>ABS(CI12),SUM(CI10:CI12),0))))) -> 0 | CL12: =IF(SUM(CI10:CI11)>=0,(IF(CI12<0,(IF(ABS(CI12)>ABS(SUM(CI10:CI11)),SUM(CI10:CI11),ABS(CI12))),CI12)),(IF(CI12>0,(IF(ABS(CI12)>ABS(SUM(CI10:CI11)),SUM(CI10:CI12),0)),0))) -> 677.391 | CM12: =IF(SUM(CI10:CI11)<0,(IF(CI12<0,CI12,(IF(ABS(CI12)>ABS(SUM(CI10:CI11)),SUM(CI10:CI11),0-CI12)))),(IF(CI12<0,(IF(ABS(CI12)>ABS(SUM(CI10:CI11)),SUM(CI10:CI12),0)),0))) -> -387.394 | CN12: Materijalni troškovi Δ | CP12: 0 | CQ12: 0 | CR12: 677.391 | CS12: 0 | CT12: -387.394 | CU12: 0 | DV12: Ostali novčani primici iz poslovanja | DW12: =IFERROR(IF(Podloga!$B$19="Direktna",'NT dir.'!#REF!,),) -> 0 | DX12: =IFERROR(IF(Podloga!$B$19="Direktna",'NT dir.'!#REF!,),) -> 0 | DY12: =IFERROR(IF(Podloga!$B$19="Direktna",'NT dir.'!#REF!,),) -> 0 | DZ12: =IFERROR(IF(Podloga!$B$19="Direktna",'NT dir.'!#REF!,),) -> 0 | EA12: =IFERROR(IF(Podloga!$B$19="Direktna",'NT dir.'!#REF!,),) -> 0 | EE12: Ekonomičnost poslovnih aktivnosti | EF12: =EF9/EF10 -> 1.041157851 | EG12: =EG9/EG10 -> 0.8957390587 | EH12: 1.032005914 | EI12: 0.8283702509 | EJ12: 1.019913491
AT13: Grad Osijek | BA13: ROA | BB13: =IFERROR(RDG!C63/Bilanca!C68,) -> 0.0008755358943 | BC13: =IFERROR(RDG!D63/Bilanca!D68,) -> -0.02643527309 | BD13: =IFERROR(RDG!E63/Bilanca!E68,) -> 0.0002700035718 | BE13: =IFERROR(RDG!F63/Bilanca!F68,) -> -0.04836994583 | BF13: =IFERROR(RDG!G63/Bilanca!G68,) -> 0.0002459597919 | BL13: X1 | BM13: =IFERROR('Altman Integral (A)'!C35/'Altman Integral (A)'!C36,) -> 0.07728300862 | BN13: =IFERROR('Altman Integral (A)'!D35/'Altman Integral (A)'!D36,) -> 0.08051390232 | BO13: =IFERROR('Altman Integral (A)'!E35/'Altman Integral (A)'!E36,) -> 0.0479865006 | BP13: =IFERROR('Altman Integral (A)'!F35/'Altman Integral (A)'!F36,) -> 0.05714388778 | BQ13: =IFERROR('Altman Integral (A)'!G35/'Altman Integral (A)'!G36,) -> 0.03220652391 | BR13: Koeficijent: | BS13: X1 | BT13: 0.717 | CH13: Troškovi osoblja Δ | CI13: =RDG!E17-RDG!F17 -> 35.75 | CK13: =IF(SUM(CI10:CI12)>=0,(IF(CI13>=0,SUM(CI10:CI12),(IF(ABS(SUM(CI10:CI12))>ABS(CI13),SUM(CI10:CI13),0)))),(IF(CI13<0,SUM(CI10:CI12),(IF(ABS(SUM(CI10:CI12))>ABS(CI13),SUM(CI10:CI13),0))))) -> -351.644 | CL13: =IF(SUM(CI10:CI12)>=0,(IF(CI13<0,(IF(ABS(CI13)>ABS(SUM(CI10:CI12)),SUM(CI10:CI12),ABS(CI13))),CI13)),(IF(CI13>0,(IF(ABS(CI13)>ABS(SUM(CI10:CI12)),SUM(CI10:CI13),0)),0))) -> 0 | CM13: =IF(SUM(CI10:CI12)<0,(IF(CI13<0,CI13,(IF(ABS(CI13)>ABS(SUM(CI10:CI12)),SUM(CI10:CI12),0-CI13)))),(IF(CI13<0,(IF(ABS(CI13)>ABS(SUM(CI10:CI12)),SUM(CI10:CI13),0)),0))) -> -35.75 | CN13: Troškovi osoblja Δ | CP13: -351.644 | CQ13: 0 | CR13: 0 | CS13: -35.75 | CT13: 0 | CU13: 0
AT14: Grad Poreč | BB14: =Podloga!B36 -> 2022. planirano | BC14: =Podloga!C36 -> 2022. ostvareno | BD14: =Podloga!D36 -> 2023. planirano | BE14: =Podloga!E36 -> 2023. procijenjeno | BF14: =Podloga!F36 -> 2024. planirano | BL14: X2 | BM14: =IFERROR('Altman Integral (A)'!C37/'Altman Integral (A)'!C36,) -> -0.1173975976 | BN14: =IFERROR('Altman Integral (A)'!D37/'Altman Integral (A)'!D36,) -> -0.1179320022 | BO14: =IFERROR('Altman Integral (A)'!E37/'Altman Integral (A)'!E36,) -> -0.1023210086 | BP14: =IFERROR('Altman Integral (A)'!F37/'Altman Integral (A)'!F36,) -> -0.150011261 | BQ14: =IFERROR('Altman Integral (A)'!G37/'Altman Integral (A)'!G36,) -> -0.1261055942 | BS14: X2 | BT14: 0.847 | CH14: Ostali poslovni rashodi Δ | CI14: =(RDG!E11-RDG!E13-RDG!E17)-(RDG!F11-RDG!F13-RDG!F17) -> -290.179 | CK14: =IF(SUM(CI10:CI13)>=0,(IF(CI14>=0,SUM(CI10:CI13),(IF(ABS(SUM(CI10:CI13))>ABS(CI14),SUM(CI10:CI14),0)))),(IF(CI14<0,SUM(CI10:CI13),(IF(ABS(SUM(CI10:CI13))>ABS(CI14),SUM(CI10:CI14),0))))) -> -351.644 | CL14: =IF(SUM(CI10:CI13)>=0,(IF(CI14<0,(IF(ABS(CI14)>ABS(SUM(CI10:CI13)),SUM(CI10:CI13),ABS(CI14))),CI14)),(IF(CI14>0,(IF(ABS(CI14)>ABS(SUM(CI10:CI13)),SUM(CI10:CI14),0)),0))) -> 0 | CM14: =IF(SUM(CI10:CI13)<0,(IF(CI14<0,CI14,(IF(ABS(CI14)>ABS(SUM(CI10:CI13)),SUM(CI10:CI13),0-CI14)))),(IF(CI14<0,(IF(ABS(CI14)>ABS(SUM(CI10:CI13)),SUM(CI10:CI14),0)),0))) -> -290.179 | CN14: Ostali poslovni rashodi Δ | CP14: -351.644 | CQ14: 0 | CR14: 0 | CS14: 0 | CT14: -290.179 | CU14: 0 | EF14: =Podloga!B36 -> 2022. planirano | EG14: =Podloga!C36 -> 2022. ostvareno | EH14: =Podloga!D36 -> 2023. planirano | EI14: =Podloga!E36 -> 2023. procijenjeno | EJ14: =Podloga!F36 -> 2024. planirano
AT15: Grad Pula | BA15: EBIT/trošak kamata | BB15: =(RDG!C59+RDG!C46+RDG!C48)/(RDG!C46+RDG!C48) -> 1.165872937 | BC15: =(RDG!D59+RDG!D46+RDG!D48)/(RDG!D46+RDG!D48) -> -4.076623932 | BD15: =(RDG!E59+RDG!E46+RDG!E48)/(RDG!E46+RDG!E48) -> 1.096286915 | BE15: =(RDG!F59+RDG!F46+RDG!F48)/(RDG!F46+RDG!F48) -> -13.09720101 | BF15: =(RDG!G59+RDG!G46+RDG!G48)/(RDG!G46+RDG!G48) -> 1.089883617 | BL15: X3 | BM15: =IFERROR('Altman Integral (A)'!C38/'Altman Integral (A)'!C36,) -> 0.006153888775 | BN15: =IFERROR('Altman Integral (A)'!D38/'Altman Integral (A)'!D36,) -> -0.02122801853 | BO15: =IFERROR('Altman Integral (A)'!E38/'Altman Integral (A)'!E36,) -> 0.003074159996 | BP15: =IFERROR('Altman Integral (A)'!F38/'Altman Integral (A)'!F36,) -> -0.04493877209 | BQ15: =IFERROR('Altman Integral (A)'!G38/'Altman Integral (A)'!G36,) -> 0.002982384967 | BS15: X3 | BT15: 3.107 | CH15: Financijski i investicijski prihodi Δ | CI15: =(RDG!F34+RDG!F53+RDG!F54)-(RDG!E34+RDG!E53+RDG!E54) -> 0.068 | CK15: =IF(SUM(CI10:CI14)>=0,(IF(CI15>=0,SUM(CI10:CI14),(IF(ABS(SUM(CI10:CI14))>ABS(CI15),SUM(CI10:CI15),0)))),(IF(CI15<0,SUM(CI10:CI14),(IF(ABS(SUM(CI10:CI14))>ABS(CI15),SUM(CI10:CI15),0))))) -> -641.755 | CL15: =IF(SUM(CI10:CI14)>=0,(IF(CI15<0,(IF(ABS(CI15)>ABS(SUM(CI10:CI14)),SUM(CI10:CI14),ABS(CI15))),CI15)),(IF(CI15>0,(IF(ABS(CI15)>ABS(SUM(CI10:CI14)),SUM(CI10:CI15),0)),0))) -> 0 | CM15: =IF(SUM(CI10:CI14)<0,(IF(CI15<0,CI15,(IF(ABS(CI15)>ABS(SUM(CI10:CI14)),SUM(CI10:CI14),0-CI15)))),(IF(CI15<0,(IF(ABS(CI15)>ABS(SUM(CI10:CI14)),SUM(CI10:CI15),0)),0))) -> -0.068 | CN15: Financijski i investicijski prihodi Δ | CP15: -641.755 | CQ15: 0 | CR15: 0 | CS15: -0.068 | CT15: 0 | CU15: 0 | DX15: Omjer primitaka od poslovnih aktivnosti i poslovnih prihoda | EE15: Glavnica | EF15: =Bilanca!C75 -> 1925.542 | EG15: =Bilanca!D75 -> 1532.155 | EH15: =Bilanca!E75 -> 1495.614 | EI15: =Bilanca!F75 -> 904.605 | EJ15: =Bilanca!G75 -> 909.625
AT16: Grad Rijeka | BA16: Trošak kamata | BB16: =RDG!C46+RDG!C48 -> 70.343 | BC16: =RDG!D46+RDG!D48 -> 70.2 | BD16: =RDG!E46+RDG!E48 -> 54.483 | BE16: =RDG!F46+RDG!F48 -> 44.516 | BF16: =RDG!G46+RDG!G48 -> 55.85 | BL16: X4 | BM16: =IFERROR('Altman Integral (A)'!C41/'Altman Integral (A)'!C39,) -> 0.3056611387 | BN16: =IFERROR('Altman Integral (A)'!D41/'Altman Integral (A)'!D39,) -> 0.2912599223 | BO16: =IFERROR('Altman Integral (A)'!E41/'Altman Integral (A)'!E39,) -> 0.1943857045 | BP16: =IFERROR('Altman Integral (A)'!F41/'Altman Integral (A)'!F39,) -> 0.2883542486 | BQ16: =IFERROR('Altman Integral (A)'!G41/'Altman Integral (A)'!G39,) -> 0.1783775113 | BS16: X4 | BT16: 0.42 | CH16: Financijski i investicijski rashodi Δ | CI16: =(RDG!E45+RDG!E55+RDG!E56)-(RDG!F45+RDG!F55+RDG!F56) -> 14.204 | CK16: =IF(SUM(CI10:CI15)>=0,(IF(CI16>=0,SUM(CI10:CI15),(IF(ABS(SUM(CI10:CI15))>ABS(CI16),SUM(CI10:CI16),0)))),(IF(CI16<0,SUM(CI10:CI15),(IF(ABS(SUM(CI10:CI15))>ABS(CI16),SUM(CI10:CI16),0))))) -> -627.551 | CL16: =IF(SUM(CI10:CI15)>=0,(IF(CI16<0,(IF(ABS(CI16)>ABS(SUM(CI10:CI15)),SUM(CI10:CI15),ABS(CI16))),CI16)),(IF(CI16>0,(IF(ABS(CI16)>ABS(SUM(CI10:CI15)),SUM(CI10:CI16),0)),0))) -> 0 | CM16: =IF(SUM(CI10:CI15)<0,(IF(CI16<0,CI16,(IF(ABS(CI16)>ABS(SUM(CI10:CI15)),SUM(CI10:CI15),0-CI16)))),(IF(CI16<0,(IF(ABS(CI16)>ABS(SUM(CI10:CI15)),SUM(CI10:CI16),0)),0))) -> -14.204 | CN16: Financijski i investicijski rashodi Δ | CP16: -627.551 | CQ16: 0 | CR16: 0 | CS16: -14.204 | CT16: 0 | CU16: 0 | CW16: U milijunima kuna | DY16: =LEFT(Podloga!B36,5) -> 2022. | DZ16: =LEFT(Podloga!D36,5) -> 2023. | EA16: =LEFT(Podloga!F36,5) -> 2024. | EE16: Glavnica + dug. Obv | EF16: =Bilanca!C75+Bilanca!C103 -> 4845.444 | EG16: =Bilanca!D75+Bilanca!D103 -> 4310.637 | EH16: =Bilanca!E75+Bilanca!E103 -> 4460.005 | EI16: =Bilanca!F75+Bilanca!F103 -> 3704.022 | EJ16: =Bilanca!G75+Bilanca!G103 -> 3709.042
AT17: Grad Split | BB17: =Podloga!B36 -> 2022. planirano | BC17: =Podloga!C36 -> 2022. ostvareno | BD17: =Podloga!D36 -> 2023. planirano | BE17: =Podloga!E36 -> 2023. procijenjeno | BF17: =Podloga!F36 -> 2024. planirano | BL17: X5 | BM17: =IFERROR('Altman Integral (A)'!C40/'Altman Integral (A)'!C36,) -> 0.1510317427 | BN17: =IFERROR('Altman Integral (A)'!D40/'Altman Integral (A)'!D36,) -> 0.1817915616 | BO17: =IFERROR('Altman Integral (A)'!E40/'Altman Integral (A)'!E36,) -> 0.1097449745 | BP17: =IFERROR('Altman Integral (A)'!F40/'Altman Integral (A)'!F36,) -> 0.2161624808 | BQ17: =IFERROR('Altman Integral (A)'!G40/'Altman Integral (A)'!G36,) -> 0.1688613923 | BS17: X5 | BT17: 0.998 | CH17: Procijenjena bruto dobit tekuće godine | CI17: =RDG!F59 -> -627.551 | CJ17: =CI17 -> -627.551 | CN17: Procijenjena bruto dobit tekuće godine | CO17: =CJ17 -> -627.551 | CP17: 0 | CQ17: 0 | CR17: 0 | CS17: 0 | CT17: 0 | CU17: 0 | DL17: Analiza EBITDA (prethodne i tekuće godine) | DX17: Planirano | DY17: =DW4 -> 0.1928775135 | DZ17: =DY4 -> 0.1728010763 | EA17: =EA4 -> -0.0582893728 | EE17: Dug. Imov | EF17: =Bilanca!C5 -> 12296.7681 | EG17: =Bilanca!D5 -> 12395.7689 | EH17: =Bilanca!E5 -> 18497.025 | EI17: =Bilanca!F5 -> 12232.602 | EJ17: =Bilanca!G5 -> 19752.51
AT18: Grad Trogir | BA18: Dug. materijalna | BB18: =Bilanca!C13 -> 12270.2231 | BC18: =Bilanca!D13 -> 12131.2359 | BD18: =Bilanca!E13 -> 18448.052 | BE18: =Bilanca!F13 -> 12007.45 | BF18: =Bilanca!G13 -> 19542.2 | BL18: Gornja granica | BM18: 2.9 | BN18: 2.9 | BO18: 2.9 | BP18: 2.9 | BQ18: 2.9 | DL18: U tisućama kuna | DR18: U milijunima kuna | DX18: Ostvareno | DY18: =DX4 -> 0.008161076367 | DZ18: =DZ4 -> -0.0694657436 | EE18: Stupanj pokrića I | EF18: =EF15/EF17 -> 0.1565892749 | EG18: =EG15/EG17 -> 0.1236030627 | EH18: 0.08085700268 | EI18: 0.07395033371 | EJ18: 0.04605110945
AT19: Grad Zadar | BA19: Dug. nematerijalna | BB19: =Bilanca!C6 -> 17.334 | BC19: =Bilanca!D6 -> 255.323 | BD19: =Bilanca!E6 -> 39.763 | BE19: =Bilanca!F6 -> 211.061 | BF19: =Bilanca!G6 -> 195.3 | BL19: Donja granica | BM19: 1.23 | BN19: 1.23 | BO19: 1.23 | BP19: 1.23 | BQ19: 1.23 | CG19: U milijunima kuna | CH19: Bruto dobit prethodne godine | CI19: =CI1/1000 -> -0.356379 | CJ19: =CJ1/1000 -> -0.356379 | CN19: =CN1 -> Bruto dobit prethodne godine | CO19: =CO1/1000 -> -0.356379 | CP19: =CP1/1000 -> 0 | CQ19: 0 | CR19: 0 | CS19: 0 | CT19: 0 | CU19: 0 | CX19: Planirana EBITDA tekuće godine | CY19: =CY1/1000 -> 0.349065 | CZ19: =CZ1/1000 -> 0.349065 | DD19: =DD1 -> Planirana EBITDA tekuće godine | DE19: =DE1/1000 -> 0.349065 | DF19: =DF1/1000 -> 0 | DG19: =IF(CY19>=0,DB19,0) -> 0 | DH19: =IF(CY19<0,DB19,0) -> 0 | DI19: =IF(CY19>=0,DC19,0) -> 0 | DJ19: =IF(CY19<0,DC19,0) -> 0 | DK19: 0 | DL19: EBITDA prethodne godine | DM19: =BC3 -> 17.653 | DN19: =DM19 -> 17.653 | DR19: Ostvarena EBITDA prethodne godine | DS19: =DM19/1000 -> 0.017653 | DT19: =DN19/1000 -> 0.017653 | EE19: Stupanj pokrića II | EF19: =EF16/EF17 -> 0.3940420735 | EG19: =EG16/EG17 -> 0.3477506748 | EH19: =EH16/EH17 -> 0.2411201261 | EI19: =EI16/EI17 -> 0.3027991919 | EJ19: =EJ16/EJ17 -> 0.1877757308
AT20: Grad Zagreb | BA20: Potraživanja | BB20: =Bilanca!C34+Bilanca!C49 -> 273.41 | BC20: =Bilanca!D34+Bilanca!D49 -> 281.245 | BD20: =Bilanca!E34+Bilanca!E49 -> 272.907 | BE20: =Bilanca!F34+Bilanca!F49 -> 403.353 | BF20: =Bilanca!G34+Bilanca!G49 -> 268.83 | CH20: Poslovni prihodi Δ | CI20: =CI2/1000 -> 0.353805 | CK20: =CK2/1000 -> -0.002574 | CL20: =CL2/1000 -> 0 | CM20: =CM2/1000 -> -0.353805 | CN20: =CN2 -> Poslovni prihodi Δ | CO20: =CO2/1000 -> 0 | CP20: -0.002574 | CQ20: 0 | CR20: 0 | CS20: -0.353805 | CT20: 0 | CU20: 0 | CX20: Prihodi od prodaje Δ | CY20: =CY2/1000 -> 0.444966 | DA20: =DA2/1000 -> 0.349065 | DB20: =DB2/1000 -> 0.444966 | DC20: =DC2/1000 -> 0 | DD20: =DD2 -> Prihodi od prodaje Δ | DE20: =DE2/1000 -> 0 | DF20: 0.349065 | DG20: 0.444966 | DH20: 0 | DI20: 0 | DJ20: 0 | DK20: 0 | DL20: Prihodi od prodaje Δ | DM20: =(RDG!F6+RDG!F7)-(RDG!D6+RDG!D7) -> 482.021 | DO20: =IF(SUM(DM19)>=0,(IF(DM20>=0,SUM(DM19),(IF(ABS(SUM(DM19))>ABS(DM20),SUM(DM19:DM20),0)))),(IF(DM20<0,SUM(DM19),(IF(ABS(SUM(DM19))>ABS(DM20),SUM(DM19:DM20),0))))) -> 17.653 | DP20: =IF(SUM(DM19)>=0,(IF(DM20<0,(IF(ABS(DM20)>ABS(SUM(DM19)),SUM(DM19),ABS(DM20))),DM20)),(IF(DM20>0,(IF(ABS(DM20)>ABS(SUM(DM19)),SUM(DM19:DM20),0)),0))) -> 482.021 | DQ20: =IF(SUM(DM19)<0,(IF(DM20<0,DM20,(IF(ABS(DM20)>ABS(SUM(DM19)),SUM(DM19),0-DM20)))),(IF(DM20<0,(IF(ABS(DM20)>ABS(SUM(DM19)),SUM(DM19:DM20),0)),0))) -> 0 | DR20: Prihodi od prodaje Δ | DS20: =DM20/1000 -> 0.482021 | DU20: =DO20/1000 -> 0.017653 | DV20: =DP20/1000 -> 0.482021 | DW20: =DQ20/1000 -> 0 | DX20: Koeficijent obrtaja imovine
AT21: Dubrovačko - neretvanska županija | BA21: Financijska imovina | BB21: =Bilanca!C23+Bilanca!C56+Bilanca!C39 -> 9.211 | BC21: =Bilanca!D23+Bilanca!D56+Bilanca!D39 -> 9.21 | BD21: =Bilanca!E23+Bilanca!E56+Bilanca!E39 -> 9.21 | BE21: =Bilanca!F23+Bilanca!F56+Bilanca!F39 -> 14.091 | BF21: =Bilanca!G23+Bilanca!G56+Bilanca!G39 -> 15.01 | CH21: Materijalni troškovi Δ | CI21: -0.309153 | CK21: =CK3/1000 -> -0.002574 | CL21: 0 | CM21: =CM3/1000 -> -0.309153 | CN21: =CN3 -> Materijalni troškovi Δ | CO21: 0 | CP21: -0.002574 | CQ21: 0 | CR21: 0 | CS21: 0 | CT21: -0.309153 | CU21: 0 | CX21: Ostali prihodi Δ | CY21: 0.227247 | DA21: 0.794031 | DB21: 0.227247 | DC21: =DC3/1000 -> 0 | DD21: Ostali prihodi Δ | DE21: 0 | DF21: 0.794031 | DG21: 0.227247 | DH21: 0 | DI21: 0 | DJ21: 0 | DK21: 0 | DL21: Ostali prihodi Δ | DM21: =(RDG!F57-RDG!F6-RDG!F7)-(RDG!D57-RDG!D6-RDG!D7) -> -128.299 | DO21: =IF(SUM(DM19:DM20)>=0,(IF(DM21>=0,SUM(DM19:DM20),(IF(ABS(SUM(DM19:DM20))>ABS(DM21),SUM(DM19:DM21),0)))),(IF(DM21<0,SUM(DM19:DM20),(IF(ABS(SUM(DM19:DM20))>ABS(DM21),SUM(DM19:DM21),0))))) -> 371.375 | DP21: =IF(SUM(DM19:DM20)>=0,(IF(DM21<0,(IF(ABS(DM21)>ABS(SUM(DM19:DM20)),SUM(DM19:DM20),ABS(DM21))),DM21)),(IF(DM21>0,(IF(ABS(DM21)>ABS(SUM(DM19:DM20)),SUM(DM19:DM21),0)),0))) -> 128.299 | DQ21: =IF(SUM(DM19:DM20)<0,(IF(DM21<0,DM21,(IF(ABS(DM21)>ABS(SUM(DM19:DM20)),SUM(DM19:DM20),0-DM21)))),(IF(DM21<0,(IF(ABS(DM21)>ABS(SUM(DM19:DM20)),SUM(DM19:DM21),0)),0))) -> 0 | DR21: Ostali prihodi Δ | DS21: -0.128299 | DU21: =DO21/1000 -> 0.371375 | DV21: =DP21/1000 -> 0.128299 | DW21: 0 | DY21: =LEFT(Podloga!B36,5) -> 2022. | DZ21: =LEFT(Podloga!D36,5) -> 2023. | EA21: =LEFT(Podloga!F36,5) -> 2024.
AT22: Istarska županija | BA22: Zalihe | BB22: =Bilanca!C41 -> 26.5421 | BC22: =Bilanca!D41 -> 33.2504 | BD22: =Bilanca!E41 -> 35.6436 | BE22: =Bilanca!F41 -> 37.238 | BF22: =Bilanca!G41 -> 36.499 | BL22: Altman b | CH22: Troškovi osoblja Δ | CI22: -0.096854 | CK22: -0.311727 | CL22: 0 | CM22: =CM4/1000 -> -0.096854 | CN22: Troškovi osoblja Δ | CO22: 0 | CP22: -0.311727 | CQ22: 0 | CR22: 0 | CS22: 0 | CT22: -0.096854 | CU22: 0 | CX22: Promjena vrijednosti zaliha Δ | CY22: 0 | DA22: 1.021278 | DB22: 0 | DC22: =DC4/1000 -> 0 | DD22: Promjena vrijednosti zaliha Δ | DE22: 0 | DF22: 1.021278 | DG22: 0 | DH22: 0 | DI22: 0 | DJ22: 0 | DK22: 0 | DL22: Promjena vrijednosti zaliha Δ | DM22: =RDG!D12-RDG!F12 -> 0 | DO22: =IF(SUM(DM19:DM21)>=0,(IF(DM22>=0,SUM(DM19:DM21),(IF(ABS(SUM(DM19:DM21))>ABS(DM22),SUM(DM19:DM22),0)))),(IF(DM22<0,SUM(DM19:DM21),(IF(ABS(SUM(DM19:DM21))>ABS(DM22),SUM(DM19:DM22),0))))) -> 371.375 | DP22: =IF(SUM(DM19:DM21)>=0,(IF(DM22<0,(IF(ABS(DM22)>ABS(SUM(DM19:DM21)),SUM(DM19:DM21),ABS(DM22))),DM22)),(IF(DM22>0,(IF(ABS(DM22)>ABS(SUM(DM20:DM21)),SUM(DM19:DM22),0)),0))) -> 0 | DQ22: =IF(SUM(DM19:DM21)<0,(IF(DM22<0,DM22,(IF(ABS(DM22)>ABS(SUM(DM19:DM21)),SUM(DM19:DM21),0-DM22)))),(IF(DM22<0,(IF(ABS(DM22)>ABS(SUM(DM19:DM21)),SUM(DM19:DM22),0)),0))) -> 0 | DR22: Promjena vrijednosti zaliha Δ | DS22: 0 | DU22: 0.371375 | DV22: 0 | DW22: 0 | DX22: Planirano | DY22: =EF4 -> 0.1510317427 | DZ22: =EH4 -> 0.1097449745 | EA22: =EJ4 -> 0.1688613923
AT23: Osječko - baranjska županija | BA23: Novac u banci i blagajni | BB23: =Bilanca!C66 -> 729.975 | BC23: =Bilanca!D66 -> 770.928 | BD23: =Bilanca!E66 -> 623.797 | BE23: =Bilanca!F66 -> 300.793 | BF23: =Bilanca!G66 -> 352.001 | BL23: X1 | BM23: ='Altman Integral (B)'!C35/'Altman Integral (B)'!C36 -> 0.07728300862 | BN23: ='Altman Integral (B)'!D35/'Altman Integral (B)'!D36 -> 0.08051390232 | BO23: ='Altman Integral (B)'!E35/'Altman Integral (B)'!E36 -> 0.0479865006 | BP23: ='Altman Integral (B)'!F35/'Altman Integral (B)'!F36 -> 0.05714388778 | BQ23: ='Altman Integral (B)'!G35/'Altman Integral (B)'!G36 -> 0.03220652391 | BR23: Koeficijent: | BS23: X1 | BT23: 6.56 | CH23: Ostali poslovni rashodi Δ | CI23: -0.243561 | CK23: -0.408581 | CL23: 0 | CM23: =CM5/1000 -> -0.243561 | CN23: Ostali poslovni rashodi Δ | CO23: 0 | CP23: -0.408581 | CQ23: 0 | CR23: 0 | CS23: 0 | CT23: -0.243561 | CU23: 0 | CX23: Materijalni troškovi Δ | CY23: -1.064785 | DA23: 0 | DB23: 1.021278 | DC23: =DC5/1000 -> -0.043507 | DD23: Materijalni troškovi Δ | DE23: 0 | DF23: 0 | DG23: 0 | DH23: 1.021278 | DI23: 0 | DJ23: -0.043507 | DK23: 0 | DL23: Materijalni troškovi Δ | DM23: =RDG!D13-RDG!F13 -> -309.153 | DO23: =IF(SUM(DM19:DM22)>=0,(IF(DM23>=0,SUM(DM19:DM22),(IF(ABS(SUM(DM19:DM22))>ABS(DM23),SUM(DM19:DM23),0)))),(IF(DM23<0,SUM(DM19:DM22),(IF(ABS(SUM(DM19:DM22))>ABS(DM23),SUM(DM19:DM23),0))))) -> 62.222 | DP23: =IF(SUM(DM19:DM22)>=0,(IF(DM23<0,(IF(ABS(DM23)>ABS(SUM(DM19:DM22)),SUM(DM19:DM22),ABS(DM23))),DM23)),(IF(DM23>0,(IF(ABS(DM23)>ABS(SUM(DM19:DM22)),SUM(DM19:DM23),0)),0))) -> 309.153 | DQ23: =IF(SUM(DM19:DM22)<0,(IF(DM23<0,DM23,(IF(ABS(DM23)>ABS(SUM(DM19:DM22)),SUM(DM19:DM22),0-DM23)))),(IF(DM23<0,(IF(ABS(DM23)>ABS(SUM(DM19:DM22)),SUM(DM19:DM23),0)),0))) -> 0 | DR23: Materijalni troškovi Δ | DS23: -0.309153 | DU23: 0.062222 | DV23: 0.309153 | DW23: 0 | DX23: Ostvareno | DY23: =EG4 -> 0.1817915616 | DZ23: =EI4 -> 0.2161624808
AT24: Primorsko-goranska županija | BA24: Ostalo | BB24: =Bilanca!C4+Bilanca!C67 -> 0 | BC24: =Bilanca!D4+Bilanca!D67 -> 0 | BD24: =Bilanca!E4+Bilanca!E67 -> 0 | BE24: =Bilanca!F4+Bilanca!F67 -> 0 | BF24: =Bilanca!G4+Bilanca!G67 -> 0 | BL24: X2 | BM24: ='Altman Integral (B)'!C37/'Altman Integral (B)'!C36 -> -0.1173975976 | BN24: ='Altman Integral (B)'!D37/'Altman Integral (B)'!D36 -> -0.1179320022 | BO24: ='Altman Integral (B)'!E37/'Altman Integral (B)'!E36 -> -0.1023210086 | BP24: ='Altman Integral (B)'!F37/'Altman Integral (B)'!F36 -> -0.150011261 | BQ24: ='Altman Integral (B)'!G37/'Altman Integral (B)'!G36 -> -0.1261055942 | BS24: X2 | BT24: 3.26 | CH24: Financijski i investicijski prihodi Δ | CI24: -8.3e-05 | CK24: -0.652142 | CL24: 0 | CM24: =CM6/1000 -> -8.3e-05 | CN24: Financijski i investicijski prihodi Δ | CO24: 0 | CP24: -0.652142 | CQ24: 0 | CR24: 0 | CS24: 0 | CT24: -8.3e-05 | CU24: 0 | CX24: Troškovi osoblja Δ | CY24: 0.03575 | DA24: -0.007757 | DB24: 0 | DC24: =DC6/1000 -> -0.03575 | DD24: Troškovi osoblja Δ | DE24: 0 | DF24: -0.007757 | DG24: 0 | DH24: 0 | DI24: -0.03575 | DJ24: 0 | DK24: 0 | DL24: Troškovi osoblja Δ | DM24: =RDG!D17-RDG!F17 -> -96.854 | DO24: =IF(SUM(DM19:DM23)>=0,(IF(DM24>=0,SUM(DM19:DM23),(IF(ABS(SUM(DM19:DM23))>ABS(DM24),SUM(DM19:DM24),0)))),(IF(DM24<0,SUM(DM19:DM23),(IF(ABS(SUM(DM19:DM23))>ABS(DM24),SUM(DM19:DM24),0))))) -> 0 | DP24: =IF(SUM(DM19:DM23)>=0,(IF(DM24<0,(IF(ABS(DM24)>ABS(SUM(DM19:DM23)),SUM(DM19:DM23),ABS(DM24))),DM24)),(IF(DM24>0,(IF(ABS(DM24)>ABS(SUM(DM19:DM23)),SUM(DM19:DM24),0)),0))) -> 62.222 | DQ24: =IF(SUM(DM19:DM23)<0,(IF(DM24<0,DM24,(IF(ABS(DM24)>ABS(SUM(DM19:DM23)),SUM(DM19:DM23),0-DM24)))),(IF(DM24<0,(IF(ABS(DM24)>ABS(SUM(DM19:DM23)),SUM(DM19:DM24),0)),0))) -> -34.632 | DR24: Troškovi osoblja Δ | DS24: -0.096854 | DU24: 0 | DV24: 0.062222 | DW24: -0.034632
AT25: Splitsko-dalmatinska županija | BA25: Dug. materijalna / dug. izvori financiranja | BB25: =Bilanca!C13/(Bilanca!C75+Bilanca!C103) -> 2.532321723 | BC25: =Bilanca!D13/(Bilanca!D75+Bilanca!D103) -> 2.814255967 | BD25: =Bilanca!E13/(Bilanca!E75+Bilanca!E103) -> 4.136329892 | BE25: =Bilanca!F13/(Bilanca!F75+Bilanca!F103) -> 3.241732905 | BF25: =Bilanca!G13/(Bilanca!G75+Bilanca!G103) -> 5.268799868 | BL25: X3 | BM25: ='Altman Integral (B)'!C38/'Altman Integral (B)'!C36 -> 0.006153888775 | BN25: ='Altman Integral (B)'!D38/'Altman Integral (B)'!D36 -> -0.02122801853 | BO25: ='Altman Integral (B)'!E38/'Altman Integral (B)'!E36 -> 0.003074159996 | BP25: ='Altman Integral (B)'!F38/'Altman Integral (B)'!F36 -> -0.04493877209 | BQ25: ='Altman Integral (B)'!G38/'Altman Integral (B)'!G36 -> 0.002982384967 | BS25: X3 | BT25: 6.72 | CH25: Financijski i investicijski rashodi Δ | CI25: 0.024674 | CK25: -0.627551 | CL25: 0 | CM25: =CM7/1000 -> -0.024674 | CN25: Financijski i investicijski rashodi Δ | CO25: 0 | CP25: -0.627551 | CQ25: 0 | CR25: 0 | CS25: -0.024674 | CT25: 0 | CU25: 0 | CX25: Vrijednosna usklađenja Δ | CY25: 0 | DA25: -0.007757 | DB25: 0 | DC25: =DC7/1000 -> 0 | DD25: Vrijednosna usklađenja Δ | DE25: 0 | DF25: -0.007757 | DG25: 0 | DH25: 0 | DI25: 0 | DJ25: 0 | DK25: 0 | DL25: Vrijednosna usklađenja Δ | DM25: =RDG!D23-RDG!F23 -> 0 | DO25: =IF(SUM(DM19:DM24)>=0,(IF(DM25>=0,SUM(DM19:DM24),(IF(ABS(SUM(DM19:DM24))>ABS(DM25),SUM(DM19:DM25),0)))),(IF(DM25<0,SUM(DM19:DM24),(IF(ABS(SUM(DM19:DM24))>ABS(DM25),SUM(DM19:DM25),0))))) -> -34.632 | DP25: =IF(SUM(DM19:DM24)>=0,(IF(DM25<0,(IF(ABS(DM25)>ABS(SUM(DM19:DM24)),SUM(DM19:DM24),ABS(DM25))),DM25)),(IF(DM25>0,(IF(ABS(DM25)>ABS(SUM(DM19:DM24)),SUM(DM19:DM25),0)),0))) -> 0 | DQ25: =IF(SUM(DM19:DM24)<0,(IF(DM25<0,DM25,(IF(ABS(DM25)>ABS(SUM(DM19:DM24)),SUM(DM19:DM24),0-DM25)))),(IF(DM25<0,(IF(ABS(DM25)>ABS(SUM(DM19:DM24)),SUM(DM19:DM25),0)),0))) -> 0 | DR25: Vrijednosna usklađenja Δ | DS25: 0 | DU25: -0.034632 | DV25: 0 | DW25: 0
AT26: Zadarska županija | BA26: Ukupno: | BB26: =SUM(BB18:BB24) -> 13326.6952 | BC26: =SUM(BC18:BC24) -> 13481.1923 | BD26: 19429.3726 | BE26: 12973.986 | BF26: 20409.84 | BL26: X4 | BM26: ='Altman Integral (B)'!C41/'Altman Integral (B)'!C39 ->  | BN26: ='Altman Integral (B)'!D41/'Altman Integral (B)'!D39 ->  | BO26: ='Altman Integral (B)'!E41/'Altman Integral (B)'!E39 ->  | BP26: ='Altman Integral (B)'!F41/'Altman Integral (B)'!F39 ->  | BQ26: ='Altman Integral (B)'!G41/'Altman Integral (B)'!G39 ->  | BS26: X4 | BT26: 1.05 | CH26: Procijenjena bruto dobit tekuće godine | CI26: -0.627551 | CJ26: =CJ8/1000 -> -0.627551 | CN26: Procijenjena bruto dobit tekuće godine | CO26: -0.627551 | CP26: 0 | CQ26: 0 | CR26: 0 | CS26: 0 | CT26: 0 | CU26: 0 | CX26: Rezerviranja Δ | CY26: -0.00235 | DA26: -0.007757 | DB26: 0 | DC26: =DC8/1000 -> -0.00235 | DD26: Rezerviranja Δ | DE26: 0 | DF26: -0.007757 | DG26: 0 | DH26: 0 | DI26: 0 | DJ26: -0.00235 | DK26: 0 | DL26: Rezerviranja Δ | DM26: =RDG!D26-RDG!F26 -> 0 | DO26: =IF(SUM(DM19:DM25)>=0,(IF(DM26>=0,SUM(DM19:DM25),(IF(ABS(SUM(DM19:DM25))>ABS(DM26),SUM(DM19:DM26),0)))),(IF(DM26<0,SUM(DM19:DM25),(IF(ABS(SUM(DM19:DM25))>ABS(DM26),SUM(DM19:DM26),0))))) -> -34.632 | DP26: =IF(SUM(DM19:DM25)>=0,(IF(DM26<0,(IF(ABS(DM26)>ABS(SUM(DM19:DM25)),SUM(DM19:DM25),ABS(DM26))),DM26)),(IF(DM26>0,(IF(ABS(DM26)>ABS(SUM(DM19:DM25)),SUM(DM19:DM26),0)),0))) -> 0 | DQ26: =IF(SUM(DM19:DM25)<0,(IF(DM26<0,DM26,(IF(ABS(DM26)>ABS(SUM(DM19:DM25)),SUM(DM19:DM25),0-DM26)))),(IF(DM26<0,(IF(ABS(DM26)>ABS(SUM(DM19:DM25)),SUM(DM19:DM26),0)),0))) -> 0 | DR26: Rezerviranja Δ | DS26: 0 | DU26: -0.034632 | DV26: 0 | DW26: 0
AT27: općina Zemunik Donji | BB27: =Podloga!B36 -> 2022. planirano | BC27: =Podloga!C36 -> 2022. ostvareno | BD27: =Podloga!D36 -> 2023. planirano | BE27: =Podloga!E36 -> 2023. procijenjeno | BF27: =Podloga!F36 -> 2024. planirano | BL27: Gornja granica | BM27: 2.6 | BN27: 2.6 | BO27: 2.6 | BP27: 2.6 | BQ27: 2.6 | CX27: Ostali poslovni rashodi Δ | CY27: =CY9/1000 -> -0.205803 | DA27: -0.010107 | DB27: 0 | DC27: =DC9/1000 -> -0.205803 | DD27: Ostali poslovni rashodi Δ | DE27: 0 | DF27: -0.010107 | DG27: 0 | DH27: 0 | DI27: 0 | DJ27: -0.205803 | DK27: 0 | DL27: Ostali poslovni rashodi Δ | DM27: =(RDG!D22+RDG!D33+RDG!D55+RDG!D56)-(RDG!F22+RDG!F33+RDG!F55+RDG!F56) -> -176.031 | DO27: =IF(SUM(DM19:DM26)>=0,(IF(DM27>=0,SUM(DM19:DM26),(IF(ABS(SUM(DM19:DM26))>ABS(DM27),SUM(DM19:DM27),0)))),(IF(DM27<0,SUM(DM19:DM26),(IF(ABS(SUM(DM19:DM26))>ABS(DM27),SUM(DM19:DM27),0))))) -> -34.632 | DP27: =IF(SUM(DM19:DM26)>=0,(IF(DM27<0,(IF(ABS(DM27)>ABS(SUM(DM19:DM26)),SUM(DM19:DM26),ABS(DM27))),DM27)),(IF(DM27>0,(IF(ABS(DM27)>ABS(SUM(DM19:DM26)),SUM(DM19:DM27),0)),0))) -> 0 | DQ27: =IF(SUM(DM19:DM26)<0,(IF(DM27<0,DM27,(IF(ABS(DM27)>ABS(SUM(DM19:DM26)),SUM(DM19:DM26),0-DM27)))),(IF(DM27<0,(IF(ABS(DM27)>ABS(SUM(DM19:DM26)),SUM(DM19:DM27),0)),0))) -> -176.031 | DR27: Ostali poslovni rashodi Δ | DS27: -0.176031 | DU27: -0.034632 | DV27: 0 | DW27: -0.176031
BA28: Neto radni kapital | BB28: =Bilanca!C40-Bilanca!C115 -> -7430.0899 | BC28: =Bilanca!D40-Bilanca!D115 -> -8078.6886 | BD28: =Bilanca!E40-Bilanca!E115 -> -13997.5814 | BE28: =Bilanca!F40-Bilanca!F115 -> -8522.139 | BF28: =Bilanca!G40-Bilanca!G115 -> -16043.469 | BL28: Donja granica | BM28: 1.1 | BN28: 1.1 | BO28: 1.1 | BP28: 1.1 | BQ28: 1.1 | CH28: Planirana bruto dobit tekuće godine | CI28: =CI10/1000 -> 0.005246 | CJ28: =CJ10/1000 -> 0.005246 | CN28: Planirana bruto dobit tekuće godine | CO28: 0.005246 | CP28: 0 | CQ28: 0 | CR28: 0 | CS28: 0 | CT28: 0 | CU28: 0 | CX28: Financijski rashodi (bez kamata) Δ | CY28: 0.004237 | DA28: -0.211673 | DB28: 0 | DC28: =DC10/1000 -> -0.004237 | DD28: Financijski rashodi (bez kamata) Δ | DE28: 0 | DF28: -0.211673 | DG28: 0 | DH28: 0 | DI28: -0.004237 | DJ28: 0 | DK28: 0 | DL28: Financijski rashodi (bez kamata) Δ | DM28: =(RDG!D45-RDG!D46-RDG!D48)-(RDG!F45-RDG!F46-RDG!F48) -> -1.01 | DO28: =IF(SUM(DM19:DM27)>=0,(IF(DM28>=0,SUM(DM19:DM27),(IF(ABS(SUM(DM19:DM27))>ABS(DM28),SUM(DM19:DM28),0)))),(IF(DM28<0,SUM(DM19:DM27),(IF(ABS(SUM(DM19:DM27))>ABS(DM28),SUM(DM19:DM28),0))))) -> -210.663 | DP28: =IF(SUM(DM19:DM27)>=0,(IF(DM28<0,(IF(ABS(DM28)>ABS(SUM(DM19:DM27)),SUM(DM19:DM27),ABS(DM28))),DM28)),(IF(DM28>0,(IF(ABS(DM28)>ABS(SUM(DM19:DM27)),SUM(DM19:DM28),0)),0))) -> 0 | DQ28: =IF(SUM(DM19:DM27)<0,(IF(DM28<0,DM28,(IF(ABS(DM28)>ABS(SUM(DM19:DM27)),SUM(DM19:DM27),0-DM28)))),(IF(DM28<0,(IF(ABS(DM28)>ABS(SUM(DM19:DM27)),SUM(DM19:DM28),0)),0))) -> -1.01 | DR28: Financijski rashodi (bez kamata) Δ | DS28: -0.00101 | DU28: -0.210663 | DV28: 0 | DW28: -0.00101
BA29: Koeficijent tekuće likvidnosti | BB29: =Bilanca!C40/Bilanca!C115 -> 0.1217405473 | BC29: =Bilanca!D40/Bilanca!D115 -> 0.1184428344 | BD29: =Bilanca!E40/Bilanca!E115 -> 0.06244822732 | BE29: =Bilanca!F40/Bilanca!F115 -> 0.08003261826 | BF29: =Bilanca!G40/Bilanca!G115 -> 0.03935919473 | CH29: Poslovni prihodi Δ | CI29: =CI11/1000 -> 0.672145 | CK29: =CK11/1000 -> 0.005246 | CL29: 0.672145 | CM29: =CM11/1000 -> 0 | CN29: Poslovni prihodi Δ | CO29: 0 | CP29: 0.005246 | CQ29: 0.672145 | CR29: 0 | CS29: 0 | CT29: =IF(CI29<0,CM29,0) -> 0 | CU29: 0 | CX29: Procijenjena EBITDA tekuće godine | CY29: =CY11/1000 -> -0.211673 | CZ29: =CZ11/1000 -> -0.211673 | DD29: Procijenjena EBITDA tekuće godine | DE29: -0.211673 | DF29: 0 | DG29: 0 | DH29: 0 | DI29: 0 | DJ29: 0 | DK29: 0 | DL29: Procijenjena EBITDA tekuće godine | DM29: =BE3 -> -211.673 | DN29: =DM29 -> -211.673 | DR29: Procijenjena EBITDA tekuće godine | DS29: -0.211673 | DT29: =DN29/1000 -> -0.211673
BA30: Koeficijent ubrzane likvidnosti | BB30: =(Bilanca!C40-Bilanca!C41)/Bilanca!C115 -> 0.1186031896 | BC30: =(Bilanca!D40-Bilanca!D41)/Bilanca!D115 -> 0.1148145069 | BD30: =(Bilanca!E40-Bilanca!E41)/Bilanca!E115 -> 0.06006083485 | BE30: =(Bilanca!F40-Bilanca!F41)/Bilanca!F115 -> 0.07601276534 | BF30: =(Bilanca!G40-Bilanca!G41)/Bilanca!G115 -> 0.03717373043 | CH30: Materijalni troškovi Δ | CI30: -1.064785 | CK30: 0 | CL30: 0.677391 | CM30: =CM12/1000 -> -0.387394 | CN30: Materijalni troškovi Δ | CO30: 0 | CP30: 0 | CQ30: 0 | CR30: 0.677391 | CS30: 0 | CT30: -0.387394 | CU30: 0 | DO30: =DR19 -> Ostvarena EBITDA prethodne godine | DP30: =DS19 -> 0.017653 | DQ30: =DT19 -> 0.017653 | DR30: =DU19 -> 0 | DS30: =IF(DS19>=0,DV19,0) -> 0 | DT30: =IF(DS19<0,DV19,0) -> 0 | DU30: =IF(DS19>=0,DW19,0) -> 0 | DV30: =IF(DS19<0,DW19,0) -> 0 | DW30: 0
BB31: =Podloga!B36 -> 2022. planirano | BC31: =Podloga!C36 -> 2022. ostvareno | BD31: =Podloga!D36 -> 2023. planirano | BE31: =Podloga!E36 -> 2023. procijenjeno | BF31: =Podloga!F36 -> 2024. planirano | CH31: Troškovi osoblja Δ | CI31: 0.03575 | CK31: -0.351644 | CL31: 0 | CM31: =CM13/1000 -> -0.03575 | CN31: Troškovi osoblja Δ | CO31: 0 | CP31: -0.351644 | CQ31: 0 | CR31: 0 | CS31: -0.03575 | CT31: 0 | CU31: 0 | DO31: =DR20 -> Prihodi od prodaje Δ | DP31: =DS20 -> 0.482021 | DR31: =DU20 -> 0.017653 | DS31: 0.482021 | DT31: 0 | DU31: 0 | DV31: 0 | DW31: 0
BA32: Kapital/imovina | BB32: =Bilanca!C75/Bilanca!C68 -> 0.1444875846 | BC32: =Bilanca!D75/Bilanca!D68 -> 0.1136512977 | BD32: =Bilanca!E75/Bilanca!E68 -> 0.07697695807 | BE32: =Bilanca!F75/Bilanca!F68 -> 0.06972452414 | BF32: =Bilanca!G75/Bilanca!G68 -> 0.0445679633 | CH32: Ostali poslovni rashodi Δ | CI32: -0.290179 | CK32: -0.351644 | CL32: 0 | CM32: =CM14/1000 -> -0.290179 | CN32: Ostali poslovni rashodi Δ | CO32: 0 | CP32: -0.351644 | CQ32: 0 | CR32: 0 | CS32: 0 | CT32: -0.290179 | CU32: 0 | DO32: Ostali prihodi Δ | DP32: -0.128299 | DR32: 0.371375 | DS32: 0 | DT32: 0.128299 | DU32: 0 | DV32: 0 | DW32: 0
BA33: Kapacitet zaduženja na 5 godina | BB33: =BB3*5 -> 1870.005 | BC33: =BC3*5 -> 88.265 | BD33: 1745.325 | BE33: -1058.365 | BF33: 2429.35 | CH33: Financijski i investicijski prihodi Δ | CI33: 6.8e-05 | CK33: -0.641755 | CL33: 0 | CM33: =CM15/1000 -> -6.8e-05 | CN33: Financijski i investicijski prihodi Δ | CO33: 0 | CP33: -0.641755 | CQ33: 0 | CR33: 0 | CS33: -6.8e-05 | CT33: 0 | CU33: 0 | DO33: Promjena vrijednosti zaliha Δ | DP33: 0 | DR33: 0.371375 | DS33: 0 | DT33: 0 | DU33: 0 | DV33: 0 | DW33: 0
BA34: Odnos duga i EBITDA | BB34: =BB44/BB3 -> 30.42750955 | BC34: 676.5192319 | BD34: 51.26357555 | BE34: -56.98856255 | BF34: 40.13463684 | CH34: Financijski i investicijski rashodi Δ | CI34: 0.014204 | CK34: -0.627551 | CL34: 0 | CM34: =CM16/1000 -> -0.014204 | CN34: Financijski i investicijski rashodi Δ | CO34: 0 | CP34: -0.627551 | CQ34: 0 | CR34: 0 | CS34: -0.014204 | CT34: 0 | CU34: 0 | DO34: Materijalni troškovi Δ | DP34: -0.309153 | DR34: 0.062222 | DS34: 0 | DT34: 0.309153 | DU34: 0 | DV34: 0 | DW34: 0
BB35: =Podloga!B36 -> 2022. planirano | BC35: =Podloga!C36 -> 2022. ostvareno | BD35: =Podloga!D36 -> 2023. planirano | BE35: =Podloga!E36 -> 2023. procijenjeno | BF35: =Podloga!F36 -> 2024. planirano | CH35: Procijenjena bruto dobit tekuće godine | CI35: -0.627551 | CJ35: =CJ17/1000 -> -0.627551 | CN35: Procijenjena bruto dobit tekuće godine | CO35: -0.627551 | CP35: 0 | CQ35: 0 | CR35: 0 | CS35: 0 | CT35: 0 | CU35: 0 | DO35: Troškovi osoblja Δ | DP35: -0.096854 | DR35: 0 | DS35: 0 | DT35: 0.062222 | DU35: 0 | DV35: -0.034632 | DW35: 0
BA36: Dani vezivanja zaliha | BB36: =365/BB37 -> 16.5701994 | BC36: 18.49899628 | BD36: 18.77029109 | BE36: 11.94282817 | BF36: 10.43323487 | DO36: Vrijednosna usklađenja Δ | DP36: 0 | DR36: -0.034632 | DS36: 0 | DT36: 0 | DU36: 0 | DV36: 0 | DW36: 0
BA37: Koeficijent obrtaja zaliha | BB37: =(RDG!C6+RDG!C7)/Bilanca!C41 -> 22.02749594 | BC37: =(RDG!D6+RDG!D7)/Bilanca!D41 -> 19.73080023 | BD37: =(RDG!E6+RDG!E7)/Bilanca!E41 -> 19.44562278 | BE37: =(RDG!F6+RDG!F7)/Bilanca!F41 -> 30.5622751 | BF37: =(RDG!G6+RDG!G7)/Bilanca!G41 -> 34.98435574 | DO37: Rezerviranja Δ | DP37: 0 | DR37: -0.034632 | DS37: 0 | DT37: 0 | DU37: 0 | DV37: 0 | DW37: 0
BA38: Dugoročne obveze | BB38: =Bilanca!C103 -> 2919.902 | BC38: =Bilanca!D103 -> 2778.482 | BD38: =Bilanca!E103 -> 2964.391 | BE38: =Bilanca!F103 -> 2799.417 | BF38: =Bilanca!G103 -> 2799.417 | DO38: Ostali poslovni rashodi Δ | DP38: -0.176031 | DR38: -0.034632 | DS38: 0 | DT38: 0 | DU38: 0 | DV38: -0.176031 | DW38: 0
BB39: =Podloga!B36 -> 2022. planirano | BC39: =Podloga!C36 -> 2022. ostvareno | BD39: =Podloga!D36 -> 2023. planirano | BE39: =Podloga!E36 -> 2023. procijenjeno | BF39: =Podloga!F36 -> 2024. planirano | DO39: Financijski rashodi (bez kamata) Δ | DP39: -0.00101 | DR39: -0.210663 | DS39: 0 | DT39: 0 | DU39: 0 | DV39: -0.00101 | DW39: 0
BA40: Trajanje naplate potraživanja | BB40: =365/BB41 ->  | DO40: Procijenjena EBITDA tekuće godine | DP40: -0.211673 | DQ40: =DT29 -> -0.211673 | DR40: 0 | DS40: 0 | DT40: 0 | DU40: 0 | DV40: 0 | DW40: 0
BA41: Koeficijent obrtaja potraživanja | BB41: =(RDG!C6+RDG!C7)/(Bilanca!C51) ->  | BC41: =(RDG!D6+RDG!D7)/(Bilanca!D51) ->  | BD41: =(RDG!E6+RDG!E7)/(Bilanca!E51) ->  | BE41: =(RDG!F6+RDG!F7)/(Bilanca!F51) ->  | BF41: =(RDG!G6+RDG!G7)/(Bilanca!G51) -> 
BB43: =Podloga!B36 -> 2022. planirano | BC43: =Podloga!C36 -> 2022. ostvareno | BD43: =Podloga!D36 -> 2023. planirano | BE43: =Podloga!E36 -> 2023. procijenjeno | BF43: =Podloga!F36 -> 2024. planirano
BA44: Dug | BB44: =Bilanca!C103+Bilanca!C115+Bilanca!C130 -> 11379.919 | BC44: =Bilanca!D103+Bilanca!D115+Bilanca!D130 -> 11942.594 | BD44: =Bilanca!E103+Bilanca!E115+Bilanca!E130 -> 17894.32 | BE44: =Bilanca!F103+Bilanca!F115+Bilanca!F130 -> 12062.94 | BF44: =Bilanca!G103+Bilanca!G115+Bilanca!G130 -> 19500.216
BB46: =Podloga!C36 -> 2022. ostvareno | BC46: =Podloga!E36 -> 2023. procijenjeno | BD46: =Podloga!B36 -> 2022. planirano | BE46: =Podloga!D36 -> 2023. planirano | BF46: =Podloga!F36 -> 2024. planirano
BA47: Dug/EBITDA | BB47: =BC44/BC3 -> 676.5192319 | BC47: =BE44/BE3 -> -56.98856255 | BD47: =BB44/BB3 -> 30.42750955 | BE47: =BD44/BD3 -> 51.26357555 | BF47: =BF44/BF3 -> 40.13463684
BA48: Dug/Pasiva | BB48: =BC44/BC91 -> 0.8858709718 | BC48: =BE44/BE91 -> 0.9297790925 | BD48: =BB44/BB91 -> 0.8539186855 | BE48: =BD44/BD91 -> 0.9209931313 | BF48: =BF44/BF91 -> 0.9554320389
BA49: Tekuća likvidnost | BB49: =IFERROR(Bilanca!D40/Bilanca!D115,) -> 0.1184428344 | BC49: =IFERROR(Bilanca!F40/Bilanca!F115,) -> 0.08003261826 | BD49: =IFERROR(Bilanca!C40/Bilanca!C115,) -> 0.1217405473 | BE49: =IFERROR(Bilanca!E40/Bilanca!E115,) -> 0.06244822732 | BF49: =IFERROR(Bilanca!G40/Bilanca!G115,) -> 0.03935919473
BB52: =Podloga!B36 -> 2022. planirano | BC52: =Podloga!C36 -> 2022. ostvareno | BD52: =Podloga!D36 -> 2023. planirano | BE52: =Podloga!E36 -> 2023. procijenjeno | BF52: =Podloga!F36 -> 2024. planirano
BA53: Poslovne akt. | BB53: =IF(Podloga!$B$19="Direktna",'NT dir.'!C18,'NT indir.'!C26) -> 255.324 | BC53: =IF(Podloga!$B$19="Direktna",'NT dir.'!D18,'NT indir.'!D26) -> 498.259 | BD53: =IF(Podloga!$B$19="Direktna",'NT dir.'!E18,'NT indir.'!E26) -> 6251.951 | BE53: =IF(Podloga!$B$19="Direktna",'NT dir.'!F18,'NT indir.'!F26) -> -189.859 | BF53: =IF(Podloga!$B$19="Direktna",'NT dir.'!G18,'NT indir.'!G26) -> 50.688
BA54: Investicijske akt. | BB54: =IF(Podloga!$B$19="Direktna",'NT dir.'!C33,'NT indir.'!C41) -> -145.995 | BC54: =IF(Podloga!$B$19="Direktna",'NT dir.'!D33,'NT indir.'!D41) -> -541.554 | BD54: =IF(Podloga!$B$19="Direktna",'NT dir.'!E33,'NT indir.'!E41) -> -6226.909 | BE54: =IF(Podloga!$B$19="Direktna",'NT dir.'!F33,'NT indir.'!F41) -> -189.729 | BF54: =IF(Podloga!$B$19="Direktna",'NT dir.'!G33,'NT indir.'!G41) -> 0.52
BA55: Financijske akt. | BB55: =IF(Podloga!$B$19="Direktna",'NT dir.'!C46+'NT dir.'!C47,'NT indir.'!C54+'NT indir.'!C55) -> -97.184 | BC55: =IF(Podloga!$B$19="Direktna",'NT dir.'!D46+'NT dir.'!D47,'NT indir.'!D54+'NT indir.'!D55) -> -90.547 | BD55: =IF(Podloga!$B$19="Direktna",'NT dir.'!E46+'NT dir.'!E47,'NT indir.'!E54+'NT indir.'!E55) -> 0 | BE55: =IF(Podloga!$B$19="Direktna",'NT dir.'!F46+'NT dir.'!F47,'NT indir.'!F54+'NT indir.'!F55) -> -90.547 | BF55: =IF(Podloga!$B$19="Direktna",'NT dir.'!G46+'NT dir.'!G47,'NT indir.'!G54+'NT indir.'!G55) -> 0
BA56: Ukupno novč. tokovi | BB56: =IF(Podloga!$B$19="Direktna",'NT dir.'!C48,'NT indir.'!C56) -> 12.145 | BC56: =IF(Podloga!$B$19="Direktna",'NT dir.'!D48,'NT indir.'!D56) -> -133.842 | BD56: =IF(Podloga!$B$19="Direktna",'NT dir.'!E48,'NT indir.'!E56) -> 25.042 | BE56: =IF(Podloga!$B$19="Direktna",'NT dir.'!F48,'NT indir.'!F56) -> -470.135 | BF56: =IF(Podloga!$B$19="Direktna",'NT dir.'!G48,'NT indir.'!G56) -> 51.208
BB59: =Podloga!B36 -> 2022. planirano | BC59: =Podloga!C36 -> 2022. ostvareno | BD59: =Podloga!D36 -> 2023. planirano | BE59: =Podloga!E36 -> 2023. procijenjeno | BF59: =Podloga!F36 -> 2024. planirano
BA60: Ukupni prihodi | BB60: =RDG!C57 -> 2012.754 | BC60: =RDG!D57 -> 2450.767 | BD60: =RDG!E57 -> 2132.276 | BE60: =RDG!F57 -> 2804.489 | BF60: =RDG!G57 -> 3446.434
BA61: Prihodi od prodaje | BB61: =RDG!C6+RDG!C7 -> 584.656 | BC61: =RDG!D6+RDG!D7 -> 656.057 | BD61: =RDG!E6+RDG!E7 -> 693.112 | BE61: =RDG!F6+RDG!F7 -> 1138.078 | BF61: =RDG!G6+RDG!G7 -> 1276.894
BA62: Ostali prihodi | BB62: =RDG!C57-RDG!C6-RDG!C7 -> 1428.098 | BC62: =RDG!D57-RDG!D6-RDG!D7 -> 1794.71 | BD62: =RDG!E57-RDG!E6-RDG!E7 -> 1439.164 | BE62: =RDG!F57-RDG!F6-RDG!F7 -> 1666.411 | BF62: =RDG!G57-RDG!G6-RDG!G7 -> 2169.54
BA63: Ukupni rashodi | BB63: =(0-RDG!C58) -> -2001.086 | BC63: =(0-RDG!D58) -> -2807.146 | BD63: =(0-RDG!E58) -> -2127.03 | BE63: =(0-RDG!F58) -> -3432.04 | BF63: =(0-RDG!G58) -> -3441.414
BA64: Bruto dobit | BB64: =RDG!C59 -> 11.668 | BC64: =RDG!D59 -> -356.379 | BD64: =RDG!E59 -> 5.246 | BE64: =RDG!F59 -> -627.551 | BF64: =RDG!G59 -> 5.02
BA65: Marža bruto dobiti | BB65: =BB64/BB60 -> 0.005797032325 | BC65: =BC64/BC60 -> -0.1454152924 | BD65: 0.002460281877 | BE65: -0.2237666113 | BF65: 0.001456578017
BB68: =Podloga!B36 -> 2022. planirano | BC68: =Podloga!C36 -> 2022. ostvareno | BD68: =Podloga!D36 -> 2023. planirano | BE68: =Podloga!E36 -> 2023. procijenjeno | BF68: =Podloga!F36 -> 2024. planirano
BA69: Promjene vrijednosti zaliha | BB69: =RDG!C12 -> 0 | BC69: =RDG!D12 -> 0 | BD69: =RDG!E12 -> 0 | BE69: =RDG!F12 -> 0 | BF69: =RDG!G12 -> 0
BA70: Materijalni troškovi | BB70: =RDG!C13 -> 530.519 | BC70: =RDG!D13 -> 1492.082 | BD70: =RDG!E13 -> 736.45 | BE70: =RDG!F13 -> 1801.235 | BF70: =RDG!G13 -> 1423.35
BA71: Troškovi osoblja | BB71: =RDG!C17 -> 769.792 | BC71: =RDG!D17 -> 744.925 | BD71: =RDG!E17 -> 877.529 | BE71: =RDG!F17 -> 841.779 | BF71: =RDG!G17 -> 981.454
BA72: Amortizacija | BB72: =RDG!C21 -> 291.99 | BC72: =RDG!D21 -> 303.832 | BD72: =RDG!E21 -> 289.336 | BE72: =RDG!F21 -> 371.362 | BF72: =RDG!G21 -> 425
BA73: Vrijednosna usklađenja | BB73: =RDG!C23 -> 0 | BC73: =RDG!D23 -> 0 | BD73: =RDG!E23 -> 0 | BE73: =RDG!F23 -> 0 | BF73: =RDG!G23 -> 0
BA74: Rezerviranja | BB74: =RDG!C26 -> 0 | BC74: =RDG!D26 -> 2.35 | BD74: =RDG!E26 -> 0 | BE74: =RDG!F26 -> 2.35 | BF74: =RDG!G26 -> 0
BA75: Ostali poslovni rashodi | BB75: =RDG!C22+RDG!C33 -> 335.788 | BC75: =RDG!D22+RDG!D33 -> 192.169 | BD75: =RDG!E22+RDG!E33 -> 162.397 | BE75: =RDG!F22+RDG!F33 -> 368.2 | BF75: =RDG!G22+RDG!G33 -> 548.81
BA79: Bilanca (u 000 kn)
BB80: =Podloga!B36 -> 2022. planirano | BC80: =Podloga!C36 -> 2022. ostvareno | BD80: =Podloga!D36 -> 2023. planirano | BE80: =Podloga!E36 -> 2023. procijenjeno | BF80: =Podloga!F36 -> 2024. planirano
BA81: Dugotrajna imovina | BB81: =Bilanca!C5+Bilanca!C4 -> 12296.7681 | BC81: =Bilanca!D5+Bilanca!D4 -> 12395.7689 | BD81: =Bilanca!E5+Bilanca!E4 -> 18497.025 | BE81: =Bilanca!F5+Bilanca!F4 -> 12232.602 | BF81: =Bilanca!G5+Bilanca!G4 -> 19752.51
BA82: Kratkotrajna imovina | BB82: =Bilanca!C40 -> 1029.9271 | BC82: =Bilanca!D40 -> 1085.4234 | BD82: =Bilanca!E40 -> 932.3476 | BE82: =Bilanca!F40 -> 741.384 | BF82: =Bilanca!G40 -> 657.33
BA83: Plaćeni troškovi budućeg razdoblja i obračunati prihodi | BB83: =Bilanca!C67 -> 0 | BC83: =Bilanca!D67 -> 0 | BD83: =Bilanca!E67 -> 0 | BE83: =Bilanca!F67 -> 0 | BF83: =Bilanca!G67 -> 0
BA84: Ukupno aktiva | BB84: =SUM(BB81:BB83) -> 13326.6952 | BC84: 13481.1923 | BD84: 19429.3726 | BE84: 12973.986 | BF84: 20409.84
BA86: Kapital i rezerve | BB86: =Bilanca!C75 -> 1925.542 | BC86: =Bilanca!D75 -> 1532.155 | BD86: =Bilanca!E75 -> 1495.614 | BE86: =Bilanca!F75 -> 904.605 | BF86: =Bilanca!G75 -> 909.625
BA87: Rezerviranja | BB87: =Bilanca!C96 -> 21.24 | BC87: =Bilanca!D96 -> 6.44 | BD87: =Bilanca!E96 -> 39.44 | BE87: =Bilanca!F96 -> 6.44 | BF87: =Bilanca!G96 -> 0
BA88: Dugoročne obveze | BB88: =Bilanca!C103 -> 2919.902 | BC88: =Bilanca!D103 -> 2778.482 | BD88: =Bilanca!E103 -> 2964.391 | BE88: =Bilanca!F103 -> 2799.417 | BF88: =Bilanca!G103 -> 2799.417
BA89: Kratkoročne obveze | BB89: =Bilanca!C115 -> 8460.017 | BC89: =Bilanca!D115 -> 9164.112 | BD89: =Bilanca!E115 -> 14929.929 | BE89: =Bilanca!F115 -> 9263.523 | BF89: =Bilanca!G115 -> 16700.799
BA90: Odgođeno plaćanje troškova i prihod budućeg razdoblja | BB90: =Bilanca!C130 -> 0 | BC90: =Bilanca!D130 -> 0 | BD90: =Bilanca!E130 -> 0 | BE90: =Bilanca!F130 -> 0 | BF90: =Bilanca!G130 -> 0
BA91: Ukupna pasiva | BB91: =SUM(BB86:BB90) -> 13326.701 | BC91: 13481.189 | BD91: 19429.374 | BE91: 12973.985 | BF91: 20409.841
BA92: Ukupne obveze | BB92: =SUM(BB87:BB90) -> 11401.159 | BC92: 11949.034 | BD92: 17933.76 | BE92: 12069.38 | BF92: 19500.216
BB93: =IFERROR(((Bilanca!C96+Bilanca!C103+Bilanca!C115+Bilanca!C130)/Bilanca!C68),) -> 0.8555128506 | BC93: =IFERROR(((Bilanca!D96+Bilanca!D103+Bilanca!D115+Bilanca!D130)/Bilanca!D68),) -> 0.8863484575 | BD93: =IFERROR(((Bilanca!E96+Bilanca!E103+Bilanca!E115+Bilanca!E130)/Bilanca!E68),) -> 0.923023114 | BE93: =IFERROR(((Bilanca!F96+Bilanca!F103+Bilanca!F115+Bilanca!F130)/Bilanca!F68),) -> 0.9302753988 | BF93: =IFERROR(((Bilanca!G96+Bilanca!G103+Bilanca!G115+Bilanca!G130)/Bilanca!G68),) -> 0.9554320857
BB94: =IFERROR((Bilanca!C75/Bilanca!C68),) -> 0.1444875846 | BC94: =IFERROR((Bilanca!D75/Bilanca!D68),) -> 0.1136512977 | BD94: =IFERROR((Bilanca!E75/Bilanca!E68),) -> 0.07697695807 | BE94: =IFERROR((Bilanca!F75/Bilanca!F68),) -> 0.06972452414 | BF94: =IFERROR((Bilanca!G75/Bilanca!G68),) -> 0.0445679633
BB95: =Podloga!D36 -> 2023. planirano | BC95: =Podloga!E36 -> 2023. procijenjeno
BA96: Ukupni prihod | BB96: =RDG!E57 -> 2132.276 | BC96: =RDG!F57 -> 2804.489
BA97: Trošak prodanih proizvoda | BB97: =RDG!E13 -> 736.45 | BC97: =RDG!F13 -> 1801.235
BA98: Bruto marža | BB98: =BB96-BB97 -> 1395.826 | BC98: =BC96-BC97 -> 1003.254
BA99: Promjene vrijednosti zaliha | BB99: =RDG!E12 -> 0 | BC99: =RDG!F12 -> 0
BA100: Trošak osoblja | BB100: =RDG!E17 -> 877.529 | BC100: =RDG!F17 -> 841.779
BA101: Vrijednosna usklađenja | BB101: =RDG!E23 -> 0 | BC101: =RDG!F23 -> 0
BA102: Rezerviranja | BB102: =RDG!E26 -> 0 | BC102: =RDG!F26 -> 2.35
BA103: Financijski rashod (bez kamata) | BB103: =RDG!E45-RDG!E46-RDG!E48 -> 6.835 | BC103: =RDG!F45-RDG!F46-RDG!F48 -> 2.598
BA104: Ostali rashodi | BB104: =RDG!E22+RDG!E33+RDG!E55+RDG!E56 -> 162.397 | BC104: =RDG!F22+RDG!F33+RDG!F55+RDG!F56 -> 368.2
BA105: EBITDA | BB105: =BD3 -> 349.065 | BC105: =BE3 -> -211.673
BA107: Kontrola | BB107: =BB96-BB97-BB99-BB100-BB101-BB102-BB103-BB104 -> 349.065 | BC107: =BC96-BC97-BC99-BC100-BC101-BC102-BC103-BC104 -> -211.673
BN120: Analiza novčanih izdataka
BO121: =Podloga!B36 -> 2022. planirano | BP121: =Podloga!C36 -> 2022. ostvareno | BQ121: =Podloga!D36 -> 2023. planirano | BR121: =Podloga!E36 -> 2023. procijenjeno | BS121: =Podloga!F36 -> 2024. planirano
BN122: Novčani izdaci dobavljačima | BO122: =IFERROR(IF(Podloga!$B$19="Direktna",'NT dir.'!C11,),) -> 0 | BP122: =IFERROR(IF(Podloga!$B$19="Direktna",'NT dir.'!D11,),) -> 0 | BQ122: =IFERROR(IF(Podloga!$B$19="Direktna",'NT dir.'!E11,),) -> 0 | BR122: =IFERROR(IF(Podloga!$B$19="Direktna",'NT dir.'!F11,),) -> 0 | BS122: =IFERROR(IF(Podloga!$B$19="Direktna",'NT dir.'!G11,),) -> 0
BN123: Novčani izdaci za zaposlene | BO123: =IFERROR(IF(Podloga!$B$19="Direktna",'NT dir.'!C12,),) -> 0 | BP123: =IFERROR(IF(Podloga!$B$19="Direktna",'NT dir.'!D12,),) -> 0 | BQ123: =IFERROR(IF(Podloga!$B$19="Direktna",'NT dir.'!E12,),) -> 0 | BR123: =IFERROR(IF(Podloga!$B$19="Direktna",'NT dir.'!F12,),) -> 0 | BS123: =IFERROR(IF(Podloga!$B$19="Direktna",'NT dir.'!G12,),) -> 0
BN124: Novčani izdaci za osiguranje za naknadu štete | BO124: =IFERROR(IF(Podloga!$B$19="Direktna",'NT dir.'!C13,),) -> 0 | BP124: =IFERROR(IF(Podloga!$B$19="Direktna",'NT dir.'!D13,),) -> 0 | BQ124: =IFERROR(IF(Podloga!$B$19="Direktna",'NT dir.'!E13,),) -> 0 | BR124: =IFERROR(IF(Podloga!$B$19="Direktna",'NT dir.'!F13,),) -> 0 | BS124: =IFERROR(IF(Podloga!$B$19="Direktna",'NT dir.'!G13,),) -> 0
BN125: Novčani izdaci za kamate | BO125: =IFERROR(IF(Podloga!$B$19="Direktna",'NT dir.'!C16,),) -> 0 | BP125: =IFERROR(IF(Podloga!$B$19="Direktna",'NT dir.'!D16,),) -> 0 | BQ125: =IFERROR(IF(Podloga!$B$19="Direktna",'NT dir.'!E16,),) -> 0 | BR125: =IFERROR(IF(Podloga!$B$19="Direktna",'NT dir.'!F16,),) -> 0 | BS125: =IFERROR(IF(Podloga!$B$19="Direktna",'NT dir.'!G16,),) -> 0
BN126: Plaćeni porez na dobit | BO126: =IFERROR(IF(Podloga!$B$19="Direktna",'NT dir.'!C17,),) -> 0 | BP126: =IFERROR(IF(Podloga!$B$19="Direktna",'NT dir.'!D17,),) -> 0 | BQ126: =IFERROR(IF(Podloga!$B$19="Direktna",'NT dir.'!E17,),) -> 0 | BR126: =IFERROR(IF(Podloga!$B$19="Direktna",'NT dir.'!F17,),) -> 0 | BS126: =IFERROR(IF(Podloga!$B$19="Direktna",'NT dir.'!G17,),) -> 0
BN127: Ostali novčani izdaci iz poslovanja | BO127: =IFERROR(IF(Podloga!$B$19="Direktna",'NT dir.'!C14,),) -> 0 | BP127: =IFERROR(IF(Podloga!$B$19="Direktna",'NT dir.'!D14,),) -> 0 | BQ127: =IFERROR(IF(Podloga!$B$19="Direktna",'NT dir.'!E14,),) -> 0 | BR127: =IFERROR(IF(Podloga!$B$19="Direktna",'NT dir.'!F14,),) -> 0 | BS127: =IFERROR(IF(Podloga!$B$19="Direktna",'NT dir.'!G14,),) -> 0

Sheet Sektorski pokazatelji
A1: Sektorski ključni pokazatelji
A2: Obveznik: | B2: =IF(ISBLANK(Podloga!B2),"",Podloga!B2) -> Zračna luka Osijek d.o.o. | C2: =Podloga!B36 -> 2022. planirano | D2: =Podloga!C36 -> 2022. ostvareno | E2: =Podloga!D36 -> 2023. planirano | F2: =Podloga!E36 -> 2023. procijenjeno | G2: =Podloga!F36 -> 2024. planirano | H2: ="Indeks "& RIGHT(LEFT(Podloga!C36,7),5) &" / "& RIGHT(LEFT(Podloga!B36,8),6) -> Indeks 22. o / 22. pl | I2: ="Indeks "& RIGHT(LEFT(Podloga!E36,8),6) &" / "& RIGHT(LEFT(Podloga!D36,8),6) -> Indeks 23. pr / 23. pl | J2: ="Indeks "& RIGHT(LEFT(Podloga!E36,8),6) &" / "& RIGHT(LEFT(Podloga!C36,7),5) -> Indeks 23. pr / 22. o | K2: ="Indeks "& RIGHT(LEFT(Podloga!D36,8),6) &" / "& RIGHT(LEFT(Podloga!B36,8),6) -> Indeks 23. pl / 22. pl | L2: ="Indeks "& RIGHT(LEFT(Podloga!F36,8),6) &" / "& RIGHT(LEFT(Podloga!D36,8),6) -> Indeks 24. pl / 23. pl | M2: ="Indeks "& RIGHT(LEFT(Podloga!F36,8),6) &" / "& RIGHT(LEFT(Podloga!E36,8),6) -> Indeks 24. pl / 23. pr
A3: Operativni pokazatelji | B3: Način izračuna
A4: ostvareni promet zrakoplova | B4: ukupan broj polijetanja | C4: 1354 | D4: 902 | E4: 1378 | F4: 1388 | G4: 1449 | H4: =IFERROR(D4/C4*100,) -> 66.61742984 | I4: =IFERROR(F4/E4*100,) -> 100.7256894 | J4: =IFERROR(F4/D4*100,) -> 153.8802661 | K4: =IFERROR(E4/C4*100,) -> 101.7725258 | L4: =IFERROR(G4/E4*100,) -> 105.1523948 | M4: =IFERROR(G4/F4*100,) -> 104.3948127
A5: broj putnika | C5: 22956 | D5: 15875 | E5: 32871 | F5: 37448 | G5: 42414 | H5: =IFERROR(D5/C5*100,) -> 69.1540338 | I5: 113.9241277 | J5: =IFERROR(F5/D5*100,) -> 235.8929134 | K5: 143.1913225 | L5: 129.0316693 | M5: =IFERROR(G5/F5*100,) -> 113.2610553
A6: Promet po redovitim letovima | C6: 21296 | D6: 14530 | E6: 31021 | F6: 36013 | G6: 40936 | H6: =IFERROR(D6/C6*100,) -> 68.22877536 | I6: 116.0923246 | J6: =IFERROR(F6/D6*100,) -> 247.8527185 | K6: 145.6658527 | L6: 131.9622191 | M6: =IFERROR(G6/F6*100,) -> 113.6700636
A7: promet po charter letovima | C7: 1660 | D7: 1345 | E7: 1850 | F7: 1435 | G7: 1478 | H7: =IFERROR(D7/C7*100,) -> 81.02409639 | I7: 77.56756757 | J7: =IFERROR(F7/D7*100,) -> 106.6914498 | K7: 111.4457831 | L7: 79.89189189 | M7: =IFERROR(G7/F7*100,) -> 102.9965157
A8: promet po ostalim letovima | H8: =IFERROR(D8/C8*100,) -> 0 | I8: =IFERROR(F8/E8*100,) -> 0 | J8: =IFERROR(F8/D8*100,) -> 0 | K8: =IFERROR(E8/C8*100,) -> 0 | L8: =IFERROR(G8/E8*100,) -> 0 | M8: =IFERROR(G8/F8*100,) -> 0
A9: promet po avio kompanijama | H9: =IFERROR(D9/C9*100,) -> 0 | I9: =IFERROR(F9/E9*100,) -> 0 | J9: =IFERROR(F9/D9*100,) -> 0 | K9: =IFERROR(E9/C9*100,) -> 0 | L9: =IFERROR(G9/E9*100,) -> 0 | M9: =IFERROR(G9/F9*100,) -> 0
A10: 1. Trade Air | C10: 5054 | D10: 2973 | E10: 6841 | F10: 8687 | G10: 9192 | H10: =IFERROR(D10/C10*100,) -> 58.82469331 | I10: =IFERROR(F10/E10*100,) -> 126.984359 | J10: =IFERROR(F10/D10*100,) -> 292.1964346 | K10: =IFERROR(E10/C10*100,) -> 135.3581322 | L10: =IFERROR(G10/E10*100,) -> 134.3663207 | M10: =IFERROR(G10/F10*100,) -> 105.8132842
A11: 2. Croatia Airlines | C11: 8709 | D11: 11557 | E11: 15540 | F11: 14066 | G11: 14690 | H11: =IFERROR(D11/C11*100,) -> 132.7018027 | I11: =IFERROR(F11/E11*100,) -> 90.51480051 | J11: =IFERROR(F11/D11*100,) -> 121.7097863 | K11: =IFERROR(E11/C11*100,) -> 178.4361006 | L11: =IFERROR(G11/E11*100,) -> 94.53024453 | M11: =IFERROR(G11/F11*100,) -> 104.4362292
A12: 3. Wizz Air | C12: 7533 | D12: 0 | E12: 8640 | F12: 0 | G12: 23760 | H12: =IFERROR(D12/C12*100,) -> 0 | I12: =IFERROR(F12/E12*100,) -> 0 | J12: =IFERROR(F12/D12*100,) -> 0 | K12: =IFERROR(E12/C12*100,) -> 114.6953405 | L12: =IFERROR(G12/E12*100,) -> 275 | M12: =IFERROR(G12/F12*100,) -> 0
A13: 4. Ryanair | C13: 0 | D13: 0 | E13: 0 | F13: 13260 | G13: 17054 | H13: =IFERROR(D13/C13*100,) -> 0 | I13: =IFERROR(F13/E13*100,) -> 0 | J13: =IFERROR(F13/D13*100,) -> 0 | K13: =IFERROR(E13/C13*100,) -> 0 | L13: =IFERROR(G13/E13*100,) -> 0 | M13: =IFERROR(G13/F13*100,) -> 128.612368
A14: Promet po zemljama odredišta: | H14: 0 | I14: 0 | J14: 0 | K14: 0 | L14: 0 | M14: 0
A15: 1. RH | C15: 10331 | D15: 8744 | E15: 13458 | F15: 15066 | G15: 15832 | H15: 84.63846675 | I15: 111.9482835 | J15: 172.3010064 | K15: 130.2681251 | L15: 117.6400654 | M15: 105.0842958
A16: 2. Velika Britanija | C16: 0 | D16: 0 | E16: 0 | F16: 13260 | G16: 17054 | H16: 0 | I16: 0 | J16: 0 | K16: 0 | L16: 0 | M16: 128.612368
A17: 3. Njemačka | C17: 10965 | D17: 5786 | E17: 17563 | F17: 7687 | G17: 8050 | H17: 52.76789786 | I17: 43.76814895 | J17: 132.8551676 | K17: 160.1732786 | L17: 45.83499402 | M17: 104.7222584
A18: 4. Švicarska | C18: 0 | D18: 0 | E18: 0 | F18: 0 | G18: 0 | H18: 0 | I18: 0 | J18: 0 | K18: 0 | L18: 0 | M18: 0
H19: 0 | I19: 0 | J19: 0 | K19: 0 | L19: 0 | M19: 0
H20: 0 | I20: 0 | J20: 0 | K20: 0 | L20: 0 | M20: 0
H21: 0 | I21: 0 | J21: 0 | K21: 0 | L21: 0 | M21: 0
H22: 0 | I22: 0 | J22: 0 | K22: 0 | L22: 0 | M22: 0
H23: 0 | I23: 0 | J23: 0 | K23: 0 | L23: 0 | M23: 0
A24: Financijsko - naturalni pokazatelji
A25: Komercijalni prihod po putniku | B25: komercijalni prihod/broj putnika | C25: 25.49 | D25: 41.33 | E25: 21.1 | F25: 30.39 | G25: 30.1 | H25: =IFERROR(D25/C25*100,) -> 162.1420165 | I25: 144.028436 | J25: =IFERROR(F25/D25*100,) -> 73.5301234 | K25: 82.77755983 | L25: 142.6540284 | M25: =IFERROR(G25/F25*100,) -> 99.04573873
A26: Troškovi po putniku | B26: troškovi/broj putnika | C26: 87.17 | D26: 176 | E26: 64.77 | F26: 91.65 | G26: 81.14 | H26: =IFERROR(D26/C26*100,) -> 201.9043249 | I26: =IFERROR(F26/E26*100,) -> 141.5006948 | J26: =IFERROR(F26/D26*100,) -> 52.07386364 | K26: =IFERROR(E26/C26*100,) -> 74.30308592 | L26: =IFERROR(G26/E26*100,) -> 125.2740466 | M26: =IFERROR(G26/F26*100,) -> 88.53246045
H27: 0 | I27: 0 | J27: 0 | K27: 0 | L27: 0 | M27: 0
A28: Tržišni pokazatelji
H29: =IFERROR(D29/C29*100,) -> 0 | I29: 0 | J29: =IFERROR(F29/D29*100,) -> 0 | K29: 0 | L29: 0 | M29: =IFERROR(G29/F29*100,) -> 0
H30: 0 | I30: 0 | J30: 0 | K30: 0 | L30: 0 | M30: 0
H31: 0 | I31: 0 | J31: 0 | K31: 0 | L31: 0 | M31: 0
A32: Razvojni pokazatelji
H33: =IFERROR(D33/C33*100,) -> 0 | I33: 0 | J33: =IFERROR(F33/D33*100,) -> 0 | K33: 0 | L33: 0 | M33: =IFERROR(G33/F33*100,) -> 0
H34: =IFERROR(D34/C34*100,) -> 0 | I34: 0 | J34: 0 | K34: 0 | L34: 0 | M34: =IFERROR(G34/F34*100,) -> 0
H35: =IFERROR(D35/C35*100,) -> 0 | I35: 0 | J35: 0 | K35: 0 | L35: 0 | M35: =IFERROR(G35/F35*100,) -> 0
A38: * Plavo osjenčana pozadina označava planirane vrijednosti

Sheet Compliance
B1: Izvješće o provođenju funkcije praćenja usklađenosti
B2: =Podloga!B2 -> Zračna luka Osijek d.o.o.
B4: AKTI | C4: ODGOVOR | D4: DODATNI KOMENTAR / OBRAZLOŽENJE
B5: Je li donesen interni akt kojim je definirana funkcija praćenja usklađenosti? | C5: DA
B6: Naziv akta | C6: Odluka o provođenju funkcije usklađenosti, Pravilnik o organizaciji i sistematizaciji radnih mjesta
B7: Tko donosi interne akte u društvu / pravnoj osobi? | C7: Direktor
B8: Je li internim aktom kojim je definirana funkcija praćenja usklađenosti predviđeno donošenje drugih akata? | C8: DA
B9: Naziv drugih akata | C9: Plan za upravljanje rizicima
B10: Jesu li doneseni drugi akti predviđeni internim aktom kojim je definirana funkcija praćenja usklađenosti? | C10: NE
B11: Je li internim aktima o funkciji usklađenosti predviđena samostalnost i neovisnost osobe zadužene za funkcije praćenja usklađenosti? | C11: DA | D11: Dana 20.11.2020. godine izradili smo dokument Strategija upravljanja rizicima.
B12: Je li internim aktom propisana minimalna stručna sprema i potrebna znanja za obavljanje funkcije praćenja usklađenosti | C12: DA | D12: Pravilnikom o organizaciji i sistematizaciji radnih mjesta
B14: Formalni status funkcije praćenja usklađenosti | C14: ODGOVOR | D14: DODATNI KOMENTAR / OBRAZLOŽENJE
B15: Na koji je način organizirana funkcija praćenja usklađenosti?
B16: (A) Jedinica za praćenje funkcije usklađenosti | C16: NE
B17: (B) osoba / službenik | C17: DA
B18: Obavljaju li funkciju praćenja usklađenosti zaposlenici koji su već zaposleni u pravnoj osobi? | C18: DA
B19: A) Ustrojstvena jedinica | C19: ODGOVOR | D19: DODATNI KOMENTAR / OBRAZLOŽENJE
B20: Je li formirana nova ustrojstvena jedinica za funkciju praćenje usklađenosti poslovanja? | C20: NE
B21: Naziv ustrojstvene jedinice | C21: 0
B22: Je li rađena nova sistematizacija zbog uvođenja ustrojstvene jedinice za praćenje funkcije praćenja usklađenosti poslovanja? | C22: DA
B23: Je li tom sistematizacijom povećan ukupni broj zaposlenika u pravnoj osobi? | C23: DA | D23: Ali ne samo zbog funkcije praćenja usklađenosti poslovanja, već i zbog drugih poslova koji se obavljaju u okviru tog radnog mjesta
B24: Ako DA, u kojim je ustrojstvenim jedinicama bilo promjena i za koliko? | C24: 0
B25: Je li ustrojstvena jedinica ustrojena samo za obavljanje poslova funkcije praćenja usklađenosti? | C25: NE
B26: Ako NE, koje dodatne poslove obavlja? | C26: Kontroling, ljudske potencijale
B27: Broj službenika predviđenih ustrojstvenom jedinicom | C27: 0
B28: Broj službenika zaposlenih u ustrojstvenoj jedinici | C28: 0
B29: B) Osoba / službenik | C29: ODGOVOR | D29: DODATNI KOMENTAR / OBRAZLOŽENJE
B30: Obavlja li funkciju praćenja usklađenosti samostalni službenik? | C30: DA
B31: Kojim je aktom imenovana osoba unutar organizacije? | C31: Odluka o uvođenju funkcije praćenja usklađenosti poslovanja, Pravilnik o organizaciji I sistematizaciji radnih mjesta
B32: Naziv radnog mjesta osobe? | C32: Rukovoditelj kontrolinga, ljudskih potencijala i sustava praćenja usklađenosti poslovanja
B33: Je li službenik zaposlen na to radno mjesto samo za obavljanje posla funkcije praćenja usklađenosti? | C33: NE
B34: Ako NE, koje poslove obavlja pored poslova funkcije usklađenosti? | C34: Kontroling, ljudske potencijale
B36: OPIS POSLOVA | C36: ODGOVOR | D36: DODATNI KOMENTAR / OBRAZLOŽENJE
B37: Kratak opis poslova funkcije praćenja usklađenosti | C37: Funkcija praćenja usklađenosti poslovanja podrazumijeva sve poslove koji se odnose na usklađivanje funkcioniranja i poslovanja Zračne luke Osijek d.o.o. s pravnom regulativom i internim aktima, procjene rizika u funkcioniranju i poslovanju Zračne luke Osijek d.o.o., brigu o provođenju dobre poslovne prakse te sprječavanje sukoba interesa i koruptivnih radnji.
B38: Jesu li osobe zadužene za funkciju praćenja usklađenosti neovisne u obavljanju poslova? | C38: DA
B39: Ako NE, obrazložiti.
B40: Jesu li osobe zadužene za funkciju praćenja usklađenosti samostalne u obavljanju poslova? | C40: DA
B41: Ako NE, obrazložiti.
B42: Imaju li osobe zadužene za funkciju praćenja usklađenosti pristup osoblju i stručnim službama u društvu koje su potrebne za obavljanje poslova funkcije usklađenosti? | C42: DA
B43: Ako NE, obrazložiti.
B44: Jesu li osobe zadužene za funkciju praćenja usklađenosti u sukobu interesa između obavljanja poslova funkcije usklađenosti i drugih svojih odgovornosti? | C44: NE
B45: Ako DA, obrazložiti.
B46: Imaju li osobe zadužene za funkciju funkciju praćenja usklađenosti potrebne ovlasti i pristup svim bitnim podacima za obavljanje funkcije poslova praćenja usklađenosti? | C46: DA
B48: Povezane PO | C48: ODGOVOR | D48: DODATNI KOMENTAR / OBRAZLOŽENJE
B49: Je li funkcija usklađenosti uvedena u povezanim pravnim osobama društva? | C49: N/P
B50: U kojima? | C50: N/P
B51: Na koji je način organizirana funkcija praćenja usklađenosti? | C51: N/P
B52: (A) Jedinica za praćenje funkcije usklađenosti | C52: N/P
B53: (B) Samostalna osoba / službenik | C53: N/P
B54: Da li je donesen interni akt kojim je definirana funkcija praćenja usklađenosti? | C54: N/P
B55: Naziv akta | C55: N/P
B56: Izvještavaju li povezane osobe matičnu pravnu osobu o provođenju funkcije praćenja usklađenosti? | C56: N/P
B57: Na koji način povezane pravne osobe izvještavaju matičnu pravnu osobu? | C57: N/P
B59: KOMUNIKACIJA | C59: ODGOVOR | D59: DODATNI KOMENTAR / OBRAZLOŽENJE
B60: Imaju li osobe zadužene za obavljanje funkcije praćenja usklađenosti mogućnost izravne komunikacije s NO ili drugim nadzornim tijelom PO? | C60: DA
B61: Oblik komunikacije (formalna, neformalna) | C61: NEFORMALNA
B64: Utjecaj funkcije praćenja usklađenosti na poslovanje PO (opisati efekte) | C64: ODGOVOR | D64: DODATNI KOMENTAR / OBRAZLOŽENJE
B65: Financijski | C65: Smanjenje troškova i spriječavanje nepotrebnih gubitaka.
B66: Organizacijski | C66: Optimizacija procesa i procedura.
B67: Antikorupcijski | C67: Spriječavanje stvaranja mogućnosti za korupciju
B69: IZVJEŠTAVANJE | C69: ODGOVOR | D69: DODATNI KOMENTAR / OBRAZLOŽENJE
B70: Prate li i ocjenjuju osobe zadužene za funkciju praćenja usklađenosti učinkovitost politika, mjera i postupaka propisanih u svrhu praćenja usklađenosti poslovanja društva u cilju rješavanja nedostataka i nepravilnosti u poslovanju? | C70: DA
B71: Izvještavaju li osobe zadužene za funkciju praćenja usklađenosti poslovanja društva tijela društva o nedostacima i nepravilnostima otkrivenim u provođenju svojih aktivnosti? | C71: DA
B72: Savjetuju li osobe zadužene za funkciju praćenja usklađenosti poslovanja društva tijela društva o ispravljanju nedostaka i nepravilnosti otkrivenih u provođenju svojih aktivnosti? | C72: DA
B73: Broj zaprimljenih prijava o nepravilnosti: | C73: 0
B74: Broj riješenih prijava o nepravilnosti: | C74: 0
B75: Broj uočenih nepravilnosti: | C75: 0
B76: Broj riješenih uočenih nepravilnosti: | C76: 0
B77: Je li uprava ili drugo tijelo upravljanja identificiralo glavne rizike usklađenosti poslovanja? | C77: NE
B78: Donosi li uprava ili drugo tijelo upravljanja godišnje planove za upravljanje rizicima usklađenosti? | C78: NE
B80: * Stupac DODATNI KOMENTAR / OBRAZLOŽENJE popuniti ukoliko smatrate potrebnim

Sheet Sazetak (hidden)
L1: Tablica za Interni izvještaj
B2: =Podloga!B2 -> Zračna luka Osijek d.o.o. | L2: =Podloga!L2 -> 0
B6: BILANCA (HRK 000) | C6: =Podloga!B36 -> 2022. planirano | D6: =Podloga!C36 -> 2022. ostvareno | E6: =Podloga!D36 -> 2023. planirano | F6: =Podloga!E36 -> 2023. procijenjeno | G6: =Podloga!F36 -> 2024. planirano | I6: Pokazatelji | J6: Izračun | L6: BILANCA (HRK 000) | M6: =D6 -> 2022. ostvareno | N6: =F6 -> 2023. procijenjeno | O6: =G6 -> 2024. planirano
B7: Dugotrajna imovina | C7: =Bilanca!C5 -> 12296.7681 | D7: =Bilanca!D5 -> 12395.7689 | E7: =Bilanca!E5 -> 18497.025 | F7: =Bilanca!F5 -> 12232.602 | G7: =Bilanca!G5 -> 19752.51 | I7: EBITDA | J7: Poslovni prihod - poslovni rashod + amortizacija | L7: Dugotrajna imovina | M7: =D7 -> 12395.7689 | N7: =F7 -> 12232.602 | O7: =G7 -> 19752.51
B8: Kratkotrajna imovina | C8: =Bilanca!C40 -> 1029.9271 | D8: =Bilanca!D40 -> 1085.4234 | E8: =Bilanca!E40 -> 932.3476 | F8: =Bilanca!F40 -> 741.384 | G8: =Bilanca!G40 -> 657.33 | I8: EBITDA marža | J8: (Pos. prihod - pos. rashod + amortizacija) / posl. prihod | L8: Kratkotrajna imovina | M8: 1085.4234 | N8: 741.384 | O8: 657.33
B9: Pl. troš. budućeg razd.. | C9: =Bilanca!C67 -> 0 | D9: =Bilanca!D67 -> 0 | E9: =Bilanca!E67 -> 0 | F9: =Bilanca!F67 -> 0 | G9: =Bilanca!G67 -> 0 | I9: Neto profitna marža | J9: Neto dobit / uk. prihod | L9: Pl. troš. budućeg razd.. | M9: 0 | N9: 0 | O9: 0
B10: Aktiva | C10: =Bilanca!C68 -> 13326.6952 | D10: =Bilanca!D68 -> 13481.1923 | E10: =Bilanca!E68 -> 19429.3726 | F10: =Bilanca!F68 -> 12973.986 | G10: =Bilanca!G68 -> 20409.84 | I10: RoA | J10: Neto dobit / aktiva | L10: Aktiva | M10: 13481.1923 | N10: 12973.986 | O10: 20409.84
B11: Kapital i rezerve | C11: =Bilanca!C75 -> 1925.542 | D11: =Bilanca!D75 -> 1532.155 | E11: =Bilanca!E75 -> 1495.614 | F11: =Bilanca!F75 -> 904.605 | G11: =Bilanca!G75 -> 909.625 | I11: RoE | J11: Neto dobit / kapital i rezerve | L11: Kapital i rezerve | M11: 1532.155 | N11: 904.605 | O11: 909.625
B12: Rezerviranja | C12: =Bilanca!C96 -> 21.24 | D12: =Bilanca!D96 -> 6.44 | E12: =Bilanca!E96 -> 39.44 | F12: =Bilanca!F96 -> 6.44 | G12: =Bilanca!G96 -> 0 | I12: Koef. tekuće likvidnosti | J12: Kratkotrajna imovina / kratkoročne obveze | L12: Rezerviranja | M12: 6.44 | N12: 6.44 | O12: 0
B13: Dugoročne obveze | C13: =Bilanca!C103 -> 2919.902 | D13: =Bilanca!D103 -> 2778.482 | E13: =Bilanca!E103 -> 2964.391 | F13: =Bilanca!F103 -> 2799.417 | G13: =Bilanca!G103 -> 2799.417 | I13: Koeficijent financijske stabilnosti | J13: Dugotrajna imovina / (Kapital i rezerve + Dugoročne obveze) | L13: Dugoročne obveze | M13: 2778.482 | N13: 2799.417 | O13: 2799.417
B14: Kratkoročne obveze | C14: =Bilanca!C115 -> 8460.017 | D14: =Bilanca!D115 -> 9164.112 | E14: =Bilanca!E115 -> 14929.929 | F14: =Bilanca!F115 -> 9263.523 | G14: =Bilanca!G115 -> 16700.799 | I14: Koef. zaduženosti | J14: (Rezerviranja + Dugoročne obveze + Kratkoročne obveze + Ostalo) / Aktiva | L14: Kratkoročne obveze | M14: 9164.112 | N14: 9263.523 | O14: 16700.799
B15: Odg. pl. troš. i prihod.. | C15: =Bilanca!C130 -> 0 | D15: =Bilanca!D130 -> 0 | E15: =Bilanca!E130 -> 0 | F15: =Bilanca!F130 -> 0 | G15: =Bilanca!G130 -> 0 | L15: Odg. pl. troš. i prihod.. | M15: 0 | N15: 0 | O15: 0
B16: Pasiva | C16: =Bilanca!C131 -> 13326.701 | D16: =Bilanca!D131 -> 13481.189 | E16: =Bilanca!E131 -> 19429.374 | F16: =Bilanca!F131 -> 12973.985 | G16: =Bilanca!G131 -> 20409.841 | L16: Pasiva | M16: 13481.189 | N16: 12973.985 | O16: 20409.841
B18: RAČUN DOBITI I GUBITKA (HRK 000) | L18: RAČUN DOBITI I GUBITKA (HRK 000) | M18: 0 | N18: 0 | O18: 0
B19: Poslovni prihodi | C19: =RDG!C5 -> 2007.445 | D19: =RDG!D5 -> 2450.167 | E19: =RDG!E5 -> 2131.827 | F19: =RDG!F5 -> 2803.972 | G19: =RDG!G5 -> 3445.894 | L19: Poslovni prihodi | M19: 2450.167 | N19: 2803.972 | O19: 3445.894
B20: Poslovni rashodi | C20: =RDG!C11 -> 1928.089 | D20: =RDG!D11 -> 2735.358 | E20: =RDG!E11 -> 2065.712 | F20: =RDG!F11 -> 3384.926 | G20: =RDG!G11 -> 3378.614 | L20: Poslovni rashodi | M20: 2735.358 | N20: 3384.926 | O20: 3378.614
B21: Financijski prihodi | C21: =RDG!C34 -> 5.309 | D21: =RDG!D34 -> 0.6 | E21: =RDG!E34 -> 0.449 | F21: =RDG!F34 -> 0.517 | G21: =RDG!G34 -> 0.54 | L21: Financijski prihodi | M21: 0.6 | N21: 0.517 | O21: 0.54
B22: Financijski rashodi | C22: =RDG!C45 -> 72.997 | D22: =RDG!D45 -> 71.788 | E22: =RDG!E45 -> 61.318 | F22: =RDG!F45 -> 47.114 | G22: =RDG!G45 -> 62.8 | L22: Financijski rashodi | M22: 71.788 | N22: 47.114 | O22: 62.8
B23: Ukupni prihodi | C23: =RDG!C57 -> 2012.754 | D23: =RDG!D57 -> 2450.767 | E23: =RDG!E57 -> 2132.276 | F23: =RDG!F57 -> 2804.489 | G23: =RDG!G57 -> 3446.434 | L23: Ukupni prihodi | M23: 2450.767 | N23: 2804.489 | O23: 3446.434
B24: Ukupni rashodi | C24: =RDG!C58 -> 2001.086 | D24: =RDG!D58 -> 2807.146 | E24: =RDG!E58 -> 2127.03 | F24: =RDG!F58 -> 3432.04 | G24: =RDG!G58 -> 3441.414 | L24: Ukupni rashodi | M24: 2807.146 | N24: 3432.04 | O24: 3441.414
B25: Dobit/gubitak prije oporezivanja | C25: =RDG!C59 -> 11.668 | D25: =RDG!D59 -> -356.379 | E25: =RDG!E59 -> 5.246 | F25: =RDG!F59 -> -627.551 | G25: =RDG!G59 -> 5.02 | L25: Dobit/gubitak prije oporezivanja | M25: -356.379 | N25: -627.551 | O25: 5.02
B26: Porez na dobit | C26: =RDG!C62 -> 0 | D26: =RDG!D62 -> 0 | E26: =RDG!E62 -> 0 | F26: =RDG!F62 -> 0 | G26: =RDG!G62 -> 0 | L26: Porez na dobit | M26: 0 | N26: 0 | O26: 0
B27: Neto dobit/gubitak | C27: =RDG!C63 -> 11.668 | D27: =RDG!D63 -> -356.379 | E27: =RDG!E63 -> 5.246 | F27: =RDG!F63 -> -627.551 | G27: =RDG!G63 -> 5.02 | L27: Neto dobit/gubitak | M27: -356.379 | N27: -627.551 | O27: 5.02
B29: KLJUČNI POKAZATELJI | L29: KLJUČNI POKAZATELJI
B30: EBITDA (HRK 000) | C30: =C19-C20+C42 -> 371.346 | D30: =D19-D20+D42 -> 18.641 | E30: 355.451 | F30: -209.592 | G30: 492.28 | L30: EBITDA (HRK 000) | M30: 18.641 | N30: -209.592 | O30: 492.28
B31: EBITDA marža | C31: =IFERROR(C30/C19,0) -> 0.1849843956 | D31: =IFERROR(D30/D19,0) -> 0.007608052839 | E31: 0.1667353871 | F31: -0.07474824998 | G31: 0.142859879 | L31: EBITDA marža | M31: 0.007608052839 | N31: -0.07474824998 | O31: 0.142859879
B32: Neto profitna marža | C32: =IFERROR(C27/C23,0) -> 0.005797032325 | D32: =IFERROR(D27/D23,0) -> -0.1454152924 | E32: 0.002460281877 | F32: -0.2237666113 | G32: 0.001456578017 | L32: Neto profitna marža | M32: -0.1454152924 | N32: -0.2237666113 | O32: 0.001456578017
B33: ROA | C33: =IFERROR(C27/C10,0) -> 0.0008755358943 | D33: =IFERROR(D27/D10,0) -> -0.02643527309 | E33: 0.0002700035718 | F33: -0.04836994583 | G33: 0.0002459597919 | L33: ROA | M33: -0.02643527309 | N33: -0.04836994583 | O33: 0.0002459597919
B34: ROE | C34: =IFERROR(C27/C11,0) -> 0.006059592572 | D34: =IFERROR(D27/D11,0) -> -0.2325998349 | E34: 0.003507589525 | F34: -0.6937293073 | G34: 0.00551875773 | L34: ROE | M34: -0.2325998349 | N34: -0.6937293073 | O34: 0.00551875773
B35: Koef. tekuće likvidnosti | C35: =IFERROR(C8/C14,0) -> 0.1217405473 | D35: =IFERROR(D8/D14,0) -> 0.1184428344 | E35: 0.06244822732 | F35: 0.08003261826 | G35: 0.03935919473 | L35: Koef. tekuće likvidnosti | M35: 0.1184428344 | N35: 0.08003261826 | O35: 0.03935919473
B36: Koef. financijske stab. | C36: =IFERROR(C7/(C11+C13),0) -> 2.537800065 | D36: =IFERROR(D7/(D11+D13),0) -> 2.875623464 | E36: 4.147310373 | F36: 3.302518722 | G36: 5.325501841 | L36: Koef. financijske stab. | M36: 2.875623464 | N36: 3.302518722 | O36: 5.325501841
B37: Koef. zaduženosti | C37: =IFERROR((C12+C13+C14+C15)/C10,0) -> 0.8555128506 | D37: =IFERROR((D12+D13+D14+D15)/D10,0) -> 0.8863484575 | E37: 0.923023114 | F37: 0.9302753988 | G37: 0.9554320857 | L37: Koef. zaduženosti | M37: 0.8863484575 | N37: 0.9302753988 | O37: 0.9554320857
B38: Zaposleni | C38: =Podloga!B37 -> 0 | D38: =Podloga!C37 -> 0 | E38: =Podloga!D37 -> 0 | F38: =Podloga!E37 -> 0 | G38: =Podloga!F37 -> 0 | L38: Zaposleni | M38: 0 | N38: 0 | O38: 0
B39: Investicije (HRK 000) | C39: =Podloga!B38 -> 0 | D39: =Podloga!C38 -> 0 | E39: =Podloga!D38 -> 0 | F39: =Podloga!E38 -> 0 | G39: =Podloga!F38 -> 0 | L39: Investicije (HRK 000) | M39: 0 | N39: 0 | O39: 0
B42: Amortizacija | C42: =RDG!C21 -> 291.99 | D42: =RDG!D21 -> 303.832 | E42: =RDG!E21 -> 289.336 | F42: =RDG!F21 -> 371.362 | G42: =RDG!G21 -> 425 | L42: Amortizacija | M42: 303.832 | N42: 371.362 | O42: 425

Sheet AI (hidden)
A2: Naziv društva | B2: Ukupni prihodi | G2: Ukupni rashodi | L2: Neto dobit/gubitak | Q2: Planirane investicije | V2: Dugotrajna imovina | AA2: Kratkotrajna imovina | AF2: Pl. troš. budućeg razd.. | AK2: Aktiva | AP2: Kapital i rezerve | AU2: Rezerviranja | AZ2: Dugoročne obveze | BE2: Kratkoročne obveze | BJ2: Odg. pl. troš. i prihod.. | BO2: Pasiva | BT2: Poslovni prihodi | BY2: Poslovni rashodi | CD2: Financijski prihodi | CI2: Financijski rashodi | CN2: Ukupni prihodi | CS2: Ukupni rashodi | CX2: Dobit/gubitak prije oporezivanja | DC2: Porez na dobit | DH2: Neto dobit/gubitak | DM2: EBITDA (HRK 000) | DR2: EBITDA marža | DW2: Neto profitna marža | EB2: ROA | EG2: ROE | EL2: Tekuća likvidnost | EQ2: Koef. financijske stab. | EV2: Koef. zaduženosti | FA2: Zaposleni | FF2: Investicije (HRK 000) | FK2: Amortizacija
B3: 2019. planirano | C3: 2019. ostvareno | D3: 2020. planirano | E3: 2020. procijenjeno | F3: 2021. planirano | G3: 2019. planirano | H3: 2019. ostvareno | I3: 2020. planirano | J3: 2020. procijenjeno | K3: 2021. planirano | L3: 2019. planirano | M3: 2019. ostvareno | N3: 2020. planirano | O3: 2020. procijenjeno | P3: 2021. planirano | Q3: 2019. planirano | R3: 2019. ostvareno | S3: 2020. planirano | T3: 2020. procijenjeno | U3: 2021. planirano | V3: 2019. planirano | W3: 2019. ostvareno | X3: 2020. planirano | Y3: 2020. procijenjeno | Z3: 2021. planirano | AA3: 2019. planirano | AB3: 2019. ostvareno | AC3: 2020. planirano | AD3: 2020. procijenjeno | AE3: 2021. planirano | AF3: 2019. planirano | AG3: 2019. ostvareno | AH3: 2020. planirano | AI3: 2020. procijenjeno | AJ3: 2021. planirano | AK3: 2019. planirano | AL3: 2019. ostvareno | AM3: 2020. planirano | AN3: 2020. procijenjeno | AO3: 2021. planirano | AP3: 2019. planirano | AQ3: 2019. ostvareno | AR3: 2020. planirano | AS3: 2020. procijenjeno | AT3: 2021. planirano | AU3: 2019. planirano | AV3: 2019. ostvareno | AW3: 2020. planirano | AX3: 2020. procijenjeno | AY3: 2021. planirano | AZ3: 2019. planirano | BA3: 2019. ostvareno | BB3: 2020. planirano | BC3: 2020. procijenjeno | BD3: 2021. planirano | BE3: 2019. planirano | BF3: 2019. ostvareno | BG3: 2020. planirano | BH3: 2020. procijenjeno | BI3: 2021. planirano | BJ3: 2019. planirano | BK3: 2019. ostvareno | BL3: 2020. planirano | BM3: 2020. procijenjeno | BN3: 2021. planirano | BO3: 2019. planirano | BP3: 2019. ostvareno | BQ3: 2020. planirano | BR3: 2020. procijenjeno | BS3: 2021. planirano | BT3: 2019. planirano | BU3: 2019. ostvareno | BV3: 2020. planirano | BW3: 2020. procijenjeno | BX3: 2021. planirano | BY3: 2019. planirano | BZ3: 2019. ostvareno | CA3: 2020. planirano | CB3: 2020. procijenjeno | CC3: 2021. planirano | CD3: 2019. planirano | CE3: 2019. ostvareno | CF3: 2020. planirano | CG3: 2020. procijenjeno | CH3: 2021. planirano | CI3: 2019. planirano | CJ3: 2019. ostvareno | CK3: 2020. planirano | CL3: 2020. procijenjeno | CM3: 2021. planirano | CN3: 2019. planirano | CO3: 2019. ostvareno | CP3: 2020. planirano | CQ3: 2020. procijenjeno | CR3: 2021. planirano | CS3: 2019. planirano | CT3: 2019. ostvareno | CU3: 2020. planirano | CV3: 2020. procijenjeno | CW3: 2021. planirano | CX3: 2019. planirano | CY3: 2019. ostvareno | CZ3: 2020. planirano | DA3: 2020. procijenjeno | DB3: 2021. planirano | DC3: 2019. planirano | DD3: 2019. ostvareno | DE3: 2020. planirano | DF3: 2020. procijenjeno | DG3: 2021. planirano | DH3: 2019. planirano | DI3: 2019. ostvareno | DJ3: 2020. planirano | DK3: 2020. procijenjeno | DL3: 2021. planirano | DM3: 2019. planirano | DN3: 2019. ostvareno | DO3: 2020. planirano | DP3: 2020. procijenjeno | DQ3: 2021. planirano | DR3: 2019. planirano | DS3: 2019. ostvareno | DT3: 2020. planirano | DU3: 2020. procijenjeno | DV3: 2021. planirano | DW3: 2019. planirano | DX3: 2019. ostvareno | DY3: 2020. planirano | DZ3: 2020. procijenjeno | EA3: 2021. planirano | EB3: 2019. planirano | EC3: 2019. ostvareno | ED3: 2020. planirano | EE3: 2020. procijenjeno | EF3: 2021. planirano | EG3: 2019. planirano | EH3: 2019. ostvareno | EI3: 2020. planirano | EJ3: 2020. procijenjeno | EK3: 2021. planirano | EL3: 2019. planirano | EM3: 2019. ostvareno | EN3: 2020. planirano | EO3: 2020. procijenjeno | EP3: 2021. planirano | EQ3: 2019. planirano | ER3: 2019. ostvareno | ES3: 2020. planirano | ET3: 2020. procijenjeno | EU3: 2021. planirano | EV3: 2019. planirano | EW3: 2019. ostvareno | EX3: 2020. planirano | EY3: 2020. procijenjeno | EZ3: 2021. planirano | FA3: 2019. planirano | FB3: 2019. ostvareno | FC3: 2020. planirano | FD3: 2020. procijenjeno | FE3: 2021. planirano | FF3: 2019. planirano | FG3: 2019. ostvareno | FH3: 2020. planirano | FI3: 2020. procijenjeno | FJ3: 2021. planirano | FK3: 2019. planirano | FL3: 2019. ostvareno | FM3: 2020. planirano | FN3: 2020. procijenjeno | FO3: 2021. planirano | FP3: 2019. planirano | FQ3: 2019. ostvareno | FR3: 2020. planirano | FS3: 2020. procijenjeno | FT3: 2021. planirano | FU3: 2019. planirano | FV3: 2019. ostvareno | FW3: 2020. planirano | FX3: 2020. procijenjeno | FY3: 2021. planirano
A4: =Podloga!B2 -> Zračna luka Osijek d.o.o. | B4: =Sazetak!C23 -> 2012.754 | C4: =Sazetak!D23 -> 2450.767 | D4: =Sazetak!E23 -> 2132.276 | E4: =Sazetak!F23 -> 2804.489 | F4: =Sazetak!G23 -> 3446.434 | G4: =Sazetak!C24 -> 2001.086 | H4: =Sazetak!D24 -> 2807.146 | I4: =Sazetak!E24 -> 2127.03 | J4: =Sazetak!F24 -> 3432.04 | K4: =Sazetak!G24 -> 3441.414 | L4: =Sazetak!C27 -> 11.668 | M4: =Sazetak!D27 -> -356.379 | N4: =Sazetak!E27 -> 5.246 | O4: =Sazetak!F27 -> -627.551 | P4: =Sazetak!G27 -> 5.02 | Q4: =Sazetak!C39 -> 0 | R4: =Sazetak!D39 -> 0 | S4: =Sazetak!E39 -> 0 | T4: =Sazetak!F39 -> 0 | U4: =Sazetak!G39 -> 0 | V4: =Sazetak!C7 -> 12296.7681 | W4: =Sazetak!D7 -> 12395.7689 | X4: =Sazetak!E7 -> 18497.025 | Y4: =Sazetak!F7 -> 12232.602 | Z4: =Sazetak!G7 -> 19752.51 | AA4: =Sazetak!C8 -> 1029.9271 | AB4: =Sazetak!D8 -> 1085.4234 | AC4: =Sazetak!E8 -> 932.3476 | AD4: =Sazetak!F8 -> 741.384 | AE4: =Sazetak!G8 -> 657.33 | AF4: =Sazetak!C9 -> 0 | AG4: =Sazetak!D9 -> 0 | AH4: =Sazetak!E9 -> 0 | AI4: =Sazetak!F9 -> 0 | AJ4: =Sazetak!G9 -> 0 | AK4: =Sazetak!C10 -> 13326.6952 | AL4: =Sazetak!D10 -> 13481.1923 | AM4: =Sazetak!E10 -> 19429.3726 | AN4: =Sazetak!F10 -> 12973.986 | AO4: =Sazetak!G10 -> 20409.84 | AP4: =Sazetak!C11 -> 1925.542 | AQ4: =Sazetak!D11 -> 1532.155 | AR4: =Sazetak!E11 -> 1495.614 | AS4: =Sazetak!F11 -> 904.605 | AT4: =Sazetak!G11 -> 909.625 | AU4: =Sazetak!C12 -> 21.24 | AV4: =Sazetak!D12 -> 6.44 | AW4: =Sazetak!E12 -> 39.44 | AX4: =Sazetak!F12 -> 6.44 | AY4: =Sazetak!G12 -> 0 | AZ4: =Sazetak!C13 -> 2919.902 | BA4: =Sazetak!D13 -> 2778.482 | BB4: =Sazetak!E13 -> 2964.391 | BC4: =Sazetak!F13 -> 2799.417 | BD4: =Sazetak!G13 -> 2799.417 | BE4: =Sazetak!C14 -> 8460.017 | BF4: =Sazetak!D14 -> 9164.112 | BG4: =Sazetak!E14 -> 14929.929 | BH4: =Sazetak!F14 -> 9263.523 | BI4: =Sazetak!G14 -> 16700.799 | BJ4: =Sazetak!C15 -> 0 | BK4: =Sazetak!D15 -> 0 | BL4: =Sazetak!E15 -> 0 | BM4: =Sazetak!F15 -> 0 | BN4: =Sazetak!G15 -> 0 | BO4: =Sazetak!C16 -> 13326.701 | BP4: =Sazetak!D16 -> 13481.189 | BQ4: =Sazetak!E16 -> 19429.374 | BR4: =Sazetak!F16 -> 12973.985 | BS4: =Sazetak!G16 -> 20409.841 | BT4: =Sazetak!C19 -> 2007.445 | BU4: =Sazetak!D19 -> 2450.167 | BV4: =Sazetak!E19 -> 2131.827 | BW4: =Sazetak!F19 -> 2803.972 | BX4: =Sazetak!G19 -> 3445.894 | BY4: =Sazetak!C20 -> 1928.089 | BZ4: =Sazetak!D20 -> 2735.358 | CA4: =Sazetak!E20 -> 2065.712 | CB4: =Sazetak!F20 -> 3384.926 | CC4: =Sazetak!G20 -> 3378.614 | CD4: =Sazetak!C21 -> 5.309 | CE4: =Sazetak!D21 -> 0.6 | CF4: =Sazetak!E21 -> 0.449 | CG4: =Sazetak!F21 -> 0.517 | CH4: =Sazetak!G21 -> 0.54 | CI4: =Sazetak!C22 -> 72.997 | CJ4: =Sazetak!D22 -> 71.788 | CK4: =Sazetak!E22 -> 61.318 | CL4: =Sazetak!F22 -> 47.114 | CM4: =Sazetak!G22 -> 62.8 | CN4: =Sazetak!C23 -> 2012.754 | CO4: =Sazetak!D23 -> 2450.767 | CP4: =Sazetak!E23 -> 2132.276 | CQ4: =Sazetak!F23 -> 2804.489 | CR4: =Sazetak!G23 -> 3446.434 | CS4: =Sazetak!C24 -> 2001.086 | CT4: =Sazetak!D24 -> 2807.146 | CU4: =Sazetak!E24 -> 2127.03 | CV4: =Sazetak!F24 -> 3432.04 | CW4: =Sazetak!G24 -> 3441.414 | CX4: =Sazetak!C25 -> 11.668 | CY4: =Sazetak!D25 -> -356.379 | CZ4: =Sazetak!E25 -> 5.246 | DA4: =Sazetak!F25 -> -627.551 | DB4: =Sazetak!G25 -> 5.02 | DC4: =Sazetak!C26 -> 0 | DD4: =Sazetak!D26 -> 0 | DE4: =Sazetak!E26 -> 0 | DF4: =Sazetak!F26 -> 0 | DG4: =Sazetak!G26 -> 0 | DH4: =Sazetak!C27 -> 11.668 | DI4: =Sazetak!D27 -> -356.379 | DJ4: =Sazetak!E27 -> 5.246 | DK4: =Sazetak!F27 -> -627.551 | DL4: =Sazetak!G27 -> 5.02 | DM4: =Sazetak!C30 -> 371.346 | DN4: =Sazetak!D30 -> 18.641 | DO4: =Sazetak!E30 -> 355.451 | DP4: =Sazetak!F30 -> -209.592 | DQ4: =Sazetak!G30 -> 492.28 | DR4: =Sazetak!C31 -> 0.1849843956 | DS4: =Sazetak!D31 -> 0.007608052839 | DT4: =Sazetak!E31 -> 0.1667353871 | DU4: =Sazetak!F31 -> -0.07474824998 | DV4: =Sazetak!G31 -> 0.142859879 | DW4: =Sazetak!C32 -> 0.005797032325 | DX4: =Sazetak!D32 -> -0.1454152924 | DY4: =Sazetak!E32 -> 0.002460281877 | DZ4: =Sazetak!F32 -> -0.2237666113 | EA4: =Sazetak!G32 -> 0.001456578017 | EB4: =Sazetak!C33 -> 0.0008755358943 | EC4: =Sazetak!D33 -> -0.02643527309 | ED4: =Sazetak!E33 -> 0.0002700035718 | EE4: =Sazetak!F33 -> -0.04836994583 | EF4: =Sazetak!G33 -> 0.0002459597919 | EG4: =Sazetak!C34 -> 0.006059592572 | EH4: =Sazetak!D34 -> -0.2325998349 | EI4: =Sazetak!E34 -> 0.003507589525 | EJ4: =Sazetak!F34 -> -0.6937293073 | EK4: =Sazetak!G34 -> 0.00551875773 | EL4: =Sazetak!C35 -> 0.1217405473 | EM4: =Sazetak!D35 -> 0.1184428344 | EN4: =Sazetak!E35 -> 0.06244822732 | EO4: =Sazetak!F35 -> 0.08003261826 | EP4: =Sazetak!G35 -> 0.03935919473 | EQ4: =Sazetak!C36 -> 2.537800065 | ER4: =Sazetak!D36 -> 2.875623464 | ES4: =Sazetak!E36 -> 4.147310373 | ET4: =Sazetak!F36 -> 3.302518722 | EU4: =Sazetak!G36 -> 5.325501841 | EV4: =Sazetak!C37 -> 0.8555128506 | EW4: =Sazetak!D37 -> 0.8863484575 | EX4: =Sazetak!E37 -> 0.923023114 | EY4: =Sazetak!F37 -> 0.9302753988 | EZ4: =Sazetak!G37 -> 0.9554320857 | FA4: =Sazetak!C38 -> 0 | FB4: =Sazetak!D38 -> 0 | FC4: =Sazetak!E38 -> 0 | FD4: =Sazetak!F38 -> 0 | FE4: =Sazetak!G38 -> 0 | FF4: =Sazetak!C39 -> 0 | FG4: =Sazetak!D39 -> 0 | FH4: =Sazetak!E39 -> 0 | FI4: =Sazetak!F39 -> 0 | FJ4: =Sazetak!G39 -> 0 | FK4: =Sazetak!C42 -> 291.99 | FL4: =Sazetak!D42 -> 303.832 | FM4: =Sazetak!E42 -> 289.336 | FN4: =Sazetak!F42 -> 371.362 | FO4: =Sazetak!G42 -> 425 | FP4: =Sazetak!FF39 -> 0 | FQ4: =Sazetak!FG39 -> 0 | FR4: =Sazetak!FH39 -> 0 | FS4: =Sazetak!FI39 -> 0 | FT4: =Sazetak!FJ39 -> 0 | FU4: =Sazetak!FK39 -> 0 | FV4: =Sazetak!FL39 -> 0 | FW4: =Sazetak!FM39 -> 0 | FX4: =Sazetak!FN39 -> 0 | FY4: =Sazetak!FO39 -> 0
